Workbook

Sheet Summary
C2: All Intra Main10
C3: =CONCATENATE("Over ", $O$3) -> Over HM-16.6-JEM-4.0 (parallel) | H3: =CONCATENATE("Over ", $O$5) -> Over HM-16.6-JEM-5 (parallel) | N3: Reference: | O3: HM-16.6-JEM-4.0 (parallel)
C4: Y | D4: U | E4: V | F4: EncT | G4: DecT | H4: Y | I4: U | J4: V | K4: EncT | L4: DecT | N4: Tested: | O4: HM-16.6-JEM-4.0-DMVR(Half ME) (parallel)
B5: Class A1 | C5: =#REF! ->  | D5: =#REF! ->  | E5: =#REF! ->  | F5: =#REF! ->  | G5: =#REF! ->  | H5: =#REF! ->  | I5: =#REF! ->  | J5: =#REF! ->  | K5: =#REF! ->  | L5: =#REF! ->  | N5: 2nd-Referece: | O5: HM-16.6-JEM-5 (parallel)
B6: Class A2 | C6: =#REF! ->  | D6: =#REF! ->  | E6: =#REF! ->  | F6: =#REF! ->  | G6: =#REF! ->  | H6: =#REF! ->  | I6: =#REF! ->  | J6: =#REF! ->  | K6: =#REF! ->  | L6: =#REF! -> 
B7: Class B | C7: =#REF! ->  | D7: =#REF! ->  | E7: =#REF! ->  | F7: =#REF! ->  | G7: =#REF! ->  | H7: =#REF! ->  | I7: =#REF! ->  | J7: =#REF! ->  | K7: =#REF! ->  | L7: =#REF! -> 
B8: Class C | C8: =#REF! ->  | D8: =#REF! ->  | E8: =#REF! ->  | F8: =#REF! ->  | G8: =#REF! ->  | H8: =#REF! ->  | I8: =#REF! ->  | J8: =#REF! ->  | K8: =#REF! ->  | L8: =#REF! -> 
B9: Class D | C9: =#REF! ->  | D9: =#REF! ->  | E9: =#REF! ->  | F9: =#REF! ->  | G9: =#REF! ->  | H9: =#REF! ->  | I9: =#REF! ->  | J9: =#REF! ->  | K9: =#REF! ->  | L9: =#REF! -> 
B10: Class E | C10: =#REF! ->  | D10: =#REF! ->  | E10: =#REF! ->  | F10: =#REF! ->  | G10: =#REF! ->  | H10: =#REF! ->  | I10: =#REF! ->  | J10: =#REF! ->  | K10: =#REF! ->  | L10: =#REF! -> 
B11: Overall | C11: =#REF! ->  | D11: =#REF! ->  | E11: =#REF! ->  | F11: =#REF! ->  | G11: =#REF! ->  | H11: =#REF! ->  | I11: =#REF! ->  | J11: =#REF! ->  | K11: =#REF! ->  | L11: =#REF! ->  | N11: Note: BD-rate is computed using piece-wise cubic interpolation
B12: Class F (optional) | C12: =#REF! ->  | D12: =#REF! ->  | E12: =#REF! ->  | F12: =#REF! ->  | G12: =#REF! ->  | H12: =#REF! ->  | I12: =#REF! ->  | J12: =#REF! ->  | K12: =#REF! ->  | L12: =#REF! -> 
C14: Random Access Main 10
C15: =CONCATENATE("Over ", $O$3) -> Over HM-16.6-JEM-4.0 (parallel) | H15: =CONCATENATE("Over ", $O$5) -> Over HM-16.6-JEM-5 (parallel)
C16: Y | D16: U | E16: V | F16: EncT | G16: DecT | H16: Y | I16: U | J16: V | K16: EncT | L16: DecT
B17: =B5 -> Class A1 | C17: ='RA-10'!V115 -> -0.003225904871 | D17: ='RA-10'!W115 -> -0.002639426853 | E17: ='RA-10'!X115 -> -0.003961055176 | F17: ='RA-10'!S115 -> 1.02272261 | G17: ='RA-10'!T115 -> 1.016161527 | H17: ='RA-10'!AM115 ->  | I17: ='RA-10'!AN115 ->  | J17: ='RA-10'!AO115 ->  | K17: ='RA-10'!AJ115 ->  | L17: ='RA-10'!AK115 -> 
B18: =B6 -> Class A2 | C18: ='RA-10'!V116 -> -0.007074275483 | D18: ='RA-10'!W116 -> -0.006313924705 | E18: ='RA-10'!X116 -> -0.006501883865 | F18: ='RA-10'!S116 -> 1.025997947 | G18: ='RA-10'!T116 -> 0.9949957799 | H18: ='RA-10'!AM116 ->  | I18: ='RA-10'!AN116 ->  | J18: ='RA-10'!AO116 ->  | K18: ='RA-10'!AJ116 ->  | L18: ='RA-10'!AK116 -> 
B19: =B7 -> Class B | C19: ='RA-10'!V117 -> -0.003008221017 | D19: ='RA-10'!W117 -> -0.004074079982 | E19: ='RA-10'!X117 -> -0.004293887101 | F19: ='RA-10'!S117 -> 1.028449859 | G19: ='RA-10'!T117 -> 1.033661141 | H19: ='RA-10'!AM117 ->  | I19: ='RA-10'!AN117 ->  | J19: ='RA-10'!AO117 ->  | K19: ='RA-10'!AJ117 ->  | L19: ='RA-10'!AK117 -> 
B20: Class C | C20: ='RA-10'!V118 -> -0.004238347393 | D20: ='RA-10'!W118 -> -0.00567019224 | E20: ='RA-10'!X118 -> -0.00605025271 | F20: ='RA-10'!S118 -> 1.020834688 | G20: ='RA-10'!T118 -> 1.014480892 | H20: ='RA-10'!AM118 ->  | I20: ='RA-10'!AN118 ->  | J20: ='RA-10'!AO118 ->  | K20: ='RA-10'!AJ118 ->  | L20: ='RA-10'!AK118 -> 
B21: Class D | C21: ='RA-10'!V119 -> -0.003803422169 | D21: ='RA-10'!W119 -> -0.003873215476 | E21: ='RA-10'!X119 -> -0.002774191124 | F21: ='RA-10'!S119 -> 1.026913093 | G21: ='RA-10'!T119 -> 1.022964432 | H21: ='RA-10'!AM119 ->  | I21: ='RA-10'!AN119 ->  | J21: ='RA-10'!AO119 ->  | K21: ='RA-10'!AJ119 ->  | L21: ='RA-10'!AK119 -> 
B22: Class E
B23: Overall (Ref) | C23: ='RA-10'!V122 -> -0.004209947845 | D23: ='RA-10'!W122 -> -0.004493211286 | E23: ='RA-10'!X122 -> -0.004696141286 | F23: ='RA-10'!S122 -> 1.025144797 | G23: ='RA-10'!T122 -> 1.017190089 | H23: ='RA-10'!AM122 ->  | I23: ='RA-10'!AN122 ->  | J23: ='RA-10'!AO122 ->  | K23: ='RA-10'!AJ122 ->  | L23: ='RA-10'!AK122 -> 
B24: =B12 -> Class F (optional) | C24: ='RA-10'!V121 -> -0.000395797574 | D24: ='RA-10'!W121 -> -0.0001790957571 | E24: ='RA-10'!X121 -> -0.0006842114795 | F24: ='RA-10'!S121 -> 1.020445395 | G24: ='RA-10'!T121 -> 1.060416451 | H24: ='RA-10'!AM121 ->  | I24: ='RA-10'!AN121 ->  | J24: ='RA-10'!AO121 ->  | K24: ='RA-10'!AJ121 ->  | L24: ='RA-10'!AK121 -> 
C26: Low delay B Main10
C27: =CONCATENATE("Over ", $O$3) -> Over HM-16.6-JEM-4.0 (parallel) | H27: =CONCATENATE("Over ", $O$5) -> Over HM-16.6-JEM-5 (parallel)
C28: Y | D28: U | E28: V | F28: EncT | G28: DecT | H28: Y | I28: U | J28: V | K28: EncT | L28: DecT
B29: =B5 -> Class A1
B30: =B6 -> Class A2
B31: =B7 -> Class B | C31: =#REF! ->  | D31: =#REF! ->  | E31: =#REF! ->  | F31: =#REF! ->  | G31: =#REF! ->  | H31: =#REF! ->  | I31: =#REF! ->  | J31: =#REF! ->  | K31: =#REF! ->  | L31: =#REF! -> 
B32: Class C | C32: =#REF! ->  | D32: =#REF! ->  | E32: =#REF! ->  | F32: =#REF! ->  | G32: =#REF! ->  | H32: =#REF! ->  | I32: =#REF! ->  | J32: =#REF! ->  | K32: =#REF! ->  | L32: =#REF! -> 
B33: Class D | C33: =#REF! ->  | D33: =#REF! ->  | E33: =#REF! ->  | F33: =#REF! ->  | G33: =#REF! ->  | H33: =#REF! ->  | I33: =#REF! ->  | J33: =#REF! ->  | K33: =#REF! ->  | L33: =#REF! -> 
B34: Class E | C34: =#REF! ->  | D34: =#REF! ->  | E34: =#REF! ->  | F34: =#REF! ->  | G34: =#REF! ->  | H34: =#REF! ->  | I34: =#REF! ->  | J34: =#REF! ->  | K34: =#REF! ->  | L34: =#REF! -> 
B35: Overall (Ref) | C35: =#REF! ->  | D35: =#REF! ->  | E35: =#REF! ->  | F35: =#REF! ->  | G35: =#REF! ->  | H35: =#REF! ->  | I35: =#REF! ->  | J35: =#REF! ->  | K35: =#REF! ->  | L35: =#REF! -> 
B36: =B12 -> Class F (optional) | C36: =#REF! ->  | D36: =#REF! ->  | E36: =#REF! ->  | F36: =#REF! ->  | G36: =#REF! ->  | H36: =#REF! ->  | I36: =#REF! ->  | J36: =#REF! ->  | K36: =#REF! ->  | L36: =#REF! -> 
C38: Low delay P Main10
C39: =CONCATENATE("Over ", $O$3) -> Over HM-16.6-JEM-4.0 (parallel) | H39: =CONCATENATE("Over ", $O$5) -> Over HM-16.6-JEM-5 (parallel)
C40: Y | D40: U | E40: V | F40: EncT | G40: DecT | H40: Y | I40: U | J40: V | K40: EncT | L40: DecT
B41: =B5 -> Class A1
B42: =B6 -> Class A2
B43: =B7 -> Class B | C43: =#REF! ->  | D43: =#REF! ->  | E43: =#REF! ->  | F43: =#REF! ->  | G43: =#REF! ->  | H43: =#REF! ->  | I43: =#REF! ->  | J43: =#REF! ->  | K43: =#REF! ->  | L43: =#REF! -> 
B44: Class C | C44: =#REF! ->  | D44: =#REF! ->  | E44: =#REF! ->  | F44: =#REF! ->  | G44: =#REF! ->  | H44: =#REF! ->  | I44: =#REF! ->  | J44: =#REF! ->  | K44: =#REF! ->  | L44: =#REF! -> 
B45: Class D | C45: =#REF! ->  | D45: =#REF! ->  | E45: =#REF! ->  | F45: =#REF! ->  | G45: =#REF! ->  | H45: =#REF! ->  | I45: =#REF! ->  | J45: =#REF! ->  | K45: =#REF! ->  | L45: =#REF! -> 
B46: Class E | C46: =#REF! ->  | D46: =#REF! ->  | E46: =#REF! ->  | F46: =#REF! ->  | G46: =#REF! ->  | H46: =#REF! ->  | I46: =#REF! ->  | J46: =#REF! ->  | K46: =#REF! ->  | L46: =#REF! -> 
B47: Overall (Ref) | C47: =#REF! ->  | D47: =#REF! ->  | E47: =#REF! ->  | F47: =#REF! ->  | G47: =#REF! ->  | H47: =#REF! ->  | I47: =#REF! ->  | J47: =#REF! ->  | K47: =#REF! ->  | L47: =#REF! -> 
B48: =B12 -> Class F (optional) | C48: =#REF! ->  | D48: =#REF! ->  | E48: =#REF! ->  | F48: =#REF! ->  | G48: =#REF! ->  | H48: =#REF! ->  | I48: =#REF! ->  | J48: =#REF! ->  | K48: =#REF! ->  | L48: =#REF! -> 

Sheet Plot
A1: Select the coding condition and sequence from the dropbox below | AD1: Line 1 - Reference | AI1: Line 2 - Test | AN1: Line 3 - Reference2
A2: RA-10 | B2: SlideEditing | AD2: kbps | AE2: Y psnr | AF2: U psnr | AG2: V psnr | AI2: kbps | AJ2: Y psnr | AK2: U psnr | AL2: V psnr | AN2: kbps | AO2: Y psnr | AP2: U psnr | AQ2: V psnr
Z3: AI-10 | AA3: Tango | AB3: 3 | AC3: =VLOOKUP(B2,AA3:AB43,2,FALSE) -> 107 | AD3: =INDIRECT("'"&$A$2&"'!"&ADDRESS($AC3,4)) -> 1285.7128 | AE3: =INDIRECT("'"&$A$2&"'!"&ADDRESS($AC3,5)) -> 50.32902 | AF3: =INDIRECT("'"&$A$2&"'!"&ADDRESS($AC3,6)) -> 48.11980733 | AG3: =INDIRECT("'"&$A$2&"'!"&ADDRESS($AC3,7)) -> 47.98269433 | AI3: =INDIRECT("'"&$A$2&"'!"&ADDRESS($AC3,12)) -> 1285.1976 | AJ3: =INDIRECT("'"&$A$2&"'!"&ADDRESS($AC3,13)) -> 50.327989 | AK3: =INDIRECT("'"&$A$2&"'!"&ADDRESS($AC3,14)) -> 48.11885033 | AL3: =INDIRECT("'"&$A$2&"'!"&ADDRESS($AC3,15)) -> 47.98234233 | AN3: =INDIRECT("'"&$A$2&"'!"&ADDRESS($AC3,29)) -> 0 | AO3: =INDIRECT("'"&$A$2&"'!"&ADDRESS($AC3,30)) -> 0 | AP3: =INDIRECT("'"&$A$2&"'!"&ADDRESS($AC3,31)) -> 0 | AQ3: =INDIRECT("'"&$A$2&"'!"&ADDRESS($AC3,32)) -> 0
Z4: RA-10 | AA4: Drums100 | AB4: =AB3+4 -> 7 | AC4: =AC3+1 -> 108 | AD4: =INDIRECT("'"&$A$2&"'!"&ADDRESS($AC4,4)) -> 981.8688 | AE4: =INDIRECT("'"&$A$2&"'!"&ADDRESS($AC4,5)) -> 46.29472967 | AF4: =INDIRECT("'"&$A$2&"'!"&ADDRESS($AC4,6)) -> 43.90428667 | AG4: =INDIRECT("'"&$A$2&"'!"&ADDRESS($AC4,7)) -> 44.25509433 | AI4: =INDIRECT("'"&$A$2&"'!"&ADDRESS($AC4,12)) -> 981.824 | AJ4: =INDIRECT("'"&$A$2&"'!"&ADDRESS($AC4,13)) -> 46.29456267 | AK4: =INDIRECT("'"&$A$2&"'!"&ADDRESS($AC4,14)) -> 43.90393067 | AL4: =INDIRECT("'"&$A$2&"'!"&ADDRESS($AC4,15)) -> 44.25438733 | AN4: =INDIRECT("'"&$A$2&"'!"&ADDRESS($AC4,29)) -> 0 | AO4: =INDIRECT("'"&$A$2&"'!"&ADDRESS($AC4,30)) -> 0 | AP4: =INDIRECT("'"&$A$2&"'!"&ADDRESS($AC4,31)) -> 0 | AQ4: =INDIRECT("'"&$A$2&"'!"&ADDRESS($AC4,32)) -> 0
Z5: LDB-10 | AA5: CampfireParty | AB5: =AB4+4 -> 11 | AC5: =AC4+1 -> 109 | AD5: =INDIRECT("'"&$A$2&"'!"&ADDRESS($AC5,4)) -> 749.7456 | AE5: =INDIRECT("'"&$A$2&"'!"&ADDRESS($AC5,5)) -> 41.803252 | AF5: =INDIRECT("'"&$A$2&"'!"&ADDRESS($AC5,6)) -> 40.82899533 | AG5: =INDIRECT("'"&$A$2&"'!"&ADDRESS($AC5,7)) -> 41.709359 | AI5: =INDIRECT("'"&$A$2&"'!"&ADDRESS($AC5,12)) -> 749.9912 | AJ5: =INDIRECT("'"&$A$2&"'!"&ADDRESS($AC5,13)) -> 41.807619 | AK5: =INDIRECT("'"&$A$2&"'!"&ADDRESS($AC5,14)) -> 40.82881933 | AL5: =INDIRECT("'"&$A$2&"'!"&ADDRESS($AC5,15)) -> 41.707566 | AN5: =INDIRECT("'"&$A$2&"'!"&ADDRESS($AC5,29)) -> 0 | AO5: =INDIRECT("'"&$A$2&"'!"&ADDRESS($AC5,30)) -> 0 | AP5: =INDIRECT("'"&$A$2&"'!"&ADDRESS($AC5,31)) -> 0 | AQ5: =INDIRECT("'"&$A$2&"'!"&ADDRESS($AC5,32)) -> 0
Z6: LDP-10 | AA6: ToddlerFountain | AB6: 15 | AC6: =AC5+1 -> 110 | AD6: =INDIRECT("'"&$A$2&"'!"&ADDRESS($AC6,4)) -> 565.3328 | AE6: =INDIRECT("'"&$A$2&"'!"&ADDRESS($AC6,5)) -> 37.083649 | AF6: =INDIRECT("'"&$A$2&"'!"&ADDRESS($AC6,6)) -> 39.017 | AG6: =INDIRECT("'"&$A$2&"'!"&ADDRESS($AC6,7)) -> 40.14318133 | AI6: =INDIRECT("'"&$A$2&"'!"&ADDRESS($AC6,12)) -> 565.2552 | AJ6: =INDIRECT("'"&$A$2&"'!"&ADDRESS($AC6,13)) -> 37.082523 | AK6: =INDIRECT("'"&$A$2&"'!"&ADDRESS($AC6,14)) -> 39.017478 | AL6: =INDIRECT("'"&$A$2&"'!"&ADDRESS($AC6,15)) -> 40.14294633 | AN6: =INDIRECT("'"&$A$2&"'!"&ADDRESS($AC6,29)) -> 0 | AO6: =INDIRECT("'"&$A$2&"'!"&ADDRESS($AC6,30)) -> 0 | AP6: =INDIRECT("'"&$A$2&"'!"&ADDRESS($AC6,31)) -> 0 | AQ6: =INDIRECT("'"&$A$2&"'!"&ADDRESS($AC6,32)) -> 0
AA7: CatRobot | AB7: 19
AA8: TrafficFlow | AB8: 23 | AD8: ="Sequence: "&B2 & " Coding Conditions: " & A2 -> Sequence: SlideEditing Coding Conditions: RA-10
AA9: DaylightRoad | AB9: 27
AA10: Rollercoaster (offset) | AB10: 31
AA11: Kimono | AB11: 35 | AD11: rate | AE11: y | AF11: u | AG11: v
AA12: ParkScene | AB12: 39 | AD12: =MAX(AD3:AD6,AI3:AI6, AN3:AN6) -> 1285.7128 | AE12: =MAX(AE3:AE6,AJ3:AJ6, AO3:AO6) -> 50.32902 | AF12: =MAX(AF3:AF6,AK3:AK6, AP3:AP6) -> 48.11980733 | AG12: =MAX(AG3:AG6,AL3:AL6, AQ3:AQ6) -> 47.98269433
AA13: Cactus | AB13: 43 | AD13: =MIN(AD3:AD6,AI3:AI6,AN3:AN6) -> 0 | AE13: =MIN(AE3:AE6,AJ3:AJ6,AO3:AO6) -> 0 | AF13: =MIN(AF3:AF6,AK3:AK6,AP3:AP6) -> 0 | AG13: =MIN(AG3:AG6,AL3:AL6,AQ3:AQ6) -> 0
AA14: BasketballDrive | AB14: 47
AA15: BQTerrace | AB15: 51 | AD15: =POWER(10,CEILING(LOG(AD12+1),1)) -> 10000 | AE15: =CEILING(AE12+0.25,0.5) -> 51 | AF15: =CEILING(AF12+0.25,0.5) -> 48.5 | AG15: =CEILING(AG12+0.25,0.5) -> 48.5
AA16: BasketballDrill | AB16: 55 | AD16: =POWER(10,FLOOR(LOG(AD13+10),1)) -> 10 | AE16: =FLOOR(AE13-0.25,0.5) ->  | AF16: =FLOOR(AF13-0.25,0.5) ->  | AG16: =FLOOR(AG13-0.25,0.5) -> 
AA17: BQMall | AB17: 59
AA18: PartySceneC | AB18: 63
AA19: RaceHorsesC | AB19: 67
AA20: BasketballPass | AB20: 71
AA21: BQSquare | AB21: 75
AA22: BlowingBubbles | AB22: 79
AA23: RaceHorses | AB23: 83
AA24: FourPeople | AB24: 87
AA25: Johnny | AB25: 91
AA26: KristenAndSara | AB26: 95
AA27: BasketballDrillText | AB27: 99
AA28: ChinaSpeed | AB28: 103
AA29: SlideEditing | AB29: 107
AA30: SlideShow | AB30: 111

Sheet RA-10
D1: Reference | L1: Tested | V1: BD-rate (piecewise cubic) | Y1: BD-rate (cubic) | AC1: Reference-2 | AM1: BD-rate (piecewise cubic) | AP1: BD-rate (cubic)
C2: QPISlice | D2: kbps | E2: Y psnr | F2: U psnr | G2: V psnr | H2: Enc T [s] | I2: Dec T [s] | J2: Enc T [h] | L2: kbps | M2: Y psnr | N2: U psnr | O2: V psnr | P2: Enc T [s] | Q2: Dec T [s] | R2: Enc T [h] | S2: Enc | T2: Dec | V2: Y | W2: U | X2: V | Y2: Y | Z2: U | AA2: V | AC2: kbps | AD2: Y psnr | AE2: U psnr | AF2: V psnr | AG2: Enc T [s] | AH2: Dec T [s] | AI2: Enc T [h] | AJ2: Enc | AK2: Dec | AM2: Y | AN2: U | AO2: V | AP2: Y | AQ2: U | AR2: V
A3: Class A1 | B3: Tango | C3: 22 | D3: 29629.05796 | E3: 40.35711224 | F3: 49.01634694 | G3: 47.23933912 | H3: 1692408.968 | I3: 1258.969 | J3: 290.0856722 | L3: 29576.78531 | M3: 40.35787347 | N3: 49.01615578 | O3: 47.24503844 | P3: 1718041.938 | Q3: 1274.282 | R3: =P3/3600 -> 477.2338717 | S3: =P3/H3 -> 1.015145849 | T3: =Q3/I3 -> 1.012163127 | V3: =bdrate($D3:$D6,E3:E6,$L3:$L6,M3:M6) -> -0.007662226468 | W3: =bdrate($D3:$D6,F3:F6,$L3:$L6,N3:N6) -> -0.006299975686 | X3: =bdrate($D3:$D6,G3:G6,$L3:$L6,O3:O6) -> -0.00663824787 | Y3: =bdrateOld($D3:$D6,E3:E6,$L3:$L6,M3:M6) -> -0.007459148538 | Z3: =bdrateOld($D3:$D6,F3:F6,$L3:$L6,N3:N6) -> -0.006439273635 | AA3: =bdrateOld($D3:$D6,G3:G6,$L3:$L6,O3:O6) -> -0.006692199075 | AJ3: =R3/AI3 ->  | AK3: =Q3/AH3 ->  | AM3: =bdrate($AC3:$AC6,AD3:AD6,$L3:$L6, M3:M6) ->  | AN3: =bdrate($AC3:$AC6,AE3:AE6,$L3:$L6, N3:N6) ->  | AO3: =bdrate($AC3:$AC6,AF3:AF6,$L3:$L6, O3:O6) ->  | AP3: =bdrateOld($AC3:$AC6,AD3:AD6,$L3:$L6, M3:M6) ->  | AQ3: =bdrateOld($AC3:$AC6,AE3:AE6,$L3:$L6, N3:N6) ->  | AR3: =bdrateOld($AC3:$AC6,AF3:AF6,$L3:$L6, O3:O6) -> 
A4: 4K | C4: 27 | D4: 7693.087347 | E4: 39.63320612 | F4: 48.33356259 | G4: 46.11369898 | H4: 993016.045 | I4: 1441.048 | J4: 166.9902139 | L4: 7667.818776 | M4: 39.63773571 | N4: 48.33709524 | O4: 46.11877211 | P4: 1008990.093 | Q4: 1430.547 | R4: =P4/3600 -> 280.2750258 | S4: =P4/H4 -> 1.016086395 | T4: 0.9927129422 | AJ4: =R4/AI4 ->  | AK4: =Q4/AH4 -> 
C5: 32 | D5: 3750.653061 | E5: 38.73279762 | F5: 47.52066599 | G5: 44.89969898 | H5: 766042.969 | I5: 1514.406 | J5: 128.0123417 | L5: 3739.562449 | M5: 38.74206327 | N5: 47.52391701 | O5: 44.90402925 | P5: 782088.375 | Q5: 1513.189 | S5: 1.02094583 | T5: 0.9991963846
C6: 37 | D6: 2043.38449 | E6: 37.36423469 | F6: 46.78861497 | G6: 43.72390136 | H6: 597688.219 | I6: 1608.406 | J6: 99.34255 | L6: 2040.089796 | M6: 37.37650306 | N6: 46.79711939 | O6: 43.73012891 | P6: 613548.578 | Q6: 1616.281 | R6: 170.4301606 | S6: 1.026536175 | T6: 1.004896152
B7: Drums100 | C7: 22 | D7: 93022.32801 | E7: 41.78259833 | F7: 43.98706467 | G7: 42.11077967 | H7: 1338768.172 | I7: 1401.813 | J7: =H7/3600 -> 371.8800478 | L7: 92900.344 | M7: 41.78195333 | N7: 43.990261 | O7: 42.11531767 | P7: 1400644.422 | Q7: 1511.017 | R7: 389.067895 | S7: 1.046218794 | T7: 1.077901974 | V7: =bdrate($D7:$D10,E7:E10,$L7:$L10,M7:M10) -> -0.004275915984 | W7: =bdrate($D7:$D10,F7:F10,$L7:$L10,N7:N10) -> -0.004258283326 | X7: =bdrate($D7:$D10,G7:G10,$L7:$L10,O7:O10) -> -0.00697046671 | Y7: =bdrateOld($D7:$D10,E7:E10,$L7:$L10,M7:M10) -> -0.00426942113 | Z7: =bdrateOld($D7:$D10,F7:F10,$L7:$L10,N7:N10) -> -0.004310588833 | AA7: =bdrateOld($D7:$D10,G7:G10,$L7:$L10,O7:O10) -> -0.007032139089 | AM7: =bdrate($AC7:$AC10,AD7:AD10,$L7:$L10, M7:M10) ->  | AN7: =bdrate($AC7:$AC10,AE7:AE10,$L7:$L10, N7:N10) ->  | AO7: =bdrate($AC7:$AC10,AF7:AF10,$L7:$L10, O7:O10) ->  | AP7: =bdrateOld($AC7:$AC10,AD7:AD10,$L7:$L10, M7:M10) ->  | AQ7: =bdrateOld($AC7:$AC10,AE7:AE10,$L7:$L10, N7:N10) ->  | AR7: =bdrateOld($AC7:$AC10,AF7:AF10,$L7:$L10, O7:O10) -> 
C8: 27 | D8: 22511.57867 | E8: 39.45793867 | F8: 42.86575333 | G8: 41.091175 | H8: 793891.391 | I8: 1131.157 | J8: 135.0007806 | L8: 22451.66133 | M8: 39.460716 | N8: 42.86735633 | O8: 41.09638367 | P8: 824771.782 | Q8: 1139.735 | R8: 229.1032728 | S8: 1.038897501 | T8: 1.007583386
C9: 32 | D9: 9220.290667 | E9: 37.640635 | F9: 41.835799 | G9: 40.18387233 | H9: 616381.189 | I9: 1174.142 | J9: 103.6590694 | L9: 9198.512 | M9: 37.64851767 | N9: 41.837157 | O9: 40.18678533 | P9: 637424.671 | Q9: 1159.844 | R9: 177.0624086 | S9: 1.03414037 | T9: 0.9878225973
C10: 37 | D10: 4557.504 | E10: 35.60009967 | F10: 40.88709 | G10: 39.35666167 | H10: 477164.313 | I10: 1219.549 | J10: 80.47921944 | L10: 4550.074667 | M10: 35.61163833 | N10: 40.89120067 | O10: 39.36061 | P10: 488201.123 | Q10: 1178.235 | R10: 80.47921944 | S10: 1.023129999 | T10: 0.9661235424
B11: CampfireParty | C11: 22 | D11: 50888.0144 | E11: 39.14477367 | F11: 42.10384967 | G11: 43.16115533 | H11: 2385628.641 | I11: 992.283 | J11: 403.5438194 | L11: 50881.2648 | M11: 39.14485767 | N11: 42.10413667 | O11: 43.16202433 | P11: 2402558.951 | Q11: 1006.532 | R11: 667.3774864 | S11: 1.007096792 | T11: 1.014359815 | V11: =bdrate($D11:$D14,E11:E14,$L11:$L14,M11:M14) -> -0.0003243995903 | W11: =bdrate($D11:$D14,F11:F14,$L11:$L14,N11:N14) -> -0.0007417134275 | X11: =bdrate($D11:$D14,G11:G14,$L11:$L14,O11:O14) -> -0.001171661336 | Y11: =bdrateOld($D11:$D14,E11:E14,$L11:$L14,M11:M14) -> -0.0003220323612 | Z11: =bdrateOld($D11:$D14,F11:F14,$L11:$L14,N11:N14) -> -0.0007625393043 | AA11: =bdrateOld($D11:$D14,G11:G14,$L11:$L14,O11:O14) -> -0.001170720056 | AM11: =bdrate($AC11:$AC14,AD11:AD14,$L11:$L14, M11:M14) ->  | AN11: =bdrate($AC11:$AC14,AE11:AE14,$L11:$L14, N11:N14) ->  | AO11: =bdrate($AC11:$AC14,AF11:AF14,$L11:$L14, O11:O14) ->  | AP11: =bdrateOld($AC11:$AC14,AD11:AD14,$L11:$L14, M11:M14) ->  | AQ11: =bdrateOld($AC11:$AC14,AE11:AE14,$L11:$L14, N11:N14) ->  | AR11: =bdrateOld($AC11:$AC14,AF11:AF14,$L11:$L14, O11:O14) -> 
C12: 27 | D12: 15853.4512 | E12: 37.600517 | F12: 39.19972033 | G12: 41.58290167 | H12: 1453377.97 | I12: 817.47 | J12: 245.6949028 | L12: 15851.7096 | M12: 37.60061 | N12: 39.20206033 | O12: 41.58488367 | P12: 1472508.203 | Q12: 827.639 | R12: 409.0300564 | S12: 1.0131626 | T12: 1.0124396
C13: 32 | D13: 7925.7672 | E13: 36.47148133 | F13: 37.375395 | G13: 40.371182 | H13: 1131696.626 | I13: 850.33 | J13: 190.5744889 | L13: 7922.3904 | M13: 36.47176433 | N13: 37.376795 | O13: 40.3729 | P13: 1145476.439 | Q13: 854.766 | R13: 318.1878997 | S13: 1.012176243 | T13: 1.005216798
C14: 37 | D14: 4203.0672 | E14: 35.06602733 | F14: 35.20072467 | G14: 38.90173067 | H14: 892382.703 | I14: 917.282 | J14: 148.7092194 | L14: 4201.328 | M14: 35.06561033 | N14: 35.19923067 | O14: 38.90219167 | P14: 905602.985 | Q14: 929.952 | R14: 251.5563847 | S14: 1.014814588 | T14: 1.013812546
B15: ToddlerFountain | C15: 22 | D15: 204746.432 | E15: 40.30053133 | F15: 45.53230133 | G15: 41.697424 | H15: 3065835.063 | I15: 1192.282 | J15: 572.9580528 | L15: 204686.0368 | M15: 40.302015 | N15: 45.531194 | O15: 41.69884067 | P15: 3146894.344 | Q15: 1295.345 | R15: 874.1373178 | S15: 1.026439544 | T15: 1.086441798 | V15: =bdrate($D15:$D18,E15:E18,$L15:$L18,M15:M18) -> -0.0006410774419 | W15: =bdrate($D15:$D18,F15:F18,$L15:$L18,N15:N18) -> 0.0007422650263 | X15: =bdrate($D15:$D18,G15:G18,$L15:$L18,O15:O18) -> -0.001063844789 | Y15: =bdrateOld($D15:$D18,E15:E18,$L15:$L18,M15:M18) -> -0.0006479335836 | Z15: =bdrateOld($D15:$D18,F15:F18,$L15:$L18,N15:N18) -> 0.00115383362 | AA15: =bdrateOld($D15:$D18,G15:G18,$L15:$L18,O15:O18) -> -0.001133421521 | AM15: =bdrate($AC15:$AC18,AD15:AD18,$L15:$L18, M15:M18) ->  | AN15: =bdrate($AC15:$AC18,AE15:AE18,$L15:$L18, N15:N18) ->  | AO15: =bdrate($AC15:$AC18,AF15:AF18,$L15:$L18, O15:O18) ->  | AP15: =bdrateOld($AC15:$AC18,AD15:AD18,$L15:$L18, M15:M18) ->  | AQ15: =bdrateOld($AC15:$AC18,AE15:AE18,$L15:$L18, N15:N18) ->  | AR15: =bdrateOld($AC15:$AC18,AF15:AF18,$L15:$L18, O15:O18) -> 
C16: 27 | D16: 89963.67518 | E16: 36.23311733 | F16: 44.35241933 | G16: 40.224315 | H16: 2596254.874 | I16: 1349.094 | J16: =H16/3600 -> 721.1819094 | L16: 89951.8272 | M16: 36.23483067 | N16: 44.351816 | O16: 40.225884 | P16: 2684748.89 | Q16: 1424.703 | R16: 745.7635806 | S16: 1.034085258 | T16: 1.056044279
C17: 32 | D17: 41308.112 | E17: 33.081173 | F17: 43.74637633 | G17: 39.58070533 | H17: 1963621.297 | I17: 1565.187 | J17: 356.3482028 | L17: 41299.7296 | M17: 33.08283767 | N17: 43.746131 | O17: 39.581015 | P17: 2003736.156 | Q17: 1590.968 | R17: 556.5933767 | S17: 1.02042902 | T17: 1.016471514
C18: 37 | D18: 17690.16 | E18: 30.38842467 | F18: 43.18284 | G18: 39.06664067 | H18: 1522471.313 | I18: 1667.313 | J18: 268.8645667 | L18: 17686.0816 | M18: 30.39127667 | N18: 43.17964467 | O18: 39.06603833 | P18: 1545494.781 | Q18: 1688.265 | R18: 429.3041058 | S18: 1.015122431 | T18: 1.012566327
A19: Class A2 | B19: CatRobot | C19: 22 | D19: 32677.9472 | E19: 40.39093467 | F19: 41.77192233 | G19: 43.33859433 | H19: 1105494.672 | I19: 1643.095 | J19: 187.0693583 | L19: 32643.728 | M19: 40.39240067 | N19: 41.774907 | O19: 43.344589 | P19: 1130670.249 | Q19: 1666.109 | R19: 314.0750692 | S19: =P19/H19 -> 1.022773133 | T19: =Q19/I19 -> 1.014006494 | V19: =bdrate($D19:$D22,E19:E22,$L19:$L22,M19:M22) -> -0.006594918178 | W19: =bdrate($D19:$D22,F19:F22,$L19:$L22,N19:N22) -> -0.007020509602 | X19: =bdrate($D19:$D22,G19:G22,$L19:$L22,O19:O22) -> -0.008401843231 | Y19: =bdrateOld($D19:$D22,E19:E22,$L19:$L22,M19:M22) -> -0.006503827304 | Z19: =bdrateOld($D19:$D22,F19:F22,$L19:$L22,N19:N22) -> -0.007021336358 | AA19: =bdrateOld($D19:$D22,G19:G22,$L19:$L22,O19:O22) -> -0.008330495399 | AJ19: =R19/AI19 ->  | AK19: =Q19/AH19 ->  | AM19: =bdrate($AC19:$AC22,AD19:AD22,$L19:$L22, M19:M22) ->  | AN19: =bdrate($AC19:$AC22,AE19:AE22,$L19:$L22, N19:N22) ->  | AO19: =bdrate($AC19:$AC22,AF19:AF22,$L19:$L22, O19:O22) ->  | AP19: =bdrateOld($AC19:$AC22,AD19:AD22,$L19:$L22, M19:M22) ->  | AQ19: =bdrateOld($AC19:$AC22,AE19:AE22,$L19:$L22, N19:N22) ->  | AR19: =bdrateOld($AC19:$AC22,AF19:AF22,$L19:$L22, O19:O22) -> 
A20: 4K | C20: 27 | D20: 8718.1136 | E20: 39.39870567 | F20: 41.28183967 | G20: 42.22949233 | H20: 728575.656 | I20: 1742.796 | J20: 122.002225 | L20: 8684.0912 | M20: 39.40214033 | N20: 41.28386067 | O20: 42.23547333 | P20: 746897.25 | Q20: 1710.936 | R20: 207.4714583 | S20: =P20/H20 -> 1.02514714 | T20: =Q20/I20 -> 0.9817190308 | AJ20: =R20/AI20 ->  | AK20: =Q20/AH20 -> 
C21: 32 | D21: 4211.6656 | E21: 38.13541833 | F21: 40.711795 | G21: 41.064249 | H21: 561561.235 | I21: 1745.892 | J21: 93.55279444 | L21: 4196.9216 | M21: 38.14379967 | N21: 40.714127 | O21: 41.07251 | P21: 579803.265 | Q21: 1714.281 | R21: 161.0564625 | S21: 1.032484489 | T21: 0.981894069
C22: 37 | D22: 2232.3728 | E22: 36.40423967 | F22: 40.12019367 | G22: 39.93956833 | H22: 448617.391 | I22: 1745.72 | J22: 73.96684444 | L22: 2226.5552 | M22: 36.41473233 | N22: 40.12217767 | O22: 39.94498267 | P22: 463196.109 | Q22: 1709.624 | R22: 128.6655858 | S22: 1.032496997 | T22: 0.9793231446
B23: TrafficFlow | C23: 22 | D23: 14467.696 | E23: 40.07145033 | F23: 47.701669 | G23: 47.211134 | H23: 905199.298 | I23: 1178.423 | J23: 135.3542417 | L23: 14479.7424 | M23: 40.07114933 | N23: 47.702884 | O23: 47.212473 | P23: 923996.516 | Q23: 1246.625 | R23: 256.6656989 | S23: 1.020765834 | T23: 1.057875652 | V23: =bdrate($D23:$D26,E23:E26,$L23:$L26,M23:M26) -> -0.0007454613093 | W23: =bdrate($D23:$D26,F23:F26,$L23:$L26,N23:N26) -> -0.00144442409 | X23: =bdrate($D23:$D26,G23:G26,$L23:$L26,O23:O26) -> -0.0008563109856 | Y23: =bdrateOld($D23:$D26,E23:E26,$L23:$L26,M23:M26) -> -0.0007220087064 | Z23: =bdrateOld($D23:$D26,F23:F26,$L23:$L26,N23:N26) -> -0.001382000308 | AA23: =bdrateOld($D23:$D26,G23:G26,$L23:$L26,O23:O26) -> -0.0008604123254 | AM23: =bdrate($AC23:$AC26,AD23:AD26,$L23:$L26, M23:M26) ->  | AN23: =bdrate($AC23:$AC26,AE23:AE26,$L23:$L26, N23:N26) ->  | AO23: =bdrate($AC23:$AC26,AF23:AF26,$L23:$L26, O23:O26) ->  | AP23: =bdrateOld($AC23:$AC26,AD23:AD26,$L23:$L26, M23:M26) ->  | AQ23: =bdrateOld($AC23:$AC26,AE23:AE26,$L23:$L26, N23:N26) ->  | AR23: =bdrateOld($AC23:$AC26,AF23:AF26,$L23:$L26, O23:O26) -> 
C24: 27 | D24: 3371.0832 | E24: 39.21977867 | F24: 46.567308 | G24: 46.296785 | H24: 502156.517 | I24: 1139.626 | J24: 74.00324722 | L24: 3369.1336 | M24: 39.21975767 | N24: 46.569357 | O24: 46.297633 | P24: 514759.563 | Q24: 1175.53 | R24: 142.9887675 | S24: 1.025097844 | T24: 1.031505073
C25: 32 | D25: 1480.3928 | E25: 38.19210933 | F25: 45.374031 | G25: 45.21006767 | H25: 343599.798 | I25: 1149.171 | J25: 51.67446944 | L25: 1480.0376 | M25: 38.19358333 | N25: 45.375322 | O25: 45.20999867 | P25: 361838.079 | Q25: 1169.343 | R25: 100.5105775 | S25: 1.053080011 | T25: 1.017553523
C26: 37 | D26: 729.9096 | E26: 36.90756833 | F26: 44.089478 | G26: 43.96792633 | H26: 267029.33 | I26: 1210.468 | J26: 40.62458611 | L26: 729.6424 | M26: 36.90956233 | N26: 44.089079 | O26: 43.96828733 | P26: 279437.952 | Q26: 1221.751 | R26: 77.62165333 | S26: 1.046469135 | T26: 1.009321188
B27: DaylightRoad | C27: 22 | D27: 55297.4704 | E27: 38.17131867 | F27: 45.90516833 | G27: 43.802016 | H27: 1562514.345 | I27: 1207.109 | J27: 268.1135417 | L27: 55146.9808 | M27: 38.17304 | N27: 45.90833367 | O27: 43.806153 | P27: 1592172.344 | Q27: 1250.283 | R27: 442.2700956 | S27: 1.018980945 | T27: 1.035766447 | V27: =bdrate($D27:$D30,E27:E30,$L27:$L30,M27:M30) -> -0.01486532142 | W27: =bdrate($D27:$D30,F27:F30,$L27:$L30,N27:N30) -> -0.009758832029 | X27: =bdrate($D27:$D30,G27:G30,$L27:$L30,O27:O30) -> -0.01131449175 | Y27: =bdrateOld($D27:$D30,E27:E30,$L27:$L30,M27:M30) -> -0.01468740554 | Z27: =bdrateOld($D27:$D30,F27:F30,$L27:$L30,N27:N30) -> -0.009776865331 | AA27: =bdrateOld($D27:$D30,G27:G30,$L27:$L30,O27:O30) -> -0.01127603148 | AM27: =bdrate($AC27:$AC30,AD27:AD30,$L27:$L30, M27:M30) ->  | AN27: =bdrate($AC27:$AC30,AE27:AE30,$L27:$L30, N27:N30) ->  | AO27: =bdrate($AC27:$AC30,AF27:AF30,$L27:$L30, O27:O30) ->  | AP27: =bdrateOld($AC27:$AC30,AD27:AD30,$L27:$L30, M27:M30) ->  | AQ27: =bdrateOld($AC27:$AC30,AE27:AE30,$L27:$L30, N27:N30) ->  | AR27: =bdrateOld($AC27:$AC30,AF27:AF30,$L27:$L30, O27:O30) -> 
C28: 27 | D28: 10403.9408 | E28: 37.28695867 | F28: 45.117484 | G28: 42.883986 | H28: 895963.392 | I28: 1334.376 | J28: 146.9870528 | L28: 10319.8656 | M28: 37.29388933 | N28: 45.11874767 | O28: 42.88835033 | P28: 907570.999 | Q28: 1203.97 | R28: 252.1030553 | S28: 1.012955448 | T28: 0.9022719234
C29: 32 | D29: 4263.1024 | E29: 36.36725433 | F29: 44.22728533 | G29: 41.88856467 | H29: 625006.86 | I29: 1240.579 | J29: =H29/3600 -> 173.6130167 | L29: 4232.792 | M29: 36.38066733 | N29: 44.23079233 | O29: 41.89284733 | P29: 644258.079 | Q29: 1154.891 | R29: 178.9605775 | S29: 1.030801612 | T29: 0.9309290259
C30: 37 | D30: 2133.4752 | E30: 35.01174067 | F30: 43.33132933 | G30: 40.88881 | H30: 492174.798 | I30: 1257.938 | J30: 81.48260278 | L30: 2123.5344 | M30: 35.02856867 | N30: 43.334695 | O30: 40.89231567 | P30: 498752.687 | Q30: 1164.235 | R30: 138.5424131 | S30: 1.013364945 | T30: 0.9255106372
B31: Rollercoaster (offset) | C31: 22 | D31: 20663.3808 | E31: 45.503274 | F31: 47.24065933 | G31: 45.95418267 | H31: 1375816.141 | I31: 1135.297 | J31: 239.0038528 | L31: 20629.7008 | M31: 45.50674467 | N31: 47.24500633 | O31: 45.95654767 | P31: 1408115.453 | Q31: 1201.157 | S31: 1.023476474 | T31: 1.058011252 | V31: =bdrate($D31:$D34,E31:E34,$L31:$L34,M31:M34) -> -0.006091401021 | W31: =bdrate($D31:$D34,F31:F34,$L31:$L34,N31:N34) -> -0.007031933099 | X31: =bdrate($D31:$D34,G31:G34,$L31:$L34,O31:O34) -> -0.005434889494 | Y31: =bdrateOld($D31:$D34,E31:E34,$L31:$L34,M31:M34) -> -0.006114108105 | Z31: =bdrateOld($D31:$D34,F31:F34,$L31:$L34,N31:N34) -> -0.007017172892 | AA31: =bdrateOld($D31:$D34,G31:G34,$L31:$L34,O31:O34) -> -0.005494955766 | AM31: =bdrate($AC31:$AC34,AD31:AD34,$L31:$L34, M31:M34) ->  | AN31: =bdrate($AC31:$AC34,AE31:AE34,$L31:$L34, N31:N34) ->  | AO31: =bdrate($AC31:$AC34,AF31:AF34,$L31:$L34, O31:O34) ->  | AP31: =bdrateOld($AC31:$AC34,AD31:AD34,$L31:$L34, M31:M34) ->  | AQ31: =bdrateOld($AC31:$AC34,AE31:AE34,$L31:$L34, N31:N34) ->  | AR31: =bdrateOld($AC31:$AC34,AF31:AF34,$L31:$L34, O31:O34) -> 
C32: 27 | D32: 7708.9696 | E32: 43.52024867 | F32: 45.80686233 | G32: 44.83811 | H32: 1016800.344 | I32: 1135.844 | J32: 171.3704889 | L32: 7689.7792 | M32: 43.52604767 | N32: 45.81213933 | O32: 44.842335 | P32: 1034665.783 | Q32: 1115.218 | S32: 1.017570253 | T32: 0.9818408162
C33: 32 | D33: 3766.591978 | E33: 41.43310667 | F33: 44.466135 | G33: 43.91036067 | H33: 787550.859 | I33: 1019.078 | L33: 3751.822392 | M33: 41.445615 | N33: 44.475284 | O33: 43.91190667 | P33: 798327.578 | Q33: 1038.377 | S33: 1.013683839 | T33: 1.018937706
C34: 37 | D34: 1974.537588 | E34: 39.11037467 | F34: 43.175888 | G34: 43.06091667 | H34: 615239.923 | I34: 944.909 | J34: =H34/3600 -> 170.8999786 | L34: 1967.2896 | M34: 39.121486 | N34: 43.18751333 | O34: 43.064913 | P34: 632308.657 | Q34: 953.767 | R34: 175.6412936 | S34: 1.027743216 | T34: 1.009374448
A35: Class B | B35: Kimono | C35: 22 | D35: 4097.3336 | E35: 41.96493667 | F35: 43.60177458 | G35: 45.43520167 | H35: 256133.125 | I35: 314.425 | J35: 42.81815278 | L35: 4089.844 | M35: 41.96835083 | N35: 43.60557333 | O35: 45.44456208 | P35: 261992.172 | Q35: 323.782 | R35: 72.77560333 | S35: 1.022875007 | T35: 1.029759084 | V35: =bdrate($D35:$D38,E35:E38,$L35:$L38,M35:M38) -> -0.005068560937 | W35: =bdrate($D35:$D38,F35:F38,$L35:$L38,N35:N38) -> -0.004938915923 | X35: =bdrate($D35:$D38,G35:G38,$L35:$L38,O35:O38) -> -0.005201348403 | Y35: =bdrateOld($D35:$D38,E35:E38,$L35:$L38,M35:M38) -> -0.005065680015 | Z35: =bdrateOld($D35:$D38,F35:F38,$L35:$L38,N35:N38) -> -0.004899591892 | AA35: =bdrateOld($D35:$D38,G35:G38,$L35:$L38,O35:O38) -> -0.005259600702 | AM35: =bdrate($AC35:$AC38,AD35:AD38,$L35:$L38, M35:M38) ->  | AN35: =bdrate($AC35:$AC38,AE35:AE38,$L35:$L38, N35:N38) ->  | AO35: =bdrate($AC35:$AC38,AF35:AF38,$L35:$L38, O35:O38) ->  | AP35: =bdrateOld($AC35:$AC38,AD35:AD38,$L35:$L38, M35:M38) ->  | AQ35: =bdrateOld($AC35:$AC38,AE35:AE38,$L35:$L38, N35:N38) ->  | AR35: =bdrateOld($AC35:$AC38,AF35:AF38,$L35:$L38, O35:O38) -> 
A36: 1080p | C36: 27 | D36: 1743.888 | E36: 40.08321667 | F36: 42.46216417 | G36: 43.72500958 | H36: 188374.89 | I36: 319.079 | J36: 31.64833889 | L36: 1739.5912 | M36: 40.0896625 | N36: 42.46616625 | O36: 43.72978917 | P36: 193873.203 | Q36: 318.642 | R36: 53.8536675 | S36: 1.029188142 | T36: 0.9986304332
C37: 32 | D37: 852.3128 | E37: 37.83856875 | F37: 41.48612667 | G37: 42.47221958 | H37: 145018.534 | I37: 329.141 | J37: 24.24379444 | L37: 851.1016 | M37: 37.85181292 | N37: 41.49120792 | O37: 42.477365 | P37: 149065.891 | Q37: 327.734 | R37: 41.40719194 | S37: 1.02790924 | T37: 0.9957252363
C38: 37 | D38: 415.0528 | E38: 35.3796675 | F38: 40.59878333 | G38: 41.56441917 | H38: 111456.673 | I38: 339.142 | J38: 19.30523056 | L38: 414.7648 | M38: 35.39710042 | N38: 40.60077333 | O38: 41.56962542 | P38: 114917.173 | Q38: 339.203 | R38: 31.92143694 | S38: 1.031047939 | T38: 1.000179866
B39: ParkScene | C39: 22 | D39: 6355.352 | E39: 40.47258083 | F39: 42.61551417 | G39: 44.19417 | H39: 223737.827 | I39: 299.219 | J39: 35.04769167 | L39: 6341.7168 | M39: 40.47641042 | N39: 42.62375625 | O39: 44.20417667 | P39: 230356.877 | Q39: 332.205 | R39: 63.98802139 | S39: 1.029583956 | T39: 1.110240326 | V39: =bdrate($D39:$D42,E39:E42,$L39:$L42,M39:M42) -> -0.0046091326 | W39: =bdrate($D39:$D42,F39:F42,$L39:$L42,N39:N42) -> -0.005055292584 | X39: =bdrate($D39:$D42,G39:G42,$L39:$L42,O39:O42) -> -0.005030817482 | Y39: =bdrateOld($D39:$D42,E39:E42,$L39:$L42,M39:M42) -> -0.004605760517 | Z39: =bdrateOld($D39:$D42,F39:F42,$L39:$L42,N39:N42) -> -0.00504961526 | AA39: =bdrateOld($D39:$D42,G39:G42,$L39:$L42,O39:O42) -> -0.005341664113 | AM39: =bdrate($AC39:$AC42,AD39:AD42,$L39:$L42, M39:M42) ->  | AN39: =bdrate($AC39:$AC42,AE39:AE42,$L39:$L42, N39:N42) ->  | AO39: =bdrate($AC39:$AC42,AF39:AF42,$L39:$L42, O39:O42) ->  | AP39: =bdrateOld($AC39:$AC42,AD39:AD42,$L39:$L42, M39:M42) ->  | AQ39: =bdrateOld($AC39:$AC42,AE39:AE42,$L39:$L42, N39:N42) ->  | AR39: =bdrateOld($AC39:$AC42,AF39:AF42,$L39:$L42, O39:O42) -> 
C40: 27 | D40: 2663.3184 | E40: 38.0374725 | F40: 41.16679583 | G40: 42.07735542 | H40: 167528.686 | I40: 295.593 | J40: 26.02200833 | L40: 2655.5496 | M40: 38.04359083 | N40: 41.17091875 | O40: 42.085565 | P40: 172563.452 | Q40: 300.409 | R40: 47.93429222 | S40: 1.030053158 | T40: 1.016292673
C41: 32 | D41: 1238.172 | E41: 35.55968833 | F41: 39.81826542 | G41: 40.48002958 | H41: 128872.377 | I41: 296.453 | J41: 19.96310556 | L41: 1235.8328 | M41: 35.56873542 | N41: 39.82306542 | O41: 40.48063625 | P41: 133219.563 | Q41: 294.189 | R41: 37.00543417 | S41: 1.033732489 | T41: 0.992363039
C42: 37 | D42: 573.1432 | E42: 33.09698833 | F42: 38.55177583 | G42: 39.41699917 | H42: 97309.174 | I42: 308.032 | J42: 15.15570833 | L42: 572.408 | M42: 33.10713583 | N42: 38.55430917 | O42: 39.4197175 | P42: 100339.656 | Q42: 298.64 | R42: 27.87212667 | S42: 1.031142819 | T42: 0.9695096613
B43: Cactus | C43: 22 | D43: 14522.0184 | E43: 38.686384 | F43: 40.0222478 | G43: 43.7863114 | H43: 550093.532 | I43: 715.328 | J43: 90.86213333 | L43: 14499.8352 | M43: 38.6867856 | N43: 40.0227412 | O43: 43.795169 | P43: 558038.358 | Q43: 735.144 | R43: 155.010655 | S43: 1.014442682 | T43: 1.027701977 | V43: =bdrate($D43:$D46,E43:E46,$L43:$L46,M43:M46) -> -0.001940043853 | W43: =bdrate($D43:$D46,F43:F46,$L43:$L46,N43:N46) -> -0.001276516332 | X43: =bdrate($D43:$D46,G43:G46,$L43:$L46,O43:O46) -> -0.003255935643 | Y43: =bdrateOld($D43:$D46,E43:E46,$L43:$L46,M43:M46) -> -0.001939758021 | Z43: =bdrateOld($D43:$D46,F43:F46,$L43:$L46,N43:N46) -> -0.001287730425 | AA43: =bdrateOld($D43:$D46,G43:G46,$L43:$L46,O43:O46) -> -0.003252050496 | AM43: =bdrate($AC43:$AC46,AD43:AD46,$L43:$L46, M43:M46) ->  | AN43: =bdrate($AC43:$AC46,AE43:AE46,$L43:$L46, N43:N46) ->  | AO43: =bdrate($AC43:$AC46,AF43:AF46,$L43:$L46, O43:O46) ->  | AP43: =bdrateOld($AC43:$AC46,AD43:AD46,$L43:$L46, M43:M46) ->  | AQ43: =bdrateOld($AC43:$AC46,AE43:AE46,$L43:$L46, N43:N46) ->  | AR43: =bdrateOld($AC43:$AC46,AF43:AF46,$L43:$L46, O43:O46) -> 
C44: 27 | D44: 4346.4976 | E44: 37.184329 | F44: 39.3477568 | G44: 42.3912928 | H44: 364026.532 | I44: 690.673 | J44: 59.441275 | L44: 4343.42 | M44: 37.1863632 | N44: 39.3479582 | O44: 42.3923284 | P44: 370706.5 | Q44: 683.858 | R44: 102.9740278 | S44: 1.018350223 | T44: 0.9901328125
C45: 32 | D45: 2016.4552 | E45: 35.5115566 | F45: 38.7276742 | G45: 41.0754152 | H45: 281299.829 | I45: 687.922 | J45: 46.54776667 | L45: 2015.1144 | M45: 35.514408 | N45: 38.727989 | O45: 41.07963 | P45: 287914.813 | Q45: 687.532 | R45: 79.97633694 | S45: 1.023515777 | T45: 0.9994330753
C46: 37 | D46: 997.8912 | E46: 33.4393922 | F46: 38.0071292 | G46: 39.8370512 | H46: 222484.126 | I46: 667.782 | J46: 36.80534722 | L46: 996.8856 | M46: 33.4441038 | N46: 38.0077472 | O46: 39.8385854 | P46: 229193.359 | Q46: 666.768 | R46: 63.66482194 | S46: 1.030156008 | T46: 0.9984815404
B47: BasketballDrive | C47: 22 | D47: 14463.2336 | E47: 39.4330754 | F47: 44.0521438 | G47: 45.432975 | H47: 692389.014 | I47: 554.328 | J47: 121.4927389 | L47: 14440.8288 | M47: 39.4332306 | N47: 44.0559694 | O47: 45.4425572 | P47: 704481.468 | Q47: 590.048 | R47: 195.6892967 | S47: 1.017464826 | T47: 1.064438383 | V47: =bdrate($D47:$D50,E47:E50,$L47:$L50,M47:M50) -> -0.004716986523 | W47: =bdrate($D47:$D50,F47:F50,$L47:$L50,N47:N50) -> -0.007654443682 | X47: =bdrate($D47:$D50,G47:G50,$L47:$L50,O47:O50) -> -0.007610058598 | Y47: =bdrateOld($D47:$D50,E47:E50,$L47:$L50,M47:M50) -> -0.004697596794 | Z47: =bdrateOld($D47:$D50,F47:F50,$L47:$L50,N47:N50) -> -0.007682036785 | AA47: =bdrateOld($D47:$D50,G47:G50,$L47:$L50,O47:O50) -> -0.007721198244 | AM47: =bdrate($AC47:$AC50,AD47:AD50,$L47:$L50, M47:M50) ->  | AN47: =bdrate($AC47:$AC50,AE47:AE50,$L47:$L50, N47:N50) ->  | AO47: =bdrate($AC47:$AC50,AF47:AF50,$L47:$L50, O47:O50) ->  | AP47: =bdrateOld($AC47:$AC50,AD47:AD50,$L47:$L50, M47:M50) ->  | AQ47: =bdrateOld($AC47:$AC50,AE47:AE50,$L47:$L50, N47:N50) ->  | AR47: =bdrateOld($AC47:$AC50,AF47:AF50,$L47:$L50, O47:O50) -> 
C48: 27 | D48: 4703.9304 | E48: 37.8100052 | F48: 43.0593086 | G48: 43.7987804 | H48: 468933.813 | I48: 523.951 | J48: 79.85129444 | L48: 4689.9456 | M48: 37.8128756 | N48: 43.0648122 | O48: 43.8069466 | P48: 477827.594 | Q48: 528.97 | R48: 132.7298872 | S48: 1.018965962 | T48: 1.00957914
C49: 32 | D49: 2204.4184 | E49: 36.11478 | F49: 42.079782 | G49: 42.325522 | H49: 363742.312 | I49: 537.019 | J49: 61.52870556 | L49: 2198.132 | M49: 36.1215672 | N49: 42.0855642 | O49: 42.331455 | P49: 371672.252 | Q49: 536.201 | R49: 103.2422922 | S49: 1.021800983 | T49: 0.9984767764
C50: 37 | D50: 1106.028 | E50: 34.137826 | F50: 41.1394844 | G50: 40.866761 | H50: 291262.906 | I50: 577.734 | J50: 48.92716944 | L50: 1102.7576 | M50: 34.1454376 | N50: 41.1482902 | O50: 40.8848726 | P50: 297313.955 | Q50: 575.282 | R50: 82.58720972 | S50: 1.020775213 | T50: 0.9957558323
B51: BQTerrace | C51: 22 | D51: 33161.912 | E51: 37.49475467 | F51: 42.352619 | G51: 44.703658 | H51: 675473.157 | I51: 1004.843 | J51: 117.1295944 | L51: 33173.2184 | M51: 37.494262 | N51: 42.35188367 | O51: 44.70426017 | P51: 693531.016 | Q51: 1099.595 | R51: 192.6475044 | S51: 1.026733644 | T51: 1.094295328 | V51: =bdrate($D51:$D54,E51:E54,$L51:$L54,M51:M54) -> 0.001293618829 | W51: =bdrate($D51:$D54,F51:F54,$L51:$L54,N51:N54) -> -0.001445231389 | X51: =bdrate($D51:$D54,G51:G54,$L51:$L54,O51:O54) -> -0.0003712753763 | Y51: =bdrateOld($D51:$D54,E51:E54,$L51:$L54,M51:M54) -> 0.001213130016 | Z51: =bdrateOld($D51:$D54,F51:F54,$L51:$L54,N51:N54) -> -0.001377137165 | AA51: =bdrateOld($D51:$D54,G51:G54,$L51:$L54,O51:O54) -> -0.0003473628726 | AM51: =bdrate($AC51:$AC54,AD51:AD54,$L51:$L54, M51:M54) ->  | AN51: =bdrate($AC51:$AC54,AE51:AE54,$L51:$L54, N51:N54) ->  | AO51: =bdrate($AC51:$AC54,AF51:AF54,$L51:$L54, O51:O54) ->  | AP51: =bdrateOld($AC51:$AC54,AD51:AD54,$L51:$L54, M51:M54) ->  | AQ51: =bdrateOld($AC51:$AC54,AE51:AE54,$L51:$L54, N51:N54) ->  | AR51: =bdrateOld($AC51:$AC54,AF51:AF54,$L51:$L54, O51:O54) -> 
C52: 27 | D52: 5742.0384 | E52: 35.504099 | F52: 41.38337067 | G52: 43.87996233 | H52: 345931.266 | I52: 562.578 | J52: 55.50031111 | L52: 5747.7304 | M52: 35.50403717 | N52: 41.38623933 | O52: 43.88158 | P52: 363054.187 | Q52: 642.549 | R52: 100.8483853 | S52: 1.049498044 | T52: 1.142150955
C53: 32 | D53: 1788.3368 | E53: 34.240792 | F53: 40.36231067 | G53: 43.04559833 | H53: 230664.861 | I53: 491.831 | J53: 36.46302778 | L53: 1790.0224 | M53: 34.2391075 | N53: 40.36474167 | O53: 43.04556933 | P53: 241350.579 | Q53: 557.764 | R53: 67.0418275 | S53: 1.04632573 | T53: 1.13405621
C54: 37 | D54: 798.3272 | E54: 32.73379367 | F54: 39.34494117 | G54: 42.17748433 | H54: 170309.844 | I54: 499.327 | J54: 26.67815278 | L54: 798.468 | M54: 32.7321565 | N54: 39.34510867 | O54: 42.17703733 | P54: 178196.343 | Q54: 566.283 | R54: 49.49898417 | S54: 1.046306771 | T54: 1.134092488
A55: Class C | B55: BasketballDrill | C55: 22 | D55: 2809.228 | E55: 41.4965698 | F55: 43.590032 | G55: 44.3316478 | H55: 111065.065 | I55: 118.251 | J55: 24.13153333 | L55: 2800.4048 | M55: 41.4964228 | N55: 43.6022254 | O55: 44.3446996 | P55: 111987.188 | Q55: 123.924 | R55: 31.10755222 | S55: =P55/H55 -> 1.008302548 | T55: 1.047974224 | V55: =bdrate($D55:$D58,E55:E58,$L55:$L58,M55:M58) -> -0.004265560818 | W55: =bdrate($D55:$D58,F55:F58,$L55:$L58,N55:N58) -> -0.006082310209 | X55: =bdrate($D55:$D58,G55:G58,$L55:$L58,O55:O58) -> -0.006640737512 | Y55: =bdrateOld($D55:$D58,E55:E58,$L55:$L58,M55:M58) -> -0.004263103744 | Z55: =bdrateOld($D55:$D58,F55:F58,$L55:$L58,N55:N58) -> -0.005945016819 | AA55: =bdrateOld($D55:$D58,G55:G58,$L55:$L58,O55:O58) -> -0.006602896846 | AM55: =bdrate($AC55:$AC58,AD55:AD58,$L55:$L58, M55:M58) ->  | AN55: =bdrate($AC55:$AC58,AE55:AE58,$L55:$L58, N55:N58) ->  | AO55: =bdrate($AC55:$AC58,AF55:AF58,$L55:$L58, O55:O58) ->  | AP55: =bdrateOld($AC55:$AC58,AD55:AD58,$L55:$L58, M55:M58) ->  | AQ55: =bdrateOld($AC55:$AC58,AE55:AE58,$L55:$L58, N55:N58) ->  | AR55: =bdrateOld($AC55:$AC58,AF55:AF58,$L55:$L58, O55:O58) -> 
A56: WVGA | C56: 27 | D56: 1304.8056 | E56: 38.3115298 | F56: 41.5700796 | G56: 41.922997 | H56: 94056.422 | I56: 123.079 | J56: 20.400075 | L56: 1300.4712 | M56: 38.3169864 | N56: 41.574736 | O56: 41.9324112 | P56: 95615.142 | Q56: 122.658 | R56: 26.55976167 | S56: 1.01657218 | T56: 0.9965794327
C57: 32 | D57: 651.8096 | E57: 35.3702272 | F57: 39.8740918 | G57: 40.0399428 | H57: 77339.956 | I57: 136.688 | J57: 16.76101389 | L57: 650.1656 | M57: 35.3780304 | N57: 39.885796 | O57: 40.0514382 | P57: 78621.36 | Q57: 137.813 | R57: 21.83926667 | S57: 1.01656846 | T57: 1.008230423
C58: 37 | D58: 329.5024 | E58: 32.736391 | F58: 38.3174386 | G58: 38.2851006 | H58: 62749.737 | I58: 150.518 | J58: 13.58595 | L58: 328.6136 | M58: 32.740922 | N58: 38.3191718 | O58: 38.2929892 | P58: 64388.503 | Q58: 152.283 | R58: 17.88569528 | S58: 1.026115902 | T58: 1.011726172
B59: BQMall | C59: 22 | D59: 2867.2312 | E59: 40.59546167 | F59: 43.88216217 | G59: 45.61734733 | H59: 116776.297 | I59: 195.516 | J59: 24.87490556 | L59: 2860.7832 | M59: 40.59990767 | N59: 43.8865025 | O59: 45.6185015 | P59: 119859.457 | Q59: 203.499 | R59: 33.29429361 | S59: 1.026402276 | T59: 1.040830418 | V59: =bdrate($D59:$D62,E59:E62,$L59:$L62,M59:M62) -> -0.004805461038 | W59: =bdrate($D59:$D62,F59:F62,$L59:$L62,N59:N62) -> -0.005027814583 | X59: =bdrate($D59:$D62,G59:G62,$L59:$L62,O59:O62) -> -0.005323223356 | Y59: =bdrateOld($D59:$D62,E59:E62,$L59:$L62,M59:M62) -> -0.004780874055 | Z59: =bdrateOld($D59:$D62,F59:F62,$L59:$L62,N59:N62) -> -0.005109289967 | AA59: =bdrateOld($D59:$D62,G59:G62,$L59:$L62,O59:O62) -> -0.005439949093 | AM59: =bdrate($AC59:$AC62,AD59:AD62,$L59:$L62, M59:M62) ->  | AN59: =bdrate($AC59:$AC62,AE59:AE62,$L59:$L62, N59:N62) ->  | AO59: =bdrate($AC59:$AC62,AF59:AF62,$L59:$L62, O59:O62) ->  | AP59: =bdrateOld($AC59:$AC62,AD59:AD62,$L59:$L62, M59:M62) ->  | AQ59: =bdrateOld($AC59:$AC62,AE59:AE62,$L59:$L62, N59:N62) ->  | AR59: =bdrateOld($AC59:$AC62,AF59:AF62,$L59:$L62, O59:O62) -> 
C60: 27 | D60: 1282.4664 | E60: 38.12389617 | F60: 42.23628433 | G60: 43.58430333 | H60: 92007.485 | I60: 199.767 | J60: 19.51467778 | L60: 1278.5016 | M60: 38.13130517 | N60: 42.2433315 | O60: 43.59197233 | P60: 94258.376 | Q60: 201.378 | R60: 26.18288222 | S60: 1.024464216 | T60: 1.008064395
C61: 32 | D61: 642.4816 | E61: 35.486277 | F61: 40.73680483 | G61: 41.82444117 | H61: 75955.22 | I61: 204.313 | J61: 15.97781389 | L61: 641.2584 | M61: 35.49638133 | N61: 40.74004417 | O61: 41.83080567 | P61: 78037.438 | Q61: 204.828 | R61: 21.67706611 | S61: 1.027413758 | T61: 1.002520642
C62: 37 | D62: 329.9544 | E62: 32.73534217 | F62: 39.51081467 | G62: 40.42842517 | H62: 62676.8 | I62: 207.063 | J62: 13.17461389 | L62: 328.8424 | M62: 32.745035 | N62: 39.51401233 | O62: 40.43792167 | P62: 64297.517 | Q62: 204.875 | R62: 17.86042139 | S62: 1.025858324 | T62: 0.9894331677
B63: PartyScene | C63: 22 | D63: 5599.1264 | E63: 38.9359716 | F63: 41.9397862 | G63: 43.2417304 | H63: 118566.72 | I63: 166.284 | J63: 24.79649722 | L63: 5607.9936 | M63: 38.9371008 | N63: 41.9434778 | O63: 43.2455152 | P63: 121959.331 | Q63: 185.25 | R63: 33.87759194 | S63: 1.028613518 | T63: 1.114057877 | V63: =bdrate($D63:$D66,E63:E66,$L63:$L66,M63:M66) -> -0.003059947806 | W63: =bdrate($D63:$D66,F63:F66,$L63:$L66,N63:N66) -> -0.003086718744 | X63: =bdrate($D63:$D66,G63:G66,$L63:$L66,O63:O66) -> -0.003376854053 | Y63: =bdrateOld($D63:$D66,E63:E66,$L63:$L66,M63:M66) -> -0.003040997776 | Z63: =bdrateOld($D63:$D66,F63:F66,$L63:$L66,N63:N66) -> -0.002979691444 | AA63: =bdrateOld($D63:$D66,G63:G66,$L63:$L66,O63:O66) -> -0.003293812183 | AM63: =bdrate($AC63:$AC66,AD63:AD66,$L63:$L66, M63:M66) ->  | AN63: =bdrate($AC63:$AC66,AE63:AE66,$L63:$L66, N63:N66) ->  | AO63: =bdrate($AC63:$AC66,AF63:AF66,$L63:$L66, O63:O66) ->  | AP63: =bdrateOld($AC63:$AC66,AD63:AD66,$L63:$L66, M63:M66) ->  | AQ63: =bdrateOld($AC63:$AC66,AE63:AE66,$L63:$L66, N63:N66) ->  | AR63: =bdrateOld($AC63:$AC66,AF63:AF66,$L63:$L66, O63:O66) -> 
C64: 27 | D64: 2488.9472 | E64: 35.5121952 | F64: 39.7135378 | G64: 40.8726402 | H64: 93668.267 | I64: 172.282 | J64: 19.08861667 | L64: 2484.9224 | M64: 35.5179148 | N64: 39.7199878 | O64: 40.8792918 | P64: 96048.938 | Q64: 180.702 | R64: 26.68026056 | S64: 1.025415982 | T64: 1.048873359
C65: 32 | D65: 1195.4272 | E65: 32.4620926 | F65: 38.0011108 | G65: 38.9862026 | H65: 77418.628 | I65: 198.218 | J65: 16.08834444 | L65: 1192.0504 | M65: 32.4702478 | N65: 38.005013 | O65: 38.9919162 | P65: 79286.955 | Q65: 199.47 | R65: 22.02415417 | S65: 1.024132784 | T65: 1.006316278
C66: 37 | D66: 563.0016 | E66: 29.5936576 | F66: 36.5432882 | G66: 37.3252724 | H66: 61785.423 | I66: 210.268 | J66: 12.77203333 | L66: 562.2744 | M66: 29.6008532 | N66: 36.5391204 | O66: 37.32381 | P66: 63261.611 | Q66: 209.486 | R66: 17.57266972 | S66: 1.023892173 | T66: 0.9962809367
B67: RaceHorses | C67: 22 | D67: 4178.4688 | E67: 39.474114 | F67: 41.28196667 | G67: 42.91817133 | H67: 110362.673 | I67: 106.314 | J67: 24.23107222 | L67: 4168.7528 | M67: 39.477503 | N67: 41.28518867 | O67: 42.92437933 | P67: 111467.813 | Q67: 107.609 | R67: 30.96328139 | S67: 1.010013712 | T67: 1.012180898 | V67: =bdrate($D67:$D70,E67:E70,$L67:$L70,M67:M70) -> -0.004822419908 | W67: =bdrate($D67:$D70,F67:F70,$L67:$L70,N67:N70) -> -0.008483925423 | X67: =bdrate($D67:$D70,G67:G70,$L67:$L70,O67:O70) -> -0.00886019592 | Y67: =bdrateOld($D67:$D70,E67:E70,$L67:$L70,M67:M70) -> -0.004862506763 | Z67: =bdrateOld($D67:$D70,F67:F70,$L67:$L70,N67:N70) -> -0.008228101476 | AA67: =bdrateOld($D67:$D70,G67:G70,$L67:$L70,O67:O70) -> -0.009324492199 | AM67: =bdrate($AC67:$AC70,AD67:AD70,$L67:$L70, M67:M70) ->  | AN67: =bdrate($AC67:$AC70,AE67:AE70,$L67:$L70, N67:N70) ->  | AO67: =bdrate($AC67:$AC70,AF67:AF70,$L67:$L70, O67:O70) ->  | AP67: =bdrateOld($AC67:$AC70,AD67:AD70,$L67:$L70, M67:M70) ->  | AQ67: =bdrateOld($AC67:$AC70,AE67:AE70,$L67:$L70, N67:N70) ->  | AR67: =bdrateOld($AC67:$AC70,AF67:AF70,$L67:$L70, O67:O70) -> 
C68: 27 | D68: 1626.9376 | E68: 36.10948767 | F68: 39.34262233 | G68: 41.057369 | H68: 84026.407 | I68: 92.859 | J68: 18.46355278 | L68: 1621.6248 | M68: 36.11590667 | N68: 39.35291533 | O68: 41.079485 | P68: 85258.58 | Q68: 91.845 | R68: =P68/3600 -> 23.68293889 | S68: 1.014664116 | T68: 0.9890802184
C69: 32 | D69: 774.384 | E69: 33.41403433 | F69: 37.78571367 | G69: 39.64879 | H69: 69850.846 | I69: 87.782 | J69: 15.23240556 | L69: 771.1432 | M69: 33.41624533 | N69: 37.80155867 | O69: 39.64897 | P69: 70982.597 | Q69: 86.533 | R69: 19.71738806 | S69: 1.016202395 | T69: 0.9857715705
C70: 37 | D70: 371.7552 | E70: 30.744832 | F70: 36.41628067 | G70: 38.33508833 | H70: 55318.829 | I70: 88.765 | J70: 11.88176944 | L70: 370.6528 | M70: 30.756402 | N70: 36.42081467 | O70: 38.33700133 | P70: 56371.267 | Q70: 87.156 | R70: 15.65868528 | S70: 1.019024951 | T70: 0.9818734862
A71: Class D | B71: BasketballPass | C71: =C67 -> 22 | D71: 1246.7896 | E71: 41.4794828 | F71: 44.405362 | G71: 43.369373 | H71: 34707.531 | I71: 60.703 | J71: 7.727961111 | L71: 1241.9904 | M71: 41.4822248 | N71: 44.4318522 | O71: 43.4113034 | P71: 35308.143 | Q71: 61.032 | R71: 9.8078175 | S71: =P71/H71 -> 1.017304947 | T71: 1.005419831 | V71: =bdrate($D71:$D74,E71:E74,$L71:$L74,M71:M74) -> -0.005801429846 | W71: =bdrate($D71:$D74,F71:F74,$L71:$L74,N71:N74) -> -0.007283333554 | X71: =bdrate($D71:$D74,G71:G74,$L71:$L74,O71:O74) -> -0.00656017184 | Y71: =bdrateOld($D71:$D74,E71:E74,$L71:$L74,M71:M74) -> -0.005818209729 | Z71: =bdrateOld($D71:$D74,F71:F74,$L71:$L74,N71:N74) -> -0.006913213079 | AA71: =bdrateOld($D71:$D74,G71:G74,$L71:$L74,O71:O74) -> -0.006002519895 | AM71: =bdrate($AC71:$AC74,AD71:AD74,$L71:$L74, M71:M74) ->  | AN71: =bdrate($AC71:$AC74,AE71:AE74,$L71:$L74, N71:N74) ->  | AO71: =bdrate($AC71:$AC74,AF71:AF74,$L71:$L74, O71:O74) ->  | AP71: =bdrateOld($AC71:$AC74,AD71:AD74,$L71:$L74, M71:M74) ->  | AQ71: =bdrateOld($AC71:$AC74,AE71:AE74,$L71:$L74, N71:N74) ->  | AR71: =bdrateOld($AC71:$AC74,AF71:AF74,$L71:$L74, O71:O74) -> 
A72: WQVGA | C72: =C68 -> 27 | D72: 591.7984 | E72: 37.3959072 | F72: 42.0908578 | G72: 40.7053432 | H72: 28597.456 | I72: 63.766 | J72: 6.369572222 | L72: 589.9128 | M72: 37.408334 | N72: 42.093375 | O72: 40.709743 | P72: 29123.252 | Q72: 63.25 | R72: 8.089792222 | S72: =P72/H72 -> 1.018386111 | T72: 0.9919079133
C73: =C69 -> 32 | D73: 296.428 | E73: 34.0624592 | F73: 40.281904 | G73: 38.6601264 | H73: 23922.595 | I73: 65.782 | J73: 5.269061111 | L73: 296.0272 | M73: 34.084537 | N73: 40.3016718 | O73: 38.679001 | P73: 24350.736 | Q73: 65.595 | R73: 6.764093333 | S73: =P73/H73 -> 1.01789693 | T73: 0.9971572771
C74: =C70 -> 37 | D74: 148.336 | E74: 31.115066 | F74: 38.6929426 | G74: 36.8446804 | H74: 19210.891 | I74: 67.078 | J74: 4.202391667 | L74: 148.0504 | M74: 31.1375106 | N74: 38.7062366 | O74: 36.8366694 | P74: 19652.048 | Q74: 66.674 | R74: 5.458902222 | S74: =P74/H74 -> 1.022963901 | T74: 0.9939771609
B75: BQSquare | C75: 22 | D75: 1280.6264 | E75: 38.65865717 | F75: 43.95915267 | G75: 45.36250417 | H75: 27112.345 | I75: 69.673 | J75: 5.568172222 | L75: 1290.48 | M75: 38.659979 | N75: 43.97195217 | O75: 45.37556083 | P75: 28522.391 | Q75: 76.75 | R75: 7.922886389 | S75: 1.052007526 | T75: 1.101574498 | V75: =bdrate($D75:$D78,E75:E78,$L75:$L78,M75:M78) -> -0.0004651550902 | W75: =bdrate($D75:$D78,F75:F78,$L75:$L78,N75:N78) -> 0.002891860421 | X75: =bdrate($D75:$D78,G75:G78,$L75:$L78,O75:O78) -> 0.004157284208 | Y75: =bdrateOld($D75:$D78,E75:E78,$L75:$L78,M75:M78) -> -0.0004706587064 | Z75: =bdrateOld($D75:$D78,F75:F78,$L75:$L78,N75:N78) -> 0.003246570759 | AA75: =bdrateOld($D75:$D78,G75:G78,$L75:$L78,O75:O78) -> 0.005012588292 | AM75: =bdrate($AC75:$AC78,AD75:AD78,$L75:$L78, M75:M78) ->  | AN75: =bdrate($AC75:$AC78,AE75:AE78,$L75:$L78, N75:N78) ->  | AO75: =bdrate($AC75:$AC78,AF75:AF78,$L75:$L78, O75:O78) ->  | AP75: =bdrateOld($AC75:$AC78,AD75:AD78,$L75:$L78, M75:M78) ->  | AQ75: =bdrateOld($AC75:$AC78,AE75:AE78,$L75:$L78, N75:N78) ->  | AR75: =bdrateOld($AC75:$AC78,AF75:AF78,$L75:$L78, O75:O78) -> 
C76: 27 | D76: 467.0824 | E76: 35.45758667 | F76: 41.91248217 | G76: 43.15821033 | H76: 18617.033 | I76: 62.909 | J76: 3.725027778 | L76: 469.4144 | M76: 35.47133233 | N76: 41.9092165 | O76: 43.14761733 | P76: 19560.267 | Q76: 67.891 | R76: 5.4334075 | S76: 1.050665109 | T76: 1.079193756
C77: 32 | D77: 212.0448 | E77: 32.7591945 | F77: 40.255451 | G77: 41.52664883 | H77: 13313.174 | I77: 62.36 | J77: 2.612502778 | L77: 212.068 | M77: 32.771968 | N77: 40.25793433 | O77: 41.53088317 | P77: 13951.799 | Q77: 65.655 | R77: 3.875499722 | S77: 1.047969402 | T77: 1.052838358
C78: 37 | D78: 110.468 | E78: 30.22768833 | F78: 39.091131 | G78: 40.1713145 | H78: 10194.451 | I78: 64.219 | J78: 2.008147222 | L78: 110.3656 | M78: 30.25031417 | N78: 39.08987333 | O78: 40.172357 | P78: 10617.547 | Q78: 69.627 | R78: 2.949318611 | S78: 1.041502578 | T78: 1.084211838
B79: BlowingBubbles | C79: 22 | D79: 1337.4712 | E79: 38.7312308 | F79: 41.6296576 | G79: 42.8716852 | H79: 27777.097 | I79: 63.626 | J79: 5.800927778 | L79: 1338.484 | M79: 38.737114 | N79: 41.6366406 | O79: 42.8835906 | P79: 28509.471 | Q79: 66.14 | R79: 7.9192975 | S79: =P79/H79 -> 1.02636611 | T79: 1.039512149 | V79: =bdrate($D79:$D82,E79:E82,$L79:$L82,M79:M82) -> -0.002161668104 | W79: =bdrate($D79:$D82,F79:F82,$L79:$L82,N79:N82) -> -0.002643610728 | X79: =bdrate($D79:$D82,G79:G82,$L79:$L82,O79:O82) -> -0.001386720698 | Y79: =bdrateOld($D79:$D82,E79:E82,$L79:$L82,M79:M82) -> -0.002160550681 | Z79: =bdrateOld($D79:$D82,F79:F82,$L79:$L82,N79:N82) -> -0.002743840143 | AA79: =bdrateOld($D79:$D82,G79:G82,$L79:$L82,O79:O82) -> -0.001395058332 | AM79: =bdrate($AC79:$AC82,AD79:AD82,$L79:$L82, M79:M82) ->  | AN79: =bdrate($AC79:$AC82,AE79:AE82,$L79:$L82, N79:N82) ->  | AO79: =bdrate($AC79:$AC82,AF79:AF82,$L79:$L82, O79:O82) ->  | AP79: =bdrateOld($AC79:$AC82,AD79:AD82,$L79:$L82, M79:M82) ->  | AQ79: =bdrateOld($AC79:$AC82,AE79:AE82,$L79:$L82, N79:N82) ->  | AR79: =bdrateOld($AC79:$AC82,AF79:AF82,$L79:$L82, O79:O82) -> 
C80: 27 | D80: 596.6248 | E80: 35.4185108 | F80: 39.3942272 | G80: 40.420153 | H80: 22107.328 | I80: 68.253 | J80: 4.580230556 | L80: 595.6464 | M80: 35.4218822 | N80: 39.3967502 | O80: 40.4192952 | P80: 22591.935 | Q80: 69.938 | R80: 6.2755375 | S80: 1.02192065 | T80: 1.02468756
C81: 32 | D81: 286.6432 | E81: 32.395166 | F81: 37.5609426 | G81: 38.3888032 | H81: 17772.017 | I81: 77.064 | J81: 3.650333333 | L81: 286.0784 | M81: 32.3981296 | N81: 37.5617514 | O81: 38.3865184 | P81: 18217.095 | Q81: 78.11 | R81: 5.060304167 | S81: 1.025043753 | T81: 1.013573134
C82: 37 | D82: 134.1064 | E82: 29.5150346 | F82: 35.9722914 | G82: 36.6278912 | H82: 13968.97 | I82: 77.906 | J82: 2.836811111 | L82: 134.0232 | M82: 29.5172414 | N82: 35.9814388 | O82: 36.6270726 | P82: 14265.72 | Q82: 77.846 | R82: 3.9627 | S82: 1.021243513 | T82: 0.9992298411
B83: RaceHorses | C83: 22 | D83: 1002.9312 | E83: 40.13874633 | F83: 41.618882 | G83: 42.75013833 | H83: 26250.486 | I83: 41.064 | J83: 5.758819444 | L83: 997.5248 | M83: 40.14103233 | N83: 41.630501 | O83: 42.75296133 | P83: 26527.611 | Q83: 40.984 | R83: 7.368780833 | S83: 1.010556947 | T83: 0.9980518215 | V83: =bdrate($D83:$D86,E83:E86,$L83:$L86,M83:M86) -> -0.006785435637 | W83: =bdrate($D83:$D86,F83:F86,$L83:$L86,N83:N86) -> -0.008457778044 | X83: =bdrate($D83:$D86,G83:G86,$L83:$L86,O83:O86) -> -0.007307156167 | Y83: =bdrateOld($D83:$D86,E83:E86,$L83:$L86,M83:M86) -> -0.006821035345 | Z83: =bdrateOld($D83:$D86,F83:F86,$L83:$L86,N83:N86) -> -0.008020339019 | AA83: =bdrateOld($D83:$D86,G83:G86,$L83:$L86,O83:O86) -> -0.007572470841 | AM83: =bdrate($AC83:$AC86,AD83:AD86,$L83:$L86, M83:M86) ->  | AN83: =bdrate($AC83:$AC86,AE83:AE86,$L83:$L86, N83:N86) ->  | AO83: =bdrate($AC83:$AC86,AF83:AF86,$L83:$L86, O83:O86) ->  | AP83: =bdrateOld($AC83:$AC86,AD83:AD86,$L83:$L86, M83:M86) ->  | AQ83: =bdrateOld($AC83:$AC86,AE83:AE86,$L83:$L86, N83:N86) ->  | AR83: =bdrateOld($AC83:$AC86,AF83:AF86,$L83:$L86, O83:O86) -> 
C84: 27 | D84: 476.2008 | E84: 36.221365 | F84: 39.27887067 | G84: 40.50900033 | H84: 20852.595 | I84: 40.643 | J84: 4.547794444 | L84: 473.5648 | M84: 36.230028 | N84: 39.28269367 | O84: 40.52053233 | P84: 21150.203 | Q84: 39.97 | R84: 5.875056389 | S84: 1.014271989 | T84: 0.983441183 | AJ84: =R84/AI84 ->  | AK84: =Q84/AH84 -> 
C85: 32 | D85: 236.3952 | E85: 32.88738467 | F85: 37.48456133 | G85: 38.80678667 | H85: 17471.282 | I85: 41.454 | J85: 3.770733333 | L85: 235.5856 | M85: 32.90109667 | N85: 37.50380433 | O85: 38.81047367 | P85: 17836.89 | Q85: 41.203 | R85: 4.954691667 | S85: 1.020926226 | T85: 0.9939450958
C86: 37 | D86: 114.16 | E86: 29.93722433 | F86: 35.994278 | G86: 37.185145 | H86: 13749.062 | I86: 41.016 | J86: 2.965308333 | L86: 113.7976 | M86: 29.95203733 | N86: 35.997651 | O86: 37.190543 | P86: 14063.438 | Q86: 41.78 | R86: 3.906510556 | S86: 1.022865269 | T86: 1.018626877
A87: ClassE | B87: FourPeople | C87: 22
A88: 720p | C88: 27
C89: 32
C90: 37
B91: Johnny | C91: 22
C92: 27
C93: 32
C94: 37
B95: KristenAndSara | C95: 22
C96: 27
C97: 32
C98: 37
A99: ClassF | B99: BasketballDrillText | C99: 22 | D99: 2912.5264 | E99: 41.6341578 | F99: 43.5317626 | G99: 44.2464228 | H99: 107804.938 | I99: 118.64 | J99: 23.42508611 | L99: 2910.7088 | M99: 41.6343082 | N99: 43.5257676 | O99: 44.2427678 | P99: 109381.252 | Q99: 124.691 | R99: 30.38368111 | S99: =P99/H99 -> 1.014621909 | T99: 1.051003034 | V99: =bdrate($D99:$D102,E99:E102,$L99:$L102,M99:M102) -> 1.860463399e-06 | W99: =bdrate($D99:$D102,F99:F102,$L99:$L102,N99:N102) -> 0.000617995721 | X99: =bdrate($D99:$D102,G99:G102,$L99:$L102,O99:O102) -> 0.0002361193631 | Y99: =bdrateOld($D99:$D102,E99:E102,$L99:$L102,M99:M102) -> -7.009253075e-06 | Z99: =bdrateOld($D99:$D102,F99:F102,$L99:$L102,N99:N102) -> 0.0009194578883 | AA99: =bdrateOld($D99:$D102,G99:G102,$L99:$L102,O99:O102) -> 0.0003079743748 | AM99: =bdrate($AC99:$AC102,AD99:AD102,$L99:$L102, M99:M102) ->  | AN99: =bdrate($AC99:$AC102,AE99:AE102,$L99:$L102, N99:N102) ->  | AO99: =bdrate($AC99:$AC102,AF99:AF102,$L99:$L102, O99:O102) ->  | AP99: =bdrateOld($AC99:$AC102,AD99:AD102,$L99:$L102, M99:M102) ->  | AQ99: =bdrateOld($AC99:$AC102,AE99:AE102,$L99:$L102, N99:N102) ->  | AR99: =bdrateOld($AC99:$AC102,AF99:AF102,$L99:$L102, O99:O102) -> 
C100: 27 | D100: 1385.6656 | E100: 38.3682606 | F100: 41.2808942 | G100: 41.6545524 | H100: 92765.407 | I100: 122.346 | J100: 19.85430556 | L100: 1386.34 | M100: 38.3703146 | N100: 41.2715144 | O100: 41.650395 | P100: 94268.265 | Q100: 124.33 | R100: 26.18562917 | S100: 1.01620063 | T100: 1.016216305
C101: 32 | D101: 708.3328 | E101: 35.35046 | F101: 39.3630546 | G101: 39.5889432 | H101: 76154.437 | I101: 136.53 | J101: 16.18270278 | L101: 709.0368 | M101: 35.352416 | N101: 39.3760048 | O101: 39.594474 | P101: 77725.64 | Q101: 138.063 | R101: 21.59045556 | S101: 1.020631799 | T101: 1.011228301
C102: 37 | D102: 368.148 | E102: 32.6155508 | F102: 37.6856942 | G102: 37.6956122 | H102: 62888.986 | I102: 150.093 | J102: 13.41303056 | L102: 367.4688 | M102: 32.6120048 | N102: 37.6782006 | O102: 37.69792 | P102: 64569.045 | Q102: 150.986 | R102: 17.93584583 | S102: 1.026714678 | T102: 1.005949645
B103: ChinaSpeed | C103: 22 | D103: 4480.19472 | E103: 43.2521434 | F103: 46.5667638 | G103: 46.5046856 | H103: 261912.813 | I103: 199.268 | J103: 57.01335556 | L103: 4476.024 | M103: 43.2556042 | N103: 46.5713712 | O103: 46.5025964 | P103: 265036.251 | Q103: 207.487 | R103: 73.62118083 | S103: 1.011925488 | T103: 1.04124596 | V103: =bdrate($D103:$D106,E103:E106,$L103:$L106,M103:M106) -> -0.001035264826 | W103: =bdrate($D103:$D106,F103:F106,$L103:$L106,N103:N106) -> -0.001519107532 | X103: =bdrate($D103:$D106,G103:G106,$L103:$L106,O103:O106) -> -0.001300525308 | Y103: =bdrateOld($D103:$D106,E103:E106,$L103:$L106,M103:M106) -> -0.001017414862 | Z103: =bdrateOld($D103:$D106,F103:F106,$L103:$L106,N103:N106) -> -0.001284645282 | AA103: =bdrateOld($D103:$D106,G103:G106,$L103:$L106,O103:O106) -> -0.001309563124 | AM103: =bdrate($AC103:$AC106,AD103:AD106,$L103:$L106, M103:M106) ->  | AN103: =bdrate($AC103:$AC106,AE103:AE106,$L103:$L106, N103:N106) ->  | AO103: =bdrate($AC103:$AC106,AF103:AF106,$L103:$L106, O103:O106) ->  | AP103: =bdrateOld($AC103:$AC106,AD103:AD106,$L103:$L106, M103:M106) ->  | AQ103: =bdrateOld($AC103:$AC106,AE103:AE106,$L103:$L106, N103:N106) ->  | AR103: =bdrateOld($AC103:$AC106,AF103:AF106,$L103:$L106, O103:O106) -> 
C104: 27 | D104: 2216.59104 | E104: 39.1523146 | F104: 44.2690732 | G104: 43.9418356 | H104: 210565.956 | I104: 208.532 | J104: 45.16204722 | L104: 2215.86864 | M104: 39.1532934 | N104: 44.2711502 | O104: 43.9474332 | P104: 213488.269 | Q104: 212.189 | R104: 59.30229694 | S104: 1.013878374 | T104: 1.017536877
C105: 32 | D105: 1158.41808 | E105: 35.7133398 | F105: 42.4813066 | G105: 41.8819286 | H105: 170484.581 | I105: 221.515 | J105: 35.58251111 | L105: 1157.316 | M105: 35.7150222 | N105: 42.4875834 | O105: 41.8844116 | P105: 173358.018 | Q105: 222.845 | R105: 48.155005 | S105: 1.016854527 | T105: 1.006004108
C106: 37 | D106: 569.38944 | E106: 32.519633 | F106: 40.839844 | G106: 39.7223782 | H106: 139068.22 | I106: 234.345 | J106: 28.83719722 | L106: 569.66304 | M106: 32.5284974 | N106: 40.834003 | O106: 39.7204242 | P106: 141746.921 | Q106: 235.66 | R106: 39.37414472 | S106: 1.019261777 | T106: 1.005611385
B107: SlideEditing | C107: 22 | D107: 1285.7128 | E107: 50.32902 | F107: 48.11980733 | G107: 47.98269433 | H107: 40176.704 | I107: 43.061 | J107: 6.345869444 | L107: 1285.1976 | M107: 50.327989 | N107: 48.11885033 | O107: 47.98234233 | P107: 40811.484 | Q107: 45.111 | R107: 11.33652333 | S107: 1.015799703 | T107: 1.047606883 | V107: =bdrate($D107:$D110,E107:E110,$L107:$L110,M107:M110) -> -3.160510963e-05 | W107: =bdrate($D107:$D110,F107:F110,$L107:$L110,N107:N110) -> -1.745671896e-06 | X107: =bdrate($D107:$D110,G107:G110,$L107:$L110,O107:O110) -> 7.113153793e-05 | Y107: =bdrateOld($D107:$D110,E107:E110,$L107:$L110,M107:M110) -> -2.941496318e-05 | Z107: =bdrateOld($D107:$D110,F107:F110,$L107:$L110,N107:N110) -> -5.414895201e-05 | AA107: =bdrateOld($D107:$D110,G107:G110,$L107:$L110,O107:O110) -> -1.978720477e-05 | AM107: =bdrate($AC107:$AC110,AD107:AD110,$L107:$L110, M107:M110) ->  | AN107: =bdrate($AC107:$AC110,AE107:AE110,$L107:$L110, N107:N110) ->  | AO107: =bdrate($AC107:$AC110,AF107:AF110,$L107:$L110, O107:O110) ->  | AP107: =bdrateOld($AC107:$AC110,AD107:AD110,$L107:$L110, M107:M110) ->  | AQ107: =bdrateOld($AC107:$AC110,AE107:AE110,$L107:$L110, N107:N110) ->  | AR107: =bdrateOld($AC107:$AC110,AF107:AF110,$L107:$L110, O107:O110) -> 
C108: 27 | D108: 981.8688 | E108: 46.29472967 | F108: 43.90428667 | G108: 44.25509433 | H108: 37634.86 | I108: 42.376 | J108: 6.069466667 | L108: 981.824 | M108: 46.29456267 | N108: 43.90393067 | O108: 44.25438733 | P108: 38361.862 | Q108: 45.206 | R108: 10.65607278 | S108: 1.01931725 | T108: 1.066783085
C109: 32 | D109: 749.7456 | E109: 41.803252 | F109: 40.82899533 | G109: 41.709359 | H109: 35443.611 | I109: 42.905 | J109: 5.726194444 | L109: 749.9912 | M109: 41.807619 | N109: 40.82881933 | O109: 41.707566 | P109: 36101.578 | Q109: 45.423 | R109: 10.02821611 | S109: 1.018563769 | T109: 1.058687799
C110: 37 | D110: 565.3328 | E110: 37.083649 | F110: 39.017 | G110: 40.14318133 | H110: 33252.704 | I110: 46.783 | J110: 5.520386111 | L110: 565.2552 | M110: 37.082523 | N110: 39.017478 | O110: 40.14294633 | P110: 34071.766 | Q110: 51.313 | R110: 9.464379444 | S110: 1.02463144 | T110: 1.096830045
B111: SlideShow | C111: 22 | D111: 700.14592 | E111: 52.2445382 | F111: 54.893491 | G111: 55.875517 | H111: 111704.252 | I111: 110.345 | J111: 20.20105556 | L111: 699.83136 | M111: 52.242114 | N111: 54.897537 | O111: 55.879342 | P111: 114149.893 | Q111: 124.968 | R111: 31.70830361 | S111: 1.021893894 | T111: 1.13252073 | V111: =bdrate($D111:$D114,E111:E114,$L111:$L114,M111:M114) -> -0.0005181808238 | W111: =bdrate($D111:$D114,F111:F114,$L111:$L114,N111:N114) -> 0.0001864744549 | X111: =bdrate($D111:$D114,G111:G114,$L111:$L114,O111:O114) -> -0.001743571511 | Y111: =bdrateOld($D111:$D114,E111:E114,$L111:$L114,M111:M114) -> -0.0005033386551 | Z111: =bdrateOld($D111:$D114,F111:F114,$L111:$L114,N111:N114) -> 0.000126040304 | AA111: =bdrateOld($D111:$D114,G111:G114,$L111:$L114,O111:O114) -> -0.001801888069 | AM111: =bdrate($AC111:$AC114,AD111:AD114,$L111:$L114, M111:M114) ->  | AN111: =bdrate($AC111:$AC114,AE111:AE114,$L111:$L114, N111:N114) ->  | AO111: =bdrate($AC111:$AC114,AF111:AF114,$L111:$L114, O111:O114) ->  | AP111: =bdrateOld($AC111:$AC114,AD111:AD114,$L111:$L114, M111:M114) ->  | AQ111: =bdrateOld($AC111:$AC114,AE111:AE114,$L111:$L114, N111:N114) ->  | AR111: =bdrateOld($AC111:$AC114,AF111:AF114,$L111:$L114, O111:O114) -> 
C112: 27 | D112: 421.30016 | E112: 48.3790666 | F112: 52.206363 | G112: 53.298566 | H112: 99095.8 | I112: 114.052 | J112: 17.76121389 | L112: 421.21536 | M112: 48.3855912 | N112: 52.225488 | O112: 53.3212372 | P112: 101390.082 | Q112: 130.139 | R112: 28.16391167 | S112: 1.023152162 | T112: 1.141049697
C113: 32 | D113: 269.59232 | E113: 44.8609966 | F113: 49.8826698 | G113: 51.2780236 | H113: 88364.647 | I113: 116.736 | J113: 15.73632222 | L113: 269.1904 | M113: 44.8590178 | N113: 49.8633306 | O113: 51.2734948 | P113: 90784.315 | Q113: 132.722 | R113: 25.21786528 | S113: 1.027382761 | T113: 1.136941475
C114: 37 | D114: 176.81152 | E114: 41.3609062 | F114: 47.6068698 | G114: 49.5136634 | H114: 79109.175 | I114: 116.902 | J114: 14.20071111 | L114: 177.08352 | M114: 41.3491286 | N114: 47.559382 | O114: 49.4906284 | P114: 82003.048 | Q114: 134.594 | R114: 22.77862444 | S114: 1.036580751 | T114: 1.151340439
B115: Class A1 | I115: =GEOMEAN(I3:I18) -> 1227.733668 | J115: =GEOMEAN(J3:J18) -> 219.3404589 | Q115: =GEOMEAN(Q3:Q18) -> 1247.575719 | R115: =GEOMEAN(R3:R18) -> 341.1226636 | S115: =GEOMEAN(S3:S18) -> 1.02272261 | T115: 1.016161527 | V115: =AVERAGE(V3:V18) -> -0.003225904871 | W115: =AVERAGE(W3:W18) -> -0.002639426853 | X115: -0.003961055176 | Y115: -0.003174633903 | Z115: -0.002589642038 | AA115: -0.004007119935 | AH115: =GEOMEAN(AH3:AH18) ->  | AI115: =GEOMEAN(AI3:AI18) ->  | AJ115: =GEOMEAN(AJ3:AJ18) ->  | AM115: =AVERAGE(AM3:AM18) ->  | AN115: =AVERAGE(AN3:AN18) -> 
B116: Class A2 | I116: =GEOMEAN(I19:I34) -> 1278.394203 | J116: =GEOMEAN(J19:J34) -> 118.6238429 | Q116: =GEOMEAN(Q19:Q34) -> 1271.996837 | R116: =GEOMEAN(R19:R34) -> 178.5705928 | S116: =GEOMEAN(S19:S34) -> 1.025997947 | T116: 0.9949957799 | V116: =AVERAGE(V19:V34) -> -0.007074275483 | W116: =AVERAGE(W19:W34) -> -0.006313924705 | X116: -0.006501883865 | Y116: -0.007006837413 | Z116: -0.006299343722 | AA116: -0.006490473742 | AH116: =GEOMEAN(AH19:AH34) ->  | AI116: =GEOMEAN(AI19:AI34) ->  | AJ116: =GEOMEAN(AJ19:AJ34) ->  | AM116: =AVERAGE(AM19:AM34) ->  | AN116: =AVERAGE(AN19:AN34) -> 
B117: Class B | I117: =GEOMEAN(I35:I54) -> 468.2535965 | J117: =GEOMEAN(J35:J54) -> 42.05218107 | Q117: =GEOMEAN(Q35:Q54) -> 484.0155468 | R117: =GEOMEAN(R35:R54) -> 73.10692976 | S117: =GEOMEAN(S35:S54) -> 1.028449859 | T117: 1.033661141 | V117: =AVERAGE(V35:V54) -> -0.003008221017 | W117: =AVERAGE(W35:W54) -> -0.004074079982 | X117: -0.004293887101 | Y117: -0.003019133066 | Z117: -0.004059222306 | AA117: -0.004384375285 | AH117: =GEOMEAN(AH35:AH54) ->  | AI117: =GEOMEAN(AI35:AI54) ->  | AJ117: =GEOMEAN(AJ35:AJ54) ->  | AM117: =AVERAGE(AM35:AM54) ->  | AN117: =AVERAGE(AN35:AN54) -> 
B118: Class C | I118: =GEOMEAN(I55:I70) -> 146.5860124 | J118: =GEOMEAN(J55:J70) -> 17.66866242 | Q118: =GEOMEAN(Q55:Q70) -> 148.7087087 | R118: =GEOMEAN(R55:R70) -> 23.49578783 | S118: =GEOMEAN(S55:S70) -> 1.020834688 | T118: 1.014480892 | V118: =AVERAGE(V55:V70) -> -0.004238347393 | W118: =AVERAGE(W55:W70) -> -0.00567019224 | X118: -0.00605025271 | Y118: -0.004236870584 | Z118: -0.005565524927 | AA118: -0.00616528758 | AH118: =GEOMEAN(AH55:AH70) ->  | AI118: =GEOMEAN(AI55:AI70) ->  | AJ118: =GEOMEAN(AJ55:AJ70) ->  | AM118: =AVERAGE(AM55:AM70) ->  | AN118: =AVERAGE(AN55:AN70) -> 
B119: Class D | I119: =GEOMEAN(I71:I86) -> 59.10492749 | J119: =GEOMEAN(J71:J86) -> 4.205012798 | Q119: =GEOMEAN(Q71:Q86) -> 60.46223857 | R119: =GEOMEAN(R71:R86) -> 5.688978334 | S119: =GEOMEAN(S71:S86) -> 1.026913093 | T119: 1.022964432 | V119: =AVERAGE(V71:V86) -> -0.003803422169 | W119: =AVERAGE(W71:W86) -> -0.003873215476 | X119: -0.002774191124 | Y119: -0.003817613615 | Z119: -0.00360770537 | AA119: -0.002489365194 | AH119: =GEOMEAN(AH71:AH86) ->  | AI119: =GEOMEAN(AI71:AI86) ->  | AJ119: =GEOMEAN(AJ71:AJ86) ->  | AM119: =AVERAGE(AM71:AM86) ->  | AN119: =AVERAGE(AN71:AN86) -> 
B120: Class E | I120: =GEOMEAN(I87:I98) ->  | J120: =GEOMEAN(J87:J98) ->  | Q120: =GEOMEAN(Q87:Q98) ->  | R120: =GEOMEAN(R87:R98) ->  | S120: =GEOMEAN(S87:S98) ->  | V120: =AVERAGE(V87:V96) ->  | W120: =AVERAGE(W87:W96) ->  | AH120: =GEOMEAN(AH87:AH98) ->  | AI120: =GEOMEAN(AI87:AI98) ->  | AJ120: =GEOMEAN(AJ87:AJ98) ->  | AM120: =AVERAGE(AM87:AM96) ->  | AN120: =AVERAGE(AN87:AN96) -> 
B121: Class F | I121: =GEOMEAN(I99:I114) -> 109.1120101 | J121: =GEOMEAN(J99:J114) -> 16.34836918 | Q121: =GEOMEAN(Q99:Q114) -> 115.7041705 | R121: =GEOMEAN(R99:R114) -> 24.32242028 | S121: =GEOMEAN(S99:S114) -> 1.020445395 | T121: 1.060416451 | V121: =AVERAGE(V99:V114) -> -0.000395797574 | W121: =AVERAGE(W99:W114) -> -0.0001790957571 | X121: -0.0006842114795 | Y121: -0.0003892944334 | Z121: -7.332401052e-05 | AA121: -0.0007058160059 | AH121: =GEOMEAN(AH99:AH114) ->  | AI121: =GEOMEAN(AI99:AI114) ->  | AJ121: =GEOMEAN(AJ99:AJ114) ->  | AM121: =AVERAGE(AM99:AM114) ->  | AN121: =AVERAGE(AN99:AN114) -> 
B122: All | I122: =GEOMEAN(I3:I98) -> 368.1429529 | J122: =GEOMEAN(J3:J98) -> 37.85243393 | Q122: =GEOMEAN(Q3:Q98) -> 374.4713629 | R122: =GEOMEAN(R3:R98) -> 53.9553287 | S122: =GEOMEAN(S3:S98) -> 1.025144797 | T122: 1.017190089 | V122: =AVERAGE(V3:V98) -> -0.004209947845 | W122: =AVERAGE(W3:W98) -> -0.004493211286 | X122: -0.004696141286 | Y122: -0.004192356543 | Z122: -0.004406903608 | AA122: -0.004691945821 | AH122: =GEOMEAN(AH3:AH98) ->  | AI122: =GEOMEAN(AI3:AI98) ->  | AJ122: =GEOMEAN(AJ3:AJ98) ->  | AM122: =AVERAGE(AM3:AM98) ->  | AN122: =AVERAGE(AN3:AN98) -> 
B123: Time geomean | I123: =GEOMEAN(I3:I114) -> 303.0494233 | J123: =GEOMEAN(J3:J114) -> 33.04954056 | Q123: =GEOMEAN(Q3:Q114) -> 310.318363 | R123: =GEOMEAN(R3:R114) -> 47.24578656 | AH123: =GEOMEAN(AH3:AH114) ->  | AI123: =GEOMEAN(AI3:AI114) -> 
B124: Time ratio | Q124: =Q123/I123 -> 1.023985988 | R124: =R123/J123 -> 1.429544428
B125: Time sum (hours) | AH125: =SUM(AH3:AH114)/3600 -> 0 | AI125: =SUM(AI3:AI114) -> 0

Sheet Ref
A1: KTADev_intra_jvet10_SEIDecodedPictureHash=1_SEIDecodedPictureHash=1_SEIDecodedPictureHash=1_qtbt-test3_ClassA1_S01_q0_22_F294_T8 | B1: 20967.2205 | C1: 41.8197 | D1: 49.54 | E1: 48.2518 | F1: 216452.82 | G1: 42.73 | H1: 1256.3 | I1: 0
A2: KTADev_intra_jvet10_SEIDecodedPictureHash=1_SEIDecodedPictureHash=1_SEIDecodedPictureHash=1_qtbt-test3_ClassA1_S01_q0_27_F294_T8 | B2: 6217.4676 | C2: 40.2917 | D2: 48.5072 | E2: 46.6073 | F2: 96387.63 | G2: 35.35 | H2: 1282.5 | I2: 0
A3: KTADev_intra_jvet10_SEIDecodedPictureHash=1_SEIDecodedPictureHash=1_SEIDecodedPictureHash=1_qtbt-test3_ClassA1_S01_q0_32_F294_T8 | B3: 3459.8822 | C3: 39.5003 | D3: 47.4729 | E3: 45.1528 | F3: 53261.99 | G3: 32.14 | H3: 1286.98 | I3: 0
A4: KTADev_intra_jvet10_SEIDecodedPictureHash=1_SEIDecodedPictureHash=1_SEIDecodedPictureHash=1_qtbt-test3_ClassA1_S01_q0_37_F294_T8 | B4: 2085.287 | C4: 38.388 | D4: 46.5502 | E4: 43.859 | F4: 33039.4 | G4: 29.36 | H4: 1257.25 | I4: 0
A5: KTADev_intra_jvet10_SEIDecodedPictureHash=1_SEIDecodedPictureHash=1_SEIDecodedPictureHash=1_qtbt-test3_ClassA1_S02_q0_22_F300_T8 | B5: 56702.1263 | C5: 46.0893 | D5: 45.0448 | E5: 43.5047 | F5: 203023.8 | G5: 46.29 | H5: 1127.47 | I5: 0
A6: KTADev_intra_jvet10_SEIDecodedPictureHash=1_SEIDecodedPictureHash=1_SEIDecodedPictureHash=1_qtbt-test3_ClassA1_S02_q0_27_F300_T8 | B6: 28011.2553 | C6: 41.9878 | D6: 43.0827 | E6: 41.4206 | F6: 146052.03 | G6: 40.74 | H6: 1181.29 | I6: 0
A7: KTADev_intra_jvet10_SEIDecodedPictureHash=1_SEIDecodedPictureHash=1_SEIDecodedPictureHash=1_qtbt-test3_ClassA1_S02_q0_32_F300_T8 | B7: 14573.8947 | C7: 39.1545 | D7: 41.5674 | E7: 39.9543 | F7: 91725.77 | G7: 36.39 | H7: 1142.72 | I7: 0
A8: KTADev_intra_jvet10_SEIDecodedPictureHash=1_SEIDecodedPictureHash=1_SEIDecodedPictureHash=1_qtbt-test3_ClassA1_S02_q0_37_F300_T8 | B8: 7885.95 | C8: 36.5786 | D8: 40.4312 | E8: 38.9487 | F8: 56183.89 | G8: 33.96 | H8: 1222.57 | I8: 0
A9: KTADev_intra_jvet10_SEIDecodedPictureHash=1_SEIDecodedPictureHash=1_SEIDecodedPictureHash=1_qtbt-test3_ClassA1_S03_q0_22_F300_T8 | B9: 22748.4489 | C9: 42.8026 | D9: 45.6034 | E9: 44.6236 | F9: 227499.86 | G9: 46.45 | H9: 1185.78 | I9: 0
A10: KTADev_intra_jvet10_SEIDecodedPictureHash=1_SEIDecodedPictureHash=1_SEIDecodedPictureHash=1_qtbt-test3_ClassA1_S03_q0_27_F300_T8 | B10: 7698.795 | C10: 39.1139 | D10: 42.1362 | E10: 42.5596 | F10: 125831.24 | G10: 35.74 | H10: 1179.48 | I10: 0
A11: KTADev_intra_jvet10_SEIDecodedPictureHash=1_SEIDecodedPictureHash=1_SEIDecodedPictureHash=1_qtbt-test3_ClassA1_S03_q0_32_F300_T8 | B11: 3241.9374 | C11: 37.4432 | D11: 39.5716 | E11: 41.0367 | F11: 67507.55 | G11: 30.75 | H11: 1181.34 | I11: 0
A12: KTADev_intra_jvet10_SEIDecodedPictureHash=1_SEIDecodedPictureHash=1_SEIDecodedPictureHash=1_qtbt-test3_ClassA1_S03_q0_37_F300_T8 | B12: 1757.5816 | C12: 36.0511 | D12: 37.6737 | E12: 39.6012 | F12: 36931.87 | G12: 27.73 | H12: 1184.49 | I12: 0
A13: KTADev_intra_jvet10_SEIDecodedPictureHash=1_SEIDecodedPictureHash=1_SEIDecodedPictureHash=1_qtbt-test3_ClassA1_S04_q0_22_F300_T8 | B13: 50702.0163 | C13: 43.962 | D13: 47.7876 | E13: 44.1868 | F13: 281987.57 | G13: 51.05 | H13: 1273.91 | I13: 0
A14: KTADev_intra_jvet10_SEIDecodedPictureHash=1_SEIDecodedPictureHash=1_SEIDecodedPictureHash=1_qtbt-test3_ClassA1_S04_q0_27_F300_T8 | B14: 28143.3458 | C14: 40.6318 | D14: 45.6038 | E14: 41.5806 | F14: 207552.91 | G14: 45.76 | H14: 1249.67 | I14: 0
A15: KTADev_intra_jvet10_SEIDecodedPictureHash=1_SEIDecodedPictureHash=1_SEIDecodedPictureHash=1_qtbt-test3_ClassA1_S04_q0_32_F300_T8 | B15: 15655.11 | C15: 37.4715 | D15: 44.5575 | E15: 40.2541 | F15: 150511.28 | G15: 40.2 | H15: 1288.35 | I15: 0
A16: KTADev_intra_jvet10_SEIDecodedPictureHash=1_SEIDecodedPictureHash=1_SEIDecodedPictureHash=1_qtbt-test3_ClassA1_S04_q0_37_F300_T8 | B16: 8271.5984 | C16: 34.4056 | D16: 43.8691 | E16: 39.5573 | F16: 98970.9 | G16: 37.21 | H16: 1244.63 | I16: 0
A17: KTADev_intra_jvet10_SEIDecodedPictureHash=1_SEIDecodedPictureHash=1_SEIDecodedPictureHash=1_qtbt-test3_ClassA2_S01_q0_22_F300_T8 | B17: 35331.0442 | C17: 42.5268 | D17: 42.5469 | E17: 44.1657 | F17: 210667.52 | G17: 47.53 | H17: 1225.95 | I17: 0
A18: KTADev_intra_jvet10_SEIDecodedPictureHash=1_SEIDecodedPictureHash=1_SEIDecodedPictureHash=1_qtbt-test3_ClassA2_S01_q0_27_F300_T8 | B18: 11994.57 | C18: 39.9792 | D18: 41.4768 | E18: 42.507 | F18: 114000.25 | G18: 36.25 | H18: 1196.97 | I18: 0
A19: KTADev_intra_jvet10_SEIDecodedPictureHash=1_SEIDecodedPictureHash=1_SEIDecodedPictureHash=1_qtbt-test3_ClassA2_S01_q0_32_F300_T8 | B19: 6923.3574 | C19: 38.6455 | D19: 40.6558 | E19: 41.0464 | F19: 69098.06 | G19: 33.68 | H19: 1176.24 | I19: 0
A20: KTADev_intra_jvet10_SEIDecodedPictureHash=1_SEIDecodedPictureHash=1_SEIDecodedPictureHash=1_qtbt-test3_ClassA2_S01_q0_37_F300_T8 | B20: 4145.0037 | C20: 36.8235 | D20: 39.9074 | E20: 39.7919 | F20: 45407.72 | G20: 29.56 | H20: 1211.07 | I20: 0
A21: KTADev_intra_jvet10_SEIDecodedPictureHash=1_SEIDecodedPictureHash=1_SEIDecodedPictureHash=1_qtbt-test3_ClassA2_S02_q0_22_F300_T8 | B21: 14126.8761 | C21: 40.9295 | D21: 47.4279 | E21: 47.0441 | F21: 229652.94 | G21: 43.8 | H21: 1112.74 | I21: 0
A22: KTADev_intra_jvet10_SEIDecodedPictureHash=1_SEIDecodedPictureHash=1_SEIDecodedPictureHash=1_qtbt-test3_ClassA2_S02_q0_27_F300_T8 | B22: 5423.5911 | C22: 39.3182 | D22: 45.6028 | E22: 45.466 | F22: 115459.96 | G22: 36.07 | H22: 1184.19 | I22: 0
A23: KTADev_intra_jvet10_SEIDecodedPictureHash=1_SEIDecodedPictureHash=1_SEIDecodedPictureHash=1_qtbt-test3_ClassA2_S02_q0_32_F300_T8 | B23: 2735.2942 | C23: 37.9895 | D23: 44.151 | E23: 44.0313 | F23: 67836.16 | G23: 32.05 | H23: 1200.02 | I23: 0
A24: KTADev_intra_jvet10_SEIDecodedPictureHash=1_SEIDecodedPictureHash=1_SEIDecodedPictureHash=1_qtbt-test3_ClassA2_S02_q0_37_F300_T8 | B24: 1441.8379 | C24: 36.3883 | D24: 43.116 | E24: 42.9014 | F24: 40416.66 | G24: 30.66 | H24: 1190.82 | I24: 0
A25: KTADev_intra_jvet10_SEIDecodedPictureHash=1_SEIDecodedPictureHash=1_SEIDecodedPictureHash=1_qtbt-test3_ClassA2_S03_q0_22_F300_T8 | B25: 56020.6342 | C25: 41.391 | D25: 46.602 | E25: 44.7208 | F25: 314643.92 | G25: 52.72 | H25: 1214.43 | I25: 0
A26: KTADev_intra_jvet10_SEIDecodedPictureHash=1_SEIDecodedPictureHash=1_SEIDecodedPictureHash=1_qtbt-test3_ClassA2_S03_q0_27_F300_T8 | B26: 12437.2468 | C26: 37.8915 | D26: 45.1425 | E26: 42.9673 | F26: 134338.03 | G26: 35.03 | H26: 1195.15 | I26: 0
A27: KTADev_intra_jvet10_SEIDecodedPictureHash=1_SEIDecodedPictureHash=1_SEIDecodedPictureHash=1_qtbt-test3_ClassA2_S03_q0_32_F300_T8 | B27: 6639.3426 | C27: 36.878 | D27: 43.8312 | E27: 41.4675 | F27: 77316.83 | G27: 33.49 | H27: 1149.51 | I27: 0
A28: KTADev_intra_jvet10_SEIDecodedPictureHash=1_SEIDecodedPictureHash=1_SEIDecodedPictureHash=1_qtbt-test3_ClassA2_S03_q0_37_F300_T8 | B28: 3717.3947 | C28: 35.4768 | D28: 42.804 | E28: 40.3801 | F28: 48150.02 | G28: 29.49 | H28: 1226.33 | I28: 0
A29: KTADev_intra_jvet10_SEIDecodedPictureHash=1_SEIDecodedPictureHash=1_SEIDecodedPictureHash=1_qtbt-test3_ClassA2_S04_q0_22_F300_T8 | B29: 12862.0026 | C29: 47.3215 | D29: 48.8504 | E29: 47.4976 | F29: 108102.37 | G29: 39.07 | H29: 1256.71 | I29: 0
A30: KTADev_intra_jvet10_SEIDecodedPictureHash=1_SEIDecodedPictureHash=1_SEIDecodedPictureHash=1_qtbt-test3_ClassA2_S04_q0_27_F300_T8 | B30: 6750.6584 | C30: 45.2379 | D30: 46.6141 | E30: 45.3218 | F30: 71746.54 | G30: 35.89 | H30: 1281.54 | I30: 0
A31: KTADev_intra_jvet10_SEIDecodedPictureHash=1_SEIDecodedPictureHash=1_SEIDecodedPictureHash=1_qtbt-test3_ClassA2_S04_q0_32_F300_T8 | B31: 3931.8126 | C31: 43.0115 | D31: 44.7778 | E31: 43.9417 | F31: 47745.29 | G31: 32.56 | H31: 1290.66 | I31: 0
A32: KTADev_intra_jvet10_SEIDecodedPictureHash=1_SEIDecodedPictureHash=1_SEIDecodedPictureHash=1_qtbt-test3_ClassA2_S04_q0_37_F300_T8 | B32: 2320.02 | C32: 40.4662 | D32: 43.2705 | E32: 42.8922 | F32: 31621.42 | G32: 31.74 | H32: 1255.73 | I32: 0
A33: KTADev_intra_jvet10_SEIDecodedPictureHash=1_SEIDecodedPictureHash=1_SEIDecodedPictureHash=1_qtbt-test3_ClassB_S01_q0_22_F240_T8 | B33: 2512.9488 | C33: 43.0519 | D33: 44.5261 | E33: 45.9976 | F33: 34957.6 | G33: 8.1 | H33: 355.41 | I33: 0
A34: KTADev_intra_jvet10_SEIDecodedPictureHash=1_SEIDecodedPictureHash=1_SEIDecodedPictureHash=1_qtbt-test3_ClassB_S01_q0_27_F240_T8 | B34: 1369.5872 | C34: 41.458 | D34: 42.8276 | E34: 43.665 | F34: 23127.7 | G34: 7.23 | H34: 395.51 | I34: 0
A35: KTADev_intra_jvet10_SEIDecodedPictureHash=1_SEIDecodedPictureHash=1_SEIDecodedPictureHash=1_qtbt-test3_ClassB_S01_q0_32_F240_T8 | B35: 781.6272 | C35: 39.4621 | D35: 41.4779 | E35: 42.1331 | F35: 16552.96 | G35: 6.75 | H35: 395.81 | I35: 0
A36: KTADev_intra_jvet10_SEIDecodedPictureHash=1_SEIDecodedPictureHash=1_SEIDecodedPictureHash=1_qtbt-test3_ClassB_S01_q0_37_F240_T8 | B36: 442.4688 | C36: 37.0324 | D36: 40.5102 | E36: 41.2287 | F36: 10875.08 | G36: 6.64 | H36: 375.03 | I36: 0
A37: KTADev_intra_jvet10_SEIDecodedPictureHash=1_SEIDecodedPictureHash=1_SEIDecodedPictureHash=1_qtbt-test3_ClassB_S02_q0_22_F240_T8 | B37: 6207.2072 | C37: 42.2993 | D37: 43.4473 | E37: 44.0231 | F37: 57761.56 | G37: 11.21 | H37: 390 | I37: 0
A38: KTADev_intra_jvet10_SEIDecodedPictureHash=1_SEIDecodedPictureHash=1_SEIDecodedPictureHash=1_qtbt-test3_ClassB_S02_q0_27_F240_T8 | B38: 3383.5512 | C38: 39.2673 | D38: 41.1255 | E38: 41.2831 | F38: 41256.08 | G38: 9.05 | H38: 377.65 | I38: 0
A39: KTADev_intra_jvet10_SEIDecodedPictureHash=1_SEIDecodedPictureHash=1_SEIDecodedPictureHash=1_qtbt-test3_ClassB_S02_q0_32_F240_T8 | B39: 1775.4208 | C39: 36.2303 | D39: 39.3134 | E39: 39.729 | F39: 29425.82 | G39: 7.93 | H39: 402.65 | I39: 0
A40: KTADev_intra_jvet10_SEIDecodedPictureHash=1_SEIDecodedPictureHash=1_SEIDecodedPictureHash=1_qtbt-test3_ClassB_S02_q0_37_F240_T8 | B40: 887.6936 | C40: 33.3537 | D40: 38.0663 | E40: 38.9749 | F40: 18581.03 | G40: 6.67 | H40: 369.72 | I40: 0
A41: KTADev_intra_jvet10_SEIDecodedPictureHash=1_SEIDecodedPictureHash=1_SEIDecodedPictureHash=1_qtbt-test3_ClassB_S03_q0_22_F500_T8 | B41: 13166.5508 | C41: 41.3142 | D41: 41.5312 | E41: 44.3469 | F41: 127358.38 | G41: 22.99 | H41: 372.79 | I41: 0
A42: KTADev_intra_jvet10_SEIDecodedPictureHash=1_SEIDecodedPictureHash=1_SEIDecodedPictureHash=1_qtbt-test3_ClassB_S03_q0_27_F500_T8 | B42: 5717.5968 | C42: 38.3994 | D42: 39.6 | E42: 42.3697 | F42: 78005.89 | G42: 18 | H42: 379.69 | I42: 0
A43: KTADev_intra_jvet10_SEIDecodedPictureHash=1_SEIDecodedPictureHash=1_SEIDecodedPictureHash=1_qtbt-test3_ClassB_S03_q0_32_F500_T8 | B43: 3086.181 | C43: 36.2684 | D43: 38.5975 | E43: 40.7276 | F43: 51115.73 | G43: 15.84 | H43: 386.58 | I43: 0
A44: KTADev_intra_jvet10_SEIDecodedPictureHash=1_SEIDecodedPictureHash=1_SEIDecodedPictureHash=1_qtbt-test3_ClassB_S03_q0_37_F500_T8 | B44: 1682.8476 | C44: 33.9304 | D44: 37.7933 | E44: 39.4699 | F44: 33487.4 | G44: 14.62 | H44: 363.17 | I44: 0
A45: KTADev_intra_jvet10_SEIDecodedPictureHash=1_SEIDecodedPictureHash=1_SEIDecodedPictureHash=1_qtbt-test3_ClassB_S04_q0_22_F500_T8 | B45: 8511.9984 | C45: 41.6442 | D45: 44.65 | E45: 46.4904 | F45: 107316.87 | G45: 19.89 | H45: 394.55 | I45: 0
A46: KTADev_intra_jvet10_SEIDecodedPictureHash=1_SEIDecodedPictureHash=1_SEIDecodedPictureHash=1_qtbt-test3_ClassB_S04_q0_27_F500_T8 | B46: 3425.5421 | C46: 39.1487 | D46: 43.3043 | E46: 44.4337 | F46: 62967.62 | G46: 17.37 | H46: 397.51 | I46: 0
A47: KTADev_intra_jvet10_SEIDecodedPictureHash=1_SEIDecodedPictureHash=1_SEIDecodedPictureHash=1_qtbt-test3_ClassB_S04_q0_32_F500_T8 | B47: 1750.4333 | C47: 37.4629 | D47: 41.9919 | E47: 42.5405 | F47: 36693.66 | G47: 15.05 | H47: 390.19 | I47: 0
A48: KTADev_intra_jvet10_SEIDecodedPictureHash=1_SEIDecodedPictureHash=1_SEIDecodedPictureHash=1_qtbt-test3_ClassB_S04_q0_37_F500_T8 | B48: 977.369 | C48: 35.6298 | D48: 40.9183 | E48: 41.0382 | F48: 22296.16 | G48: 12.7 | H48: 388.92 | I48: 0
A49: KTADev_intra_jvet10_SEIDecodedPictureHash=1_SEIDecodedPictureHash=1_SEIDecodedPictureHash=1_qtbt-test3_ClassB_S05_q0_22_F600_T8 | B49: 21372.4976 | C49: 42.7136 | D49: 42.7745 | E49: 44.7591 | F49: 142638.62 | G49: 27.22 | H49: 382.77 | I49: 0
A50: KTADev_intra_jvet10_SEIDecodedPictureHash=1_SEIDecodedPictureHash=1_SEIDecodedPictureHash=1_qtbt-test3_ClassB_S05_q0_27_F600_T8 | B50: 9567.6144 | C50: 37.5698 | D50: 41.0087 | E50: 43.4166 | F50: 107168.76 | G50: 22.34 | H50: 371.67 | I50: 0
A51: KTADev_intra_jvet10_SEIDecodedPictureHash=1_SEIDecodedPictureHash=1_SEIDecodedPictureHash=1_qtbt-test3_ClassB_S05_q0_32_F600_T8 | B51: 4704.988 | C51: 35.0293 | D51: 39.5909 | E51: 42.3003 | F51: 67287.09 | G51: 18.96 | H51: 393.96 | I51: 0
A52: KTADev_intra_jvet10_SEIDecodedPictureHash=1_SEIDecodedPictureHash=1_SEIDecodedPictureHash=1_qtbt-test3_ClassB_S05_q0_37_F600_T8 | B52: 2504.0544 | C52: 32.7054 | D52: 38.6262 | E52: 41.5162 | F52: 44571.11 | G52: 16.63 | H52: 379.97 | I52: 0
A53: KTADev_intra_jvet10_SEIDecodedPictureHash=1_SEIDecodedPictureHash=1_SEIDecodedPictureHash=1_qtbt-test3_ClassC_S01_q0_22_F500_T8 | B53: 2329.1111 | C53: 42.6349 | D53: 44.2053 | E53: 45.0356 | F53: 24499.53 | G53: 5.86 | H53: 136.15 | I53: 0
A54: KTADev_intra_jvet10_SEIDecodedPictureHash=1_SEIDecodedPictureHash=1_SEIDecodedPictureHash=1_qtbt-test3_ClassC_S01_q0_27_F500_T8 | B54: 1255.1825 | C54: 39.2716 | D54: 41.8425 | E54: 42.4368 | F54: 18338.96 | G54: 4.81 | H54: 156.57 | I54: 0
A55: KTADev_intra_jvet10_SEIDecodedPictureHash=1_SEIDecodedPictureHash=1_SEIDecodedPictureHash=1_qtbt-test3_ClassC_S01_q0_32_F500_T8 | B55: 675.9222 | C55: 36.2672 | D55: 39.9529 | E55: 40.3522 | F55: 13350.45 | G55: 4.29 | H55: 151.85 | I55: 0
A56: KTADev_intra_jvet10_SEIDecodedPictureHash=1_SEIDecodedPictureHash=1_SEIDecodedPictureHash=1_qtbt-test3_ClassC_S01_q0_37_F500_T8 | B56: 379.2992 | C56: 33.6259 | D56: 38.4505 | E56: 38.64 | F56: 8368.85 | G56: 3.78 | H56: 140.22 | I56: 0
A57: KTADev_intra_jvet10_SEIDecodedPictureHash=1_SEIDecodedPictureHash=1_SEIDecodedPictureHash=1_qtbt-test3_ClassC_S02_q0_22_F600_T8 | B57: 2722.4848 | C57: 42.5085 | D57: 44.4575 | E57: 46.1795 | F57: 30910.77 | G57: 6.83 | H57: 160.14 | I57: 0
A58: KTADev_intra_jvet10_SEIDecodedPictureHash=1_SEIDecodedPictureHash=1_SEIDecodedPictureHash=1_qtbt-test3_ClassC_S02_q0_27_F600_T8 | B58: 1635.6696 | C58: 39.771 | D58: 42.2978 | E58: 43.7431 | F58: 23648.35 | G58: 5.42 | H58: 157.06 | I58: 0
A59: KTADev_intra_jvet10_SEIDecodedPictureHash=1_SEIDecodedPictureHash=1_SEIDecodedPictureHash=1_qtbt-test3_ClassC_S02_q0_32_F600_T8 | B59: 969.9176 | C59: 36.7884 | D59: 40.4313 | E59: 41.6412 | F59: 17514.16 | G59: 4.87 | H59: 159.57 | I59: 0
A60: KTADev_intra_jvet10_SEIDecodedPictureHash=1_SEIDecodedPictureHash=1_SEIDecodedPictureHash=1_qtbt-test3_ClassC_S02_q0_37_F600_T8 | B60: 558.78 | C60: 33.7288 | D60: 39.0124 | E60: 40.0332 | F60: 12408.75 | G60: 4.3 | H60: 131.59 | I60: 0
A61: KTADev_intra_jvet10_SEIDecodedPictureHash=1_SEIDecodedPictureHash=1_SEIDecodedPictureHash=1_qtbt-test3_ClassC_S03_q0_22_F500_T8 | B61: 5248.081 | C61: 41.8472 | D61: 42.8282 | E61: 43.9528 | F61: 36749.03 | G61: 7.76 | H61: 155.93 | I61: 0
A62: KTADev_intra_jvet10_SEIDecodedPictureHash=1_SEIDecodedPictureHash=1_SEIDecodedPictureHash=1_qtbt-test3_ClassC_S03_q0_27_F500_T8 | B62: 3269.4865 | C62: 37.6012 | D62: 39.9707 | E62: 40.9178 | F62: 30293.47 | G62: 6.38 | H62: 140.35 | I62: 0
A63: KTADev_intra_jvet10_SEIDecodedPictureHash=1_SEIDecodedPictureHash=1_SEIDecodedPictureHash=1_qtbt-test3_ClassC_S03_q0_32_F500_T8 | B63: 1966.3762 | C63: 33.8174 | D63: 37.919 | E63: 38.6634 | F63: 24392.69 | G63: 5.47 | H63: 158.88 | I63: 0
A64: KTADev_intra_jvet10_SEIDecodedPictureHash=1_SEIDecodedPictureHash=1_SEIDecodedPictureHash=1_qtbt-test3_ClassC_S03_q0_37_F500_T8 | B64: 1082.6198 | C64: 30.1343 | D64: 36.4282 | E64: 37.0386 | F64: 18325.65 | G64: 4.31 | H64: 161.75 | I64: 0
A65: KTADev_intra_jvet10_SEIDecodedPictureHash=1_SEIDecodedPictureHash=1_SEIDecodedPictureHash=1_qtbt-test3_ClassC_S04_q0_22_F300_T8 | B65: 1786.1882 | C65: 43.0063 | D65: 43.5228 | E65: 44.4659 | F65: 17445.15 | G65: 3.5 | H65: 156.38 | I65: 0
A66: KTADev_intra_jvet10_SEIDecodedPictureHash=1_SEIDecodedPictureHash=1_SEIDecodedPictureHash=1_qtbt-test3_ClassC_S04_q0_27_F300_T8 | B66: 1074.465 | C66: 39.6504 | D66: 40.3688 | E66: 41.9744 | F66: 13399.44 | G66: 3.09 | H66: 158.59 | I66: 0
A67: KTADev_intra_jvet10_SEIDecodedPictureHash=1_SEIDecodedPictureHash=1_SEIDecodedPictureHash=1_qtbt-test3_ClassC_S04_q0_32_F300_T8 | B67: 621.6095 | C67: 36.283 | D67: 38.1411 | E67: 40.1788 | F67: 10393.38 | G67: 2.91 | H67: 154.46 | I67: 0
A68: KTADev_intra_jvet10_SEIDecodedPictureHash=1_SEIDecodedPictureHash=1_SEIDecodedPictureHash=1_qtbt-test3_ClassC_S04_q0_37_F300_T8 | B68: 321.9616 | C68: 32.8452 | D68: 36.8372 | E68: 38.8544 | F68: 6643.35 | G68: 2.27 | H68: 163.52 | I68: 0
A69: KTADev_intra_jvet10_SEIDecodedPictureHash=1_SEIDecodedPictureHash=1_SEIDecodedPictureHash=1_qtbt-test3_ClassD_S01_q0_22_F500_T8 | B69: 617.169 | C69: 43.8348 | D69: 45.7823 | E69: 45.5306 | F69: 6520.06 | G69: 1.8 | H69: 86.38 | I69: 0
A70: KTADev_intra_jvet10_SEIDecodedPictureHash=1_SEIDecodedPictureHash=1_SEIDecodedPictureHash=1_qtbt-test3_ClassD_S01_q0_27_F500_T8 | B70: 373.0286 | C70: 40.2978 | D70: 42.9483 | E70: 42.4592 | F70: 5088.9 | G70: 1.54 | H70: 87.47 | I70: 0
A71: KTADev_intra_jvet10_SEIDecodedPictureHash=1_SEIDecodedPictureHash=1_SEIDecodedPictureHash=1_qtbt-test3_ClassD_S01_q0_32_F500_T8 | B71: 218.2286 | C71: 36.8726 | D71: 40.5423 | E71: 39.8928 | F71: 3653.96 | G71: 1.36 | H71: 86.43 | I71: 0
A72: KTADev_intra_jvet10_SEIDecodedPictureHash=1_SEIDecodedPictureHash=1_SEIDecodedPictureHash=1_qtbt-test3_ClassD_S01_q0_37_F500_T8 | B72: 123.7095 | C72: 33.6316 | D72: 38.7832 | E72: 37.9782 | F72: 2481.56 | G72: 1.27 | H72: 86.76 | I72: 0
A73: KTADev_intra_jvet10_SEIDecodedPictureHash=1_SEIDecodedPictureHash=1_SEIDecodedPictureHash=1_qtbt-test3_ClassD_S02_q0_22_F600_T8 | B73: 1584.0104 | C73: 42.016 | D73: 43.6282 | E73: 44.8415 | F73: 10310.35 | G73: 2.62 | H73: 108.74 | I73: 0
A74: KTADev_intra_jvet10_SEIDecodedPictureHash=1_SEIDecodedPictureHash=1_SEIDecodedPictureHash=1_qtbt-test3_ClassD_S02_q0_27_F600_T8 | B74: 1013.0552 | C74: 37.6094 | D74: 40.9006 | E74: 42.2457 | F74: 8370.2 | G74: 2.13 | H74: 108.19 | I74: 0
A75: KTADev_intra_jvet10_SEIDecodedPictureHash=1_SEIDecodedPictureHash=1_SEIDecodedPictureHash=1_qtbt-test3_ClassD_S02_q0_32_F600_T8 | B75: 624.1272 | C75: 33.7631 | D75: 39.2821 | E75: 40.4908 | F75: 6324.48 | G75: 1.85 | H75: 110.17 | I75: 0
A76: KTADev_intra_jvet10_SEIDecodedPictureHash=1_SEIDecodedPictureHash=1_SEIDecodedPictureHash=1_qtbt-test3_ClassD_S02_q0_37_F600_T8 | B76: 374.9024 | C76: 30.2499 | D76: 38.2976 | E76: 39.1769 | F76: 4883.41 | G76: 1.71 | H76: 108.98 | I76: 0
A77: KTADev_intra_jvet10_SEIDecodedPictureHash=1_SEIDecodedPictureHash=1_SEIDecodedPictureHash=1_qtbt-test3_ClassD_S03_q0_22_F500_T8 | B77: 1371.5087 | C77: 41.8431 | D77: 42.4645 | E77: 43.3884 | F77: 9624.68 | G77: 2.31 | H77: 108.89 | I77: 0
A78: KTADev_intra_jvet10_SEIDecodedPictureHash=1_SEIDecodedPictureHash=1_SEIDecodedPictureHash=1_qtbt-test3_ClassD_S03_q0_27_F500_T8 | B78: 853.8548 | C78: 37.5576 | D78: 39.5999 | E78: 40.2634 | F78: 7996.43 | G78: 2.02 | H78: 96.72 | I78: 0
A79: KTADev_intra_jvet10_SEIDecodedPictureHash=1_SEIDecodedPictureHash=1_SEIDecodedPictureHash=1_qtbt-test3_ClassD_S03_q0_32_F500_T8 | B79: 493.6151 | C79: 33.5765 | D79: 37.3817 | E79: 37.8903 | F79: 6406.7 | G79: 1.75 | H79: 106.03 | I79: 0
A80: KTADev_intra_jvet10_SEIDecodedPictureHash=1_SEIDecodedPictureHash=1_SEIDecodedPictureHash=1_qtbt-test3_ClassD_S03_q0_37_F500_T8 | B80: 258.4754 | C80: 29.9463 | D80: 35.8001 | E80: 36.2366 | F80: 4609.3 | G80: 1.39 | H80: 109.89 | I80: 0
A81: KTADev_intra_jvet10_SEIDecodedPictureHash=1_SEIDecodedPictureHash=1_SEIDecodedPictureHash=1_qtbt-test3_ClassD_S04_q0_22_F300_T8 | B81: 526.0674 | C81: 43.4276 | D81: 43.2545 | E81: 44.2831 | F81: 4511.73 | G81: 1.2 | H81: 86.34 | I81: 0
A82: KTADev_intra_jvet10_SEIDecodedPictureHash=1_SEIDecodedPictureHash=1_SEIDecodedPictureHash=1_qtbt-test3_ClassD_S04_q0_27_F300_T8 | B82: 321.4113 | C82: 39.4133 | D82: 40.1612 | E82: 41.5964 | F82: 3736.26 | G82: 1.06 | H82: 88.51 | I82: 0
A83: KTADev_intra_jvet10_SEIDecodedPictureHash=1_SEIDecodedPictureHash=1_SEIDecodedPictureHash=1_qtbt-test3_ClassD_S04_q0_32_F300_T8 | B83: 180.9474 | C83: 35.4901 | D83: 38.0841 | E83: 39.3948 | F83: 2843.76 | G83: 0.91 | H83: 87.54 | I83: 0
A84: KTADev_intra_jvet10_SEIDecodedPictureHash=1_SEIDecodedPictureHash=1_SEIDecodedPictureHash=1_qtbt-test3_ClassD_S04_q0_37_F300_T8 | B84: 92.8421 | C84: 32.0084 | D84: 36.565 | E84: 37.6093 | F84: 1873.37 | G84: 0.8 | H84: 86.03 | I84: 0
A85: KTADev_intra_jvet10_SEIDecodedPictureHash=1_SEIDecodedPictureHash=1_SEIDecodedPictureHash=1_qtbt-test3_ClassE_S01_q0_22_F600_T8 | B85: 3449.9256 | C85: 44.5173 | D85: 47.3628 | E85: 48.6441 | F85: 50979.43 | G85: 12.02 | H85: 209.42 | I85: 0
A86: KTADev_intra_jvet10_SEIDecodedPictureHash=1_SEIDecodedPictureHash=1_SEIDecodedPictureHash=1_qtbt-test3_ClassE_S01_q0_27_F600_T8 | B86: 2125.5616 | C86: 42.1496 | D86: 45.1881 | E86: 46.5301 | F86: 37103.77 | G86: 10.32 | H86: 238.15 | I86: 0
A87: KTADev_intra_jvet10_SEIDecodedPictureHash=1_SEIDecodedPictureHash=1_SEIDecodedPictureHash=1_qtbt-test3_ClassE_S01_q0_32_F600_T8 | B87: 1325.2816 | C87: 39.3764 | D87: 43.4069 | E87: 44.6678 | F87: 27423.28 | G87: 9.62 | H87: 228.96 | I87: 0
A88: KTADev_intra_jvet10_SEIDecodedPictureHash=1_SEIDecodedPictureHash=1_SEIDecodedPictureHash=1_qtbt-test3_ClassE_S01_q0_37_F600_T8 | B88: 816.304 | C88: 36.2826 | D88: 42.0615 | E88: 43.2462 | F88: 20127.37 | G88: 8.78 | H88: 222.72 | I88: 0
A89: KTADev_intra_jvet10_SEIDecodedPictureHash=1_SEIDecodedPictureHash=1_SEIDecodedPictureHash=1_qtbt-test3_ClassE_S02_q0_22_F600_T8 | B89: 2307.456 | C89: 44.575 | D89: 48.6024 | E89: 49.3505 | F89: 34557.65 | G89: 9.96 | H89: 235.87 | I89: 0
A90: KTADev_intra_jvet10_SEIDecodedPictureHash=1_SEIDecodedPictureHash=1_SEIDecodedPictureHash=1_qtbt-test3_ClassE_S02_q0_27_F600_T8 | B90: 1283.4352 | C90: 42.5351 | D90: 46.758 | E90: 47.6012 | F90: 23635.15 | G90: 8.88 | H90: 210.1 | I90: 0
A91: KTADev_intra_jvet10_SEIDecodedPictureHash=1_SEIDecodedPictureHash=1_SEIDecodedPictureHash=1_qtbt-test3_ClassE_S02_q0_32_F600_T8 | B91: 737.2672 | C91: 40.31 | D91: 44.9422 | E91: 45.7636 | F91: 16923.89 | G91: 8.45 | H91: 232.78 | I91: 0
A92: KTADev_intra_jvet10_SEIDecodedPictureHash=1_SEIDecodedPictureHash=1_SEIDecodedPictureHash=1_qtbt-test3_ClassE_S02_q0_37_F600_T8 | B92: 429.6872 | C92: 37.7956 | D92: 43.4904 | E92: 44.3435 | F92: 11291.64 | G92: 8.04 | H92: 234.47 | I92: 0
A93: KTADev_intra_jvet10_SEIDecodedPictureHash=1_SEIDecodedPictureHash=1_SEIDecodedPictureHash=1_qtbt-test3_ClassE_S03_q0_22_F600_T8 | B93: 2533.4064 | C93: 45.0307 | D93: 48.029 | E93: 48.9473 | F93: 38301.05 | G93: 10.63 | H93: 240.69 | I93: 0
A94: KTADev_intra_jvet10_SEIDecodedPictureHash=1_SEIDecodedPictureHash=1_SEIDecodedPictureHash=1_qtbt-test3_ClassE_S03_q0_27_F600_T8 | B94: 1522.3304 | C94: 42.9032 | D94: 45.976 | E94: 47.0514 | F94: 27560.29 | G94: 9.46 | H94: 201.18 | I94: 0
A95: KTADev_intra_jvet10_SEIDecodedPictureHash=1_SEIDecodedPictureHash=1_SEIDecodedPictureHash=1_qtbt-test3_ClassE_S03_q0_32_F600_T8 | B95: 926.8088 | C95: 40.3931 | D95: 44.154 | E95: 45.3049 | F95: 19448.72 | G95: 8.57 | H95: 206.17 | I95: 0
A96: KTADev_intra_jvet10_SEIDecodedPictureHash=1_SEIDecodedPictureHash=1_SEIDecodedPictureHash=1_qtbt-test3_ClassE_S03_q0_37_F600_T8 | B96: 567.7752 | C96: 37.5831 | D96: 42.7918 | E96: 43.965 | F96: 13913.91 | G96: 8.41 | H96: 234.4 | I96: 0
A97: KTADev_intra_jvet10_SEIDecodedPictureHash=1_SEIDecodedPictureHash=1_SEIDecodedPictureHash=1_qtbt-test3_ClassF_S01_q0_22_F500_T8 | B97: 2526.6825 | C97: 42.8313 | D97: 44.2062 | E97: 44.9702 | F97: 24284.31 | G97: 6.13 | H97: 158.05 | I97: 0
A98: KTADev_intra_jvet10_SEIDecodedPictureHash=1_SEIDecodedPictureHash=1_SEIDecodedPictureHash=1_qtbt-test3_ClassF_S01_q0_27_F500_T8 | B98: 1446.4079 | C98: 39.3909 | D98: 41.5973 | E98: 42.1467 | F98: 18824.93 | G98: 4.89 | H98: 160.82 | I98: 0
A99: KTADev_intra_jvet10_SEIDecodedPictureHash=1_SEIDecodedPictureHash=1_SEIDecodedPictureHash=1_qtbt-test3_ClassF_S01_q0_32_F500_T8 | B99: 836.0762 | C99: 36.2852 | D99: 39.4014 | E99: 39.7715 | F99: 13759.88 | G99: 4.46 | H99: 131.84 | I99: 0
A100: KTADev_intra_jvet10_SEIDecodedPictureHash=1_SEIDecodedPictureHash=1_SEIDecodedPictureHash=1_qtbt-test3_ClassF_S01_q0_37_F500_T8 | B100: 497.296 | C100: 33.4142 | D100: 37.6868 | E100: 37.8672 | F100: 9281.25 | G100: 3.84 | H100: 131.11 | I100: 0
A101: KTADev_intra_jvet10_SEIDecodedPictureHash=1_SEIDecodedPictureHash=1_SEIDecodedPictureHash=1_qtbt-test3_ClassF_S02_q0_22_F500_T8 | B101: 2648.2924 | C101: 45.5984 | D101: 47.2702 | E101: 47.405 | F101: 39148.07 | G101: 9.94 | H101: 210.8 | I101: 0
A102: KTADev_intra_jvet10_SEIDecodedPictureHash=1_SEIDecodedPictureHash=1_SEIDecodedPictureHash=1_qtbt-test3_ClassF_S02_q0_27_F500_T8 | B102: 1774.61 | C102: 41.6294 | D102: 44.4823 | E102: 44.2198 | F102: 31232.29 | G102: 8.41 | H102: 188.2 | I102: 0
A103: KTADev_intra_jvet10_SEIDecodedPictureHash=1_SEIDecodedPictureHash=1_SEIDecodedPictureHash=1_qtbt-test3_ClassF_S02_q0_32_F500_T8 | B103: 1147.6771 | C103: 37.7951 | D103: 42.2055 | E103: 41.3629 | F103: 25053.78 | G103: 7.62 | H103: 189.91 | I103: 0
A104: KTADev_intra_jvet10_SEIDecodedPictureHash=1_SEIDecodedPictureHash=1_SEIDecodedPictureHash=1_qtbt-test3_ClassF_S02_q0_37_F500_T8 | B104: 735.9238 | C104: 34.1764 | D104: 40.5644 | E104: 39.1086 | F104: 18764.19 | G104: 6.71 | H104: 217.97 | I104: 0
A105: KTADev_intra_jvet10_SEIDecodedPictureHash=1_SEIDecodedPictureHash=1_SEIDecodedPictureHash=1_qtbt-test3_ClassF_S03_q0_22_F300_T8 | B105: 3809.6842 | C105: 47.2608 | D105: 45.6254 | E105: 45.9053 | F105: 23706.34 | G105: 6.97 | H105: 239.08 | I105: 0
A106: KTADev_intra_jvet10_SEIDecodedPictureHash=1_SEIDecodedPictureHash=1_SEIDecodedPictureHash=1_qtbt-test3_ClassF_S03_q0_27_F300_T8 | B106: 2893.4866 | C106: 42.878 | D106: 41.475 | E106: 42.4233 | F106: 21801.79 | G106: 6.31 | H106: 225.22 | I106: 0
A107: KTADev_intra_jvet10_SEIDecodedPictureHash=1_SEIDecodedPictureHash=1_SEIDecodedPictureHash=1_qtbt-test3_ClassF_S03_q0_32_F300_T8 | B107: 2194.6097 | C107: 38.2964 | D107: 39.0953 | E107: 40.3221 | F107: 19367.09 | G107: 5.61 | H107: 212.31 | I107: 0
A108: KTADev_intra_jvet10_SEIDecodedPictureHash=1_SEIDecodedPictureHash=1_SEIDecodedPictureHash=1_qtbt-test3_ClassF_S03_q0_37_F300_T8 | B108: 1657.9121 | C108: 33.5861 | D108: 38.1639 | E108: 39.1191 | F108: 17146.46 | G108: 5.49 | H108: 238.12 | I108: 0
A109: KTADev_intra_jvet10_SEIDecodedPictureHash=1_SEIDecodedPictureHash=1_SEIDecodedPictureHash=1_qtbt-test3_ClassF_S04_q0_22_F500_T8 | B109: 605.393 | C109: 51.2848 | D109: 53.784 | E109: 54.6668 | F109: 17117.52 | G109: 6.88 | H109: 239.94 | I109: 0
A110: KTADev_intra_jvet10_SEIDecodedPictureHash=1_SEIDecodedPictureHash=1_SEIDecodedPictureHash=1_qtbt-test3_ClassF_S04_q0_27_F500_T8 | B110: 410.0079 | C110: 47.7102 | D110: 50.5929 | E110: 51.6818 | F110: 13366.18 | G110: 6.51 | H110: 215.48 | I110: 0
A111: KTADev_intra_jvet10_SEIDecodedPictureHash=1_SEIDecodedPictureHash=1_SEIDecodedPictureHash=1_qtbt-test3_ClassF_S04_q0_32_F500_T8 | B111: 280.3451 | C111: 44.1851 | D111: 48.0598 | E111: 49.7332 | F111: 10572.7 | G111: 6.01 | H111: 212.09 | I111: 0
A112: KTADev_intra_jvet10_SEIDecodedPictureHash=1_SEIDecodedPictureHash=1_SEIDecodedPictureHash=1_qtbt-test3_ClassF_S04_q0_37_F500_T8 | B112: 189.1565 | C112: 40.3995 | D112: 46.1752 | E112: 48.0958 | F112: 8643.06 | G112: 6.27 | H112: 232.63 | I112: 0
A113: KTADev_randomaccess_jvet10_SEIDecodedPictureHash=1_SEIDecodedPictureHash=1_SEIDecodedPictureHash=1_qtbt-test3_ClassA1_S01_q0_22_F294_T1 | B113: 31438.4343 | C113: 40.3624 | D113: 49.0293 | E113: 47.2507 | F113: 1048249.52 | G113: 761.88 | H113: 6497.51 | I113: 0
A114: KTADev_randomaccess_jvet10_SEIDecodedPictureHash=1_SEIDecodedPictureHash=1_SEIDecodedPictureHash=1_qtbt-test3_ClassA1_S01_q0_27_F294_T1 | B114: 8057.3878 | C114: 39.6431 | D114: 48.3138 | E114: 46.1132 | F114: 605849.24 | G114: 850.42 | H114: 6486.04 | I114: 0
A115: KTADev_randomaccess_jvet10_SEIDecodedPictureHash=1_SEIDecodedPictureHash=1_SEIDecodedPictureHash=1_qtbt-test3_ClassA1_S01_q0_32_F294_T1 | B115: 3850.3151 | C115: 38.7103 | D115: 47.4644 | E115: 44.8422 | F115: 452930.24 | G115: 887.29 | H115: 6478.86 | I115: 0
A116: KTADev_randomaccess_jvet10_SEIDecodedPictureHash=1_SEIDecodedPictureHash=1_SEIDecodedPictureHash=1_qtbt-test3_ClassA1_S01_q0_37_F294_T1 | B116: 2153.3878 | C116: 37.3909 | D116: 46.7567 | E116: 43.7196 | F116: 350224.97 | G116: 922.49 | H116: 6480.17 | I116: 0
A117: KTADev_randomaccess_jvet10_SEIDecodedPictureHash=1_SEIDecodedPictureHash=1_SEIDecodedPictureHash=1_qtbt-test3_ClassA1_S02_q0_22_F300_T1 | B117: 94578.448 | C117: 41.7623 | D117: 44.0222 | E117: 42.1467 | F117: 796695.94 | G117: 877.38 | H117: 6136.54 | I117: 0
A118: KTADev_randomaccess_jvet10_SEIDecodedPictureHash=1_SEIDecodedPictureHash=1_SEIDecodedPictureHash=1_qtbt-test3_ClassA1_S02_q0_27_F300_T1 | B118: 23263.56 | C118: 39.4783 | D118: 42.8385 | E118: 41.0768 | F118: 469312.8 | G118: 688.34 | H118: 6123.43 | I118: 0
A119: KTADev_randomaccess_jvet10_SEIDecodedPictureHash=1_SEIDecodedPictureHash=1_SEIDecodedPictureHash=1_qtbt-test3_ClassA1_S02_q0_32_F300_T1 | B119: 9331.952 | C119: 37.62 | D119: 41.7516 | E119: 40.1008 | F119: 355262.82 | G119: 692.48 | H119: 6129.04 | I119: 0
A120: KTADev_randomaccess_jvet10_SEIDecodedPictureHash=1_SEIDecodedPictureHash=1_SEIDecodedPictureHash=1_qtbt-test3_ClassA1_S02_q0_37_F300_T1 | B120: 4697.576 | C120: 35.6288 | D120: 40.7742 | E120: 39.2353 | F120: 275618.29 | G120: 726.43 | H120: 6124.54 | I120: 0
A121: KTADev_randomaccess_jvet10_SEIDecodedPictureHash=1_SEIDecodedPictureHash=1_SEIDecodedPictureHash=1_qtbt-test3_ClassA1_S03_q0_22_F300_T1 | B121: 51809.664 | C121: 39.1445 | D121: 42.1446 | E121: 43.1727 | F121: 1489058.77 | G121: 579.96 | H121: 6138.42 | I121: 0
A122: KTADev_randomaccess_jvet10_SEIDecodedPictureHash=1_SEIDecodedPictureHash=1_SEIDecodedPictureHash=1_qtbt-test3_ClassA1_S03_q0_27_F300_T1 | B122: 16472.4856 | C122: 37.6276 | D122: 39.3762 | E122: 41.6378 | F122: 946332.17 | G122: 466.18 | H122: 6134.59 | I122: 0
A123: KTADev_randomaccess_jvet10_SEIDecodedPictureHash=1_SEIDecodedPictureHash=1_SEIDecodedPictureHash=1_qtbt-test3_ClassA1_S03_q0_32_F300_T1 | B123: 8063.5056 | C123: 36.4434 | D123: 37.4111 | E123: 40.3458 | F123: 762601.84 | G123: 490.68 | H123: 6129.09 | I123: 0
A124: KTADev_randomaccess_jvet10_SEIDecodedPictureHash=1_SEIDecodedPictureHash=1_SEIDecodedPictureHash=1_qtbt-test3_ClassA1_S03_q0_37_F300_T1 | B124: 4358.512 | C124: 35.0532 | D124: 35.2734 | E124: 38.8815 | F124: 572866.51 | G124: 516.3 | H124: 6127.72 | I124: 0
A125: KTADev_randomaccess_jvet10_SEIDecodedPictureHash=1_SEIDecodedPictureHash=1_SEIDecodedPictureHash=1_qtbt-test3_ClassA1_S04_q0_22_F300_T1 | B125: 208504.4768 | C125: 40.2582 | D125: 45.667 | E125: 41.7565 | F125: 1761201.81 | G125: 831.57 | H125: 6497.46 | I125: 0
A126: KTADev_randomaccess_jvet10_SEIDecodedPictureHash=1_SEIDecodedPictureHash=1_SEIDecodedPictureHash=1_qtbt-test3_ClassA1_S04_q0_27_F300_T1 | B126: 93638.6976 | C126: 36.3395 | D126: 44.5044 | E126: 40.3221 | F126: 1621603.45 | G126: 901.1 | H126: 6507.29 | I126: 0
A127: KTADev_randomaccess_jvet10_SEIDecodedPictureHash=1_SEIDecodedPictureHash=1_SEIDecodedPictureHash=1_qtbt-test3_ClassA1_S04_q0_32_F300_T1 | B127: 41765.856 | C127: 33.044 | D127: 43.8051 | E127: 39.6023 | F127: 1201174.45 | G127: 1009.37 | H127: 6483.38 | I127: 0
A128: KTADev_randomaccess_jvet10_SEIDecodedPictureHash=1_SEIDecodedPictureHash=1_SEIDecodedPictureHash=1_qtbt-test3_ClassA1_S04_q0_37_F300_T1 | B128: 18392.4144 | C128: 30.4217 | D128: 43.2442 | E128: 39.1112 | F128: 938699.26 | G128: 1058.39 | H128: 6498.01 | I128: 0
A129: KTADev_randomaccess_jvet10_SEIDecodedPictureHash=1_SEIDecodedPictureHash=1_SEIDecodedPictureHash=1_qtbt-test3_ClassA2_S01_q0_22_F300_T1 | B129: 35804.5264 | C129: 40.4297 | D129: 41.7793 | E129: 43.356 | F129: 662636.88 | G129: 963.3 | H129: 5826.47 | I129: 0
A130: KTADev_randomaccess_jvet10_SEIDecodedPictureHash=1_SEIDecodedPictureHash=1_SEIDecodedPictureHash=1_qtbt-test3_ClassA2_S01_q0_27_F300_T1 | B130: 9007.264 | C130: 39.4101 | D130: 41.2711 | E130: 42.2245 | F130: 432767.52 | G130: 987.01 | H130: 6103.86 | I130: 0
A131: KTADev_randomaccess_jvet10_SEIDecodedPictureHash=1_SEIDecodedPictureHash=1_SEIDecodedPictureHash=1_qtbt-test3_ClassA2_S01_q0_32_F300_T1 | B131: 4256.784 | C131: 38.1244 | D131: 40.6718 | E131: 41.0146 | F131: 327446.77 | G131: 989.03 | H131: 6093.4 | I131: 0
A132: KTADev_randomaccess_jvet10_SEIDecodedPictureHash=1_SEIDecodedPictureHash=1_SEIDecodedPictureHash=1_qtbt-test3_ClassA2_S01_q0_37_F300_T1 | B132: 2315.096 | C132: 36.4426 | D132: 40.0802 | E132: 39.9165 | F132: 262891.63 | G132: 979.99 | H132: 6099.31 | I132: 0
A133: KTADev_randomaccess_jvet10_SEIDecodedPictureHash=1_SEIDecodedPictureHash=1_SEIDecodedPictureHash=1_qtbt-test3_ClassA2_S02_q0_22_F300_T1 | B133: 15665.7024 | C133: 40.0923 | D133: 47.6426 | E133: 47.1797 | F133: 502516.18 | G133: 672.82 | H133: 6137.13 | I133: 0
A134: KTADev_randomaccess_jvet10_SEIDecodedPictureHash=1_SEIDecodedPictureHash=1_SEIDecodedPictureHash=1_qtbt-test3_ClassA2_S02_q0_27_F300_T1 | B134: 3640.62 | C134: 39.2204 | D134: 46.4266 | E134: 46.2027 | F134: 282915.59 | G134: 653.13 | H134: 6135.4 | I134: 0
A135: KTADev_randomaccess_jvet10_SEIDecodedPictureHash=1_SEIDecodedPictureHash=1_SEIDecodedPictureHash=1_qtbt-test3_ClassA2_S02_q0_32_F300_T1 | B135: 1597.1368 | C135: 38.1718 | D135: 45.1426 | E135: 45.0553 | F135: 194585.49 | G135: 645.57 | H135: 6129.82 | I135: 0
A136: KTADev_randomaccess_jvet10_SEIDecodedPictureHash=1_SEIDecodedPictureHash=1_SEIDecodedPictureHash=1_qtbt-test3_ClassA2_S02_q0_37_F300_T1 | B136: 806.0144 | C136: 36.8676 | D136: 43.877 | E136: 43.7736 | F136: 155626.77 | G136: 676.57 | H136: 6124.25 | I136: 0
A137: KTADev_randomaccess_jvet10_SEIDecodedPictureHash=1_SEIDecodedPictureHash=1_SEIDecodedPictureHash=1_qtbt-test3_ClassA2_S03_q0_22_F300_T1 | B137: 61005.4976 | C137: 38.2171 | D137: 45.9224 | E137: 43.8209 | F137: 998487.34 | G137: 736.67 | H137: 6136.85 | I137: 0
A138: KTADev_randomaccess_jvet10_SEIDecodedPictureHash=1_SEIDecodedPictureHash=1_SEIDecodedPictureHash=1_qtbt-test3_ClassA2_S03_q0_27_F300_T1 | B138: 10926.1904 | C138: 37.2916 | D138: 45.0977 | E138: 42.8823 | F138: 547372.34 | G138: 774.05 | H138: 6126.47 | I138: 0
A139: KTADev_randomaccess_jvet10_SEIDecodedPictureHash=1_SEIDecodedPictureHash=1_SEIDecodedPictureHash=1_qtbt-test3_ClassA2_S03_q0_32_F300_T1 | B139: 4354.3824 | C139: 36.3508 | D139: 44.1139 | E139: 41.8118 | F139: 372213.39 | G139: 729.6 | H139: 6132.49 | I139: 0
A140: KTADev_randomaccess_jvet10_SEIDecodedPictureHash=1_SEIDecodedPictureHash=1_SEIDecodedPictureHash=1_qtbt-test3_ClassA2_S03_q0_37_F300_T1 | B140: 2229.9024 | C140: 35.0305 | D140: 43.1416 | E140: 40.7494 | F140: 288439.75 | G140: 716.81 | H140: 6128.62 | I140: 0
A141: KTADev_randomaccess_jvet10_SEIDecodedPictureHash=1_SEIDecodedPictureHash=1_SEIDecodedPictureHash=1_qtbt-test3_ClassA2_S04_q0_22_F300_T1 | B141: 22281.9968 | C141: 45.5011 | D141: 47.2556 | E141: 45.959 | F141: 859407.83 | G141: 689.49 | H141: 6503.88 | I141: 0
A142: KTADev_randomaccess_jvet10_SEIDecodedPictureHash=1_SEIDecodedPictureHash=1_SEIDecodedPictureHash=1_qtbt-test3_ClassA2_S04_q0_27_F300_T1 | B142: 8671.016 | C142: 43.5395 | D142: 45.8205 | E142: 44.8112 | F142: 626984.09 | G142: 644.19 | H142: 6483.38 | I142: 0
A143: KTADev_randomaccess_jvet10_SEIDecodedPictureHash=1_SEIDecodedPictureHash=1_SEIDecodedPictureHash=1_qtbt-test3_ClassA2_S04_q0_32_F300_T1 | B143: 4237.2992 | C143: 41.3582 | D143: 44.3883 | E143: 43.8042 | F143: 466542.43 | G143: 570.95 | H143: 6478.2 | I143: 0
A144: KTADev_randomaccess_jvet10_SEIDecodedPictureHash=1_SEIDecodedPictureHash=1_SEIDecodedPictureHash=1_qtbt-test3_ClassA2_S04_q0_37_F300_T1 | B144: 2291.1648 | C144: 39.0672 | D144: 43.1796 | E144: 43.0289 | F144: 362799.65 | G144: 529.63 | H144: 6478.89 | I144: 0
A145: KTADev_randomaccess_jvet10_SEIDecodedPictureHash=1_SEIDecodedPictureHash=1_SEIDecodedPictureHash=1_qtbt-test3_ClassB_S01_q0_22_F240_T1 | B145: 4226.576 | C145: 41.9849 | D145: 43.6241 | E145: 45.4627 | F145: 146679.13 | G145: 186.36 | H145: 1811.19 | I145: 0
A146: KTADev_randomaccess_jvet10_SEIDecodedPictureHash=1_SEIDecodedPictureHash=1_SEIDecodedPictureHash=1_qtbt-test3_ClassB_S01_q0_27_F240_T1 | B146: 1795.0936 | C146: 40.1391 | D146: 42.451 | E146: 43.7117 | F146: 110042.14 | G146: 186.64 | H146: 1814.37 | I146: 0
A147: KTADev_randomaccess_jvet10_SEIDecodedPictureHash=1_SEIDecodedPictureHash=1_SEIDecodedPictureHash=1_qtbt-test3_ClassB_S01_q0_32_F240_T1 | B147: 860.4416 | C147: 37.8351 | D147: 41.4213 | E147: 42.4086 | F147: 83622.08 | G147: 194.72 | H147: 1812.14 | I147: 0
A148: KTADev_randomaccess_jvet10_SEIDecodedPictureHash=1_SEIDecodedPictureHash=1_SEIDecodedPictureHash=1_qtbt-test3_ClassB_S01_q0_37_F240_T1 | B148: 430.9344 | C148: 35.4784 | D148: 40.5447 | E148: 41.4827 | F148: 66081.81 | G148: 197.48 | H148: 1805.79 | I148: 0
A149: KTADev_randomaccess_jvet10_SEIDecodedPictureHash=1_SEIDecodedPictureHash=1_SEIDecodedPictureHash=1_qtbt-test3_ClassB_S02_q0_22_F240_T1 | B149: 6538.7872 | C149: 40.511 | D149: 42.6562 | E149: 44.2581 | F149: 126711.31 | G149: 172.87 | H149: 1814.06 | I149: 0
A150: KTADev_randomaccess_jvet10_SEIDecodedPictureHash=1_SEIDecodedPictureHash=1_SEIDecodedPictureHash=1_qtbt-test3_ClassB_S02_q0_27_F240_T1 | B150: 2719.4664 | C150: 38.0699 | D150: 41.1772 | E150: 42.1039 | F150: 95901.66 | G150: 167.31 | H150: 1814.26 | I150: 0
A151: KTADev_randomaccess_jvet10_SEIDecodedPictureHash=1_SEIDecodedPictureHash=1_SEIDecodedPictureHash=1_qtbt-test3_ClassB_S02_q0_32_F240_T1 | B151: 1251.2016 | C151: 35.5586 | D151: 39.7677 | E151: 40.4541 | F151: 75391.61 | G151: 172.81 | H151: 1815.61 | I151: 0
A152: KTADev_randomaccess_jvet10_SEIDecodedPictureHash=1_SEIDecodedPictureHash=1_SEIDecodedPictureHash=1_qtbt-test3_ClassB_S02_q0_37_F240_T1 | B152: 590.8384 | C152: 33.1671 | D152: 38.4631 | E152: 39.3335 | F152: 55595.83 | G152: 170.55 | H152: 1810.77 | I152: 0
A153: KTADev_randomaccess_jvet10_SEIDecodedPictureHash=1_SEIDecodedPictureHash=1_SEIDecodedPictureHash=1_qtbt-test3_ClassB_S03_q0_22_F500_T1 | B153: 15304.1112 | C153: 38.7121 | D153: 40.0376 | E153: 43.8158 | F153: 322245.91 | G153: 415.43 | H153: 1814.46 | I153: 0
A154: KTADev_randomaccess_jvet10_SEIDecodedPictureHash=1_SEIDecodedPictureHash=1_SEIDecodedPictureHash=1_qtbt-test3_ClassB_S03_q0_27_F500_T1 | B154: 4479.7296 | C154: 37.2058 | D154: 39.3354 | E154: 42.3725 | F154: 217229.91 | G154: 394.52 | H154: 1812.38 | I154: 0
A155: KTADev_randomaccess_jvet10_SEIDecodedPictureHash=1_SEIDecodedPictureHash=1_SEIDecodedPictureHash=1_qtbt-test3_ClassB_S03_q0_32_F500_T1 | B155: 2043.5824 | C155: 35.5138 | D155: 38.6951 | E155: 41.0381 | F155: 166828.81 | G155: 391.31 | H155: 1813.77 | I155: 0
A156: KTADev_randomaccess_jvet10_SEIDecodedPictureHash=1_SEIDecodedPictureHash=1_SEIDecodedPictureHash=1_qtbt-test3_ClassB_S03_q0_37_F500_T1 | B156: 1033.6136 | C156: 33.5068 | D156: 37.9642 | E156: 39.8015 | F156: 132969.79 | G156: 384.66 | H156: 1817.57 | I156: 0
A157: KTADev_randomaccess_jvet10_SEIDecodedPictureHash=1_SEIDecodedPictureHash=1_SEIDecodedPictureHash=1_qtbt-test3_ClassB_S04_q0_22_F500_T1 | B157: 15120.964 | C157: 39.4479 | D157: 44.0523 | E157: 45.423 | F157: 422149.3 | G157: 324.86 | H157: 1815.78 | I157: 0
A158: KTADev_randomaccess_jvet10_SEIDecodedPictureHash=1_SEIDecodedPictureHash=1_SEIDecodedPictureHash=1_qtbt-test3_ClassB_S04_q0_27_F500_T1 | B158: 4913.2008 | C158: 37.8362 | D158: 43.0193 | E158: 43.7548 | F158: 289290.38 | G158: 302.4 | H158: 1814.58 | I158: 0
A159: KTADev_randomaccess_jvet10_SEIDecodedPictureHash=1_SEIDecodedPictureHash=1_SEIDecodedPictureHash=1_qtbt-test3_ClassB_S04_q0_32_F500_T1 | B159: 2235.1816 | C159: 36.0718 | D159: 41.965 | E159: 42.1931 | F159: 226306.42 | G159: 319.18 | H159: 1813 | I159: 0
A160: KTADev_randomaccess_jvet10_SEIDecodedPictureHash=1_SEIDecodedPictureHash=1_SEIDecodedPictureHash=1_qtbt-test3_ClassB_S04_q0_37_F500_T1 | B160: 1144.5512 | C160: 34.1576 | D160: 41.0241 | E160: 40.7717 | F160: 176020.23 | G160: 336.21 | H160: 1812.87 | I160: 0
A161: KTADev_randomaccess_jvet10_SEIDecodedPictureHash=1_SEIDecodedPictureHash=1_SEIDecodedPictureHash=1_qtbt-test3_ClassB_S05_q0_22_F600_T1 | B161: 32735.1568 | C161: 37.4398 | D161: 42.3632 | E161: 44.7009 | F161: 401486.07 | G161: 568.44 | H161: 1815.12 | I161: 0
A162: KTADev_randomaccess_jvet10_SEIDecodedPictureHash=1_SEIDecodedPictureHash=1_SEIDecodedPictureHash=1_qtbt-test3_ClassB_S05_q0_27_F600_T1 | B162: 5850.0512 | C162: 35.4923 | D162: 41.3563 | E162: 43.8449 | F162: 205064.78 | G162: 311.53 | H162: 1815.31 | I162: 0
A163: KTADev_randomaccess_jvet10_SEIDecodedPictureHash=1_SEIDecodedPictureHash=1_SEIDecodedPictureHash=1_qtbt-test3_ClassB_S05_q0_32_F600_T1 | B163: 1819.596 | C163: 34.2064 | D163: 40.262 | E163: 42.9342 | F163: 131973.92 | G163: 278.54 | H163: 1813.45 | I163: 0
A164: KTADev_randomaccess_jvet10_SEIDecodedPictureHash=1_SEIDecodedPictureHash=1_SEIDecodedPictureHash=1_qtbt-test3_ClassB_S05_q0_37_F600_T1 | B164: 828.792 | C164: 32.7352 | D164: 39.1723 | E164: 41.9991 | F164: 96970.99 | G164: 280.84 | H164: 1814.91 | I164: 0
A165: KTADev_randomaccess_jvet10_SEIDecodedPictureHash=1_SEIDecodedPictureHash=1_SEIDecodedPictureHash=1_qtbt-test3_ClassC_S01_q0_22_F500_T1 | B165: 2866.9264 | C165: 41.5129 | D165: 43.5844 | E165: 44.327 | F165: 85259.54 | G165: 76 | H165: 543.23 | I165: 0
A166: KTADev_randomaccess_jvet10_SEIDecodedPictureHash=1_SEIDecodedPictureHash=1_SEIDecodedPictureHash=1_qtbt-test3_ClassC_S01_q0_27_F500_T1 | B166: 1350.0216 | C166: 38.3467 | D166: 41.5804 | E166: 41.954 | F166: 74781.61 | G166: 80.51 | H166: 542.51 | I166: 0
A167: KTADev_randomaccess_jvet10_SEIDecodedPictureHash=1_SEIDecodedPictureHash=1_SEIDecodedPictureHash=1_qtbt-test3_ClassC_S01_q0_32_F500_T1 | B167: 658.3464 | C167: 35.3242 | D167: 39.8293 | E167: 40.0054 | F167: 60673.57 | G167: 89.59 | H167: 541.71 | I167: 0
A168: KTADev_randomaccess_jvet10_SEIDecodedPictureHash=1_SEIDecodedPictureHash=1_SEIDecodedPictureHash=1_qtbt-test3_ClassC_S01_q0_37_F500_T1 | B168: 341.8608 | C168: 32.761 | D168: 38.3299 | E168: 38.3434 | F168: 49256.25 | G168: 100.95 | H168: 541.44 | I168: 0
A169: KTADev_randomaccess_jvet10_SEIDecodedPictureHash=1_SEIDecodedPictureHash=1_SEIDecodedPictureHash=1_qtbt-test3_ClassC_S02_q0_22_F600_T1 | B169: 2958.752 | C169: 40.6288 | D169: 43.9062 | E169: 45.6413 | F169: 90361.69 | G169: 132.64 | H169: 541.95 | I169: 0
A170: KTADev_randomaccess_jvet10_SEIDecodedPictureHash=1_SEIDecodedPictureHash=1_SEIDecodedPictureHash=1_qtbt-test3_ClassC_S02_q0_27_F600_T1 | B170: 1311.7736 | C170: 38.1499 | D170: 42.1996 | E170: 43.5468 | F170: 71885.64 | G170: 133.16 | H170: 541.54 | I170: 0
A171: KTADev_randomaccess_jvet10_SEIDecodedPictureHash=1_SEIDecodedPictureHash=1_SEIDecodedPictureHash=1_qtbt-test3_ClassC_S02_q0_32_F600_T1 | B171: 645.7136 | C171: 35.448 | D171: 40.6601 | E171: 41.7227 | F171: 59302.08 | G171: 138.21 | H171: 540.81 | I171: 0
A172: KTADev_randomaccess_jvet10_SEIDecodedPictureHash=1_SEIDecodedPictureHash=1_SEIDecodedPictureHash=1_qtbt-test3_ClassC_S02_q0_37_F600_T1 | B172: 338.5792 | C172: 32.7967 | D172: 39.3767 | E172: 40.3212 | F172: 48514.93 | G172: 137.17 | H172: 540.09 | I172: 0
A173: KTADev_randomaccess_jvet10_SEIDecodedPictureHash=1_SEIDecodedPictureHash=1_SEIDecodedPictureHash=1_qtbt-test3_ClassC_S03_q0_22_F500_T1 | B173: 5697.6808 | C173: 38.961 | D173: 41.967 | E173: 43.2475 | F173: 88417.5 | G173: 111.63 | H173: 542.6 | I173: 0
A174: KTADev_randomaccess_jvet10_SEIDecodedPictureHash=1_SEIDecodedPictureHash=1_SEIDecodedPictureHash=1_qtbt-test3_ClassC_S03_q0_27_F500_T1 | B174: 2545.028 | C174: 35.5495 | D174: 39.7063 | E174: 40.8494 | F174: 69959.08 | G174: 113.65 | H174: 541.72 | I174: 0
A175: KTADev_randomaccess_jvet10_SEIDecodedPictureHash=1_SEIDecodedPictureHash=1_SEIDecodedPictureHash=1_qtbt-test3_ClassC_S03_q0_32_F500_T1 | B175: 1195.5216 | C175: 32.4283 | D175: 37.9817 | E175: 38.9361 | F175: 57852.99 | G175: 134.23 | H175: 542.75 | I175: 0
A176: KTADev_randomaccess_jvet10_SEIDecodedPictureHash=1_SEIDecodedPictureHash=1_SEIDecodedPictureHash=1_qtbt-test3_ClassC_S03_q0_37_F500_T1 | B176: 576.6376 | C176: 29.6366 | D176: 36.5441 | E176: 37.3255 | F176: 46734.33 | G176: 147.58 | H176: 540.39 | I176: 0
A177: KTADev_randomaccess_jvet10_SEIDecodedPictureHash=1_SEIDecodedPictureHash=1_SEIDecodedPictureHash=1_qtbt-test3_ClassC_S04_q0_22_F300_T1 | B177: 4222.992 | C177: 39.4441 | D177: 41.3256 | E177: 42.9445 | F177: 83855.4 | G177: 73.19 | H177: 542.38 | I177: 0
A178: KTADev_randomaccess_jvet10_SEIDecodedPictureHash=1_SEIDecodedPictureHash=1_SEIDecodedPictureHash=1_qtbt-test3_ClassC_S04_q0_27_F300_T1 | B178: 1683.46 | C178: 36.1577 | D178: 39.3669 | E178: 41.0704 | F178: 65490.34 | G178: 63.72 | H178: 542.59 | I178: 0
A179: KTADev_randomaccess_jvet10_SEIDecodedPictureHash=1_SEIDecodedPictureHash=1_SEIDecodedPictureHash=1_qtbt-test3_ClassC_S04_q0_32_F300_T1 | B179: 787.14 | C179: 33.3527 | D179: 37.7401 | E179: 39.5726 | F179: 54706.34 | G179: 59.71 | H179: 540.69 | I179: 0
A180: KTADev_randomaccess_jvet10_SEIDecodedPictureHash=1_SEIDecodedPictureHash=1_SEIDecodedPictureHash=1_qtbt-test3_ClassC_S04_q0_37_F300_T1 | B180: 388.5568 | C180: 30.7794 | D180: 36.4209 | E180: 38.3485 | F180: 43961.62 | G180: 60.51 | H180: 540.97 | I180: 0
A181: KTADev_randomaccess_jvet10_SEIDecodedPictureHash=1_SEIDecodedPictureHash=1_SEIDecodedPictureHash=1_qtbt-test3_ClassD_S01_q0_22_F500_T1 | B181: 1257.9808 | C181: 41.4775 | D181: 44.4024 | E181: 43.362 | F181: 27617 | G181: 32.76 | H181: 278.9 | I181: 0
A182: KTADev_randomaccess_jvet10_SEIDecodedPictureHash=1_SEIDecodedPictureHash=1_SEIDecodedPictureHash=1_qtbt-test3_ClassD_S01_q0_27_F500_T1 | B182: 607.3736 | C182: 37.4912 | D182: 42.066 | E182: 40.6966 | F182: 22967.76 | G182: 34.72 | H182: 260.11 | I182: 0
A183: KTADev_randomaccess_jvet10_SEIDecodedPictureHash=1_SEIDecodedPictureHash=1_SEIDecodedPictureHash=1_qtbt-test3_ClassD_S01_q0_32_F500_T1 | B183: 297.0184 | C183: 34.0416 | D183: 40.1892 | E183: 38.6172 | F183: 19028.02 | G183: 36.48 | H183: 260.09 | I183: 0
A184: KTADev_randomaccess_jvet10_SEIDecodedPictureHash=1_SEIDecodedPictureHash=1_SEIDecodedPictureHash=1_qtbt-test3_ClassD_S01_q0_37_F500_T1 | B184: 152.3888 | C184: 31.1949 | D184: 38.6513 | E184: 36.8915 | F184: 15527.92 | G184: 37.43 | H184: 260.03 | I184: 0
A185: KTADev_randomaccess_jvet10_SEIDecodedPictureHash=1_SEIDecodedPictureHash=1_SEIDecodedPictureHash=1_qtbt-test3_ClassD_S02_q0_22_F600_T1 | B185: 1328.9376 | C185: 38.6641 | D185: 43.9977 | E185: 45.3814 | F185: 20871.4 | G185: 35.57 | H185: 279.07 | I185: 0
A186: KTADev_randomaccess_jvet10_SEIDecodedPictureHash=1_SEIDecodedPictureHash=1_SEIDecodedPictureHash=1_qtbt-test3_ClassD_S02_q0_27_F600_T1 | B186: 480.624 | C186: 35.408 | D186: 41.9245 | E186: 43.1925 | F186: 14144.29 | G186: 30.95 | H186: 260.16 | I186: 0
A187: KTADev_randomaccess_jvet10_SEIDecodedPictureHash=1_SEIDecodedPictureHash=1_SEIDecodedPictureHash=1_qtbt-test3_ClassD_S02_q0_32_F600_T1 | B187: 209.8064 | C187: 32.6299 | D187: 40.1866 | E187: 41.4096 | F187: 9410.33 | G187: 30.82 | H187: 260.06 | I187: 0
A188: KTADev_randomaccess_jvet10_SEIDecodedPictureHash=1_SEIDecodedPictureHash=1_SEIDecodedPictureHash=1_qtbt-test3_ClassD_S02_q0_37_F600_T1 | B188: 110.604 | C188: 30.1698 | D188: 38.9246 | E188: 40.0574 | F188: 7309.7 | G188: 32.82 | H188: 260.08 | I188: 0
A189: KTADev_randomaccess_jvet10_SEIDecodedPictureHash=1_SEIDecodedPictureHash=1_SEIDecodedPictureHash=1_qtbt-test3_ClassD_S03_q0_22_F500_T1 | B189: 1367.7168 | C189: 38.7889 | D189: 41.6601 | E189: 42.9143 | F189: 21168.23 | G189: 33.96 | H189: 280.09 | I189: 0
A190: KTADev_randomaccess_jvet10_SEIDecodedPictureHash=1_SEIDecodedPictureHash=1_SEIDecodedPictureHash=1_qtbt-test3_ClassD_S03_q0_27_F500_T1 | B190: 607.28 | C190: 35.4507 | D190: 39.4016 | E190: 40.4609 | F190: 16832.82 | G190: 37.19 | H190: 279.42 | I190: 0
A191: KTADev_randomaccess_jvet10_SEIDecodedPictureHash=1_SEIDecodedPictureHash=1_SEIDecodedPictureHash=1_qtbt-test3_ClassD_S03_q0_32_F500_T1 | B191: 286.4608 | C191: 32.3715 | D191: 37.5496 | E191: 38.3614 | F191: 13431.37 | G191: 44.09 | H191: 260.01 | I191: 0
A192: KTADev_randomaccess_jvet10_SEIDecodedPictureHash=1_SEIDecodedPictureHash=1_SEIDecodedPictureHash=1_qtbt-test3_ClassD_S03_q0_37_F500_T1 | B192: 137.2856 | C192: 29.565 | D192: 35.9863 | E192: 36.6455 | F192: 10564.4 | G192: 45.5 | H192: 260.07 | I192: 0
A193: KTADev_randomaccess_jvet10_SEIDecodedPictureHash=1_SEIDecodedPictureHash=1_SEIDecodedPictureHash=1_qtbt-test3_ClassD_S04_q0_22_F300_T1 | B193: 1013.4952 | C193: 40.1343 | D193: 41.6376 | E193: 42.7856 | F193: 20503.44 | G193: 22.88 | H193: 279.77 | I193: 0
A194: KTADev_randomaccess_jvet10_SEIDecodedPictureHash=1_SEIDecodedPictureHash=1_SEIDecodedPictureHash=1_qtbt-test3_ClassD_S04_q0_27_F300_T1 | B194: 487.448 | C194: 36.2836 | D194: 39.2647 | E194: 40.5036 | F194: 16507.64 | G194: 22.59 | H194: 277.27 | I194: 0
A195: KTADev_randomaccess_jvet10_SEIDecodedPictureHash=1_SEIDecodedPictureHash=1_SEIDecodedPictureHash=1_qtbt-test3_ClassD_S04_q0_32_F300_T1 | B195: 237.2112 | C195: 32.8394 | D195: 37.4615 | E195: 38.7566 | F195: 13659.86 | G195: 23.41 | H195: 278.26 | I195: 0
A196: KTADev_randomaccess_jvet10_SEIDecodedPictureHash=1_SEIDecodedPictureHash=1_SEIDecodedPictureHash=1_qtbt-test3_ClassD_S04_q0_37_F300_T1 | B196: 117.3024 | C196: 30.0097 | D196: 36.0296 | E196: 37.2127 | F196: 10830.51 | G196: 23.58 | H196: 259.68 | I196: 0
A197: KTADev_randomaccess_jvet10_SEIDecodedPictureHash=1_SEIDecodedPictureHash=1_SEIDecodedPictureHash=1_qtbt-test3_ClassE_S01_q0_22_F600_T1 | B197: 0 | C197: 0 | D197: 0 | E197: 0 | F197: 0 | G197: 0 | H197: 0 | I197: 0
A198: KTADev_randomaccess_jvet10_SEIDecodedPictureHash=1_SEIDecodedPictureHash=1_SEIDecodedPictureHash=1_qtbt-test3_ClassE_S01_q0_27_F600_T1 | B198: 0 | C198: 0 | D198: 0 | E198: 0 | F198: 0 | G198: 0 | H198: 0 | I198: 0
A199: KTADev_randomaccess_jvet10_SEIDecodedPictureHash=1_SEIDecodedPictureHash=1_SEIDecodedPictureHash=1_qtbt-test3_ClassE_S01_q0_32_F600_T1 | B199: 0 | C199: 0 | D199: 0 | E199: 0 | F199: 0 | G199: 0 | H199: 0 | I199: 0
A200: KTADev_randomaccess_jvet10_SEIDecodedPictureHash=1_SEIDecodedPictureHash=1_SEIDecodedPictureHash=1_qtbt-test3_ClassE_S01_q0_37_F600_T1 | B200: 0 | C200: 0 | D200: 0 | E200: 0 | F200: 0 | G200: 0 | H200: 0 | I200: 0
... 251 more rows

Sheet Test
A1: KTADev2_intra_jvet10_SEIDecodedPictureHash=1_SEIDecodedPictureHash=1_SEIDecodedPictureHash=1_dummy_ClassA1_S01_q0_22_F294_T8 | B1: 20163.3762 | C1: 41.7677 | D1: 49.587 | E1: 48.3355 | F1: 205394.5 | G1: 41.16 | H1: 1325.52 | I1: 0
A2: KTADev2_intra_jvet10_SEIDecodedPictureHash=1_SEIDecodedPictureHash=1_SEIDecodedPictureHash=1_dummy_ClassA1_S01_q0_27_F294_T8 | B2: 6008.7616 | C2: 40.2743 | D2: 48.6493 | E2: 46.7761 | F2: 86822.19 | G2: 30.13 | H2: 1284.67 | I2: 0
A3: KTADev2_intra_jvet10_SEIDecodedPictureHash=1_SEIDecodedPictureHash=1_SEIDecodedPictureHash=1_dummy_ClassA1_S01_q0_32_F294_T8 | B3: 3378.4427 | C3: 39.4984 | D3: 47.7056 | E3: 45.3992 | F3: 46797 | G3: 28.08 | H3: 1285.83 | I3: 0
A4: KTADev2_intra_jvet10_SEIDecodedPictureHash=1_SEIDecodedPictureHash=1_SEIDecodedPictureHash=1_dummy_ClassA1_S01_q0_37_F294_T8 | B4: 2045.3838 | C4: 38.3983 | D4: 46.8279 | E4: 44.156 | F4: 28293.95 | G4: 25.3 | H4: 1326.01 | I4: 0
A5: KTADev2_intra_jvet10_SEIDecodedPictureHash=1_SEIDecodedPictureHash=1_SEIDecodedPictureHash=1_dummy_ClassA1_S02_q0_22_F300_T8 | B5: 55254.6158 | C5: 45.9431 | D5: 45.0191 | E5: 43.5096 | F5: 193794.13 | G5: 43.42 | H5: 1185.32 | I5: 0
A6: KTADev2_intra_jvet10_SEIDecodedPictureHash=1_SEIDecodedPictureHash=1_SEIDecodedPictureHash=1_dummy_ClassA1_S02_q0_27_F300_T8 | B6: 27132.5184 | C6: 41.8782 | D6: 43.1994 | E6: 41.5449 | F6: 135227 | G6: 37.39 | H6: 1215.03 | I6: 0
A7: KTADev2_intra_jvet10_SEIDecodedPictureHash=1_SEIDecodedPictureHash=1_SEIDecodedPictureHash=1_dummy_ClassA1_S02_q0_32_F300_T8 | B7: 14196.6763 | C7: 39.0882 | D7: 41.8088 | E7: 40.2019 | F7: 83984.11 | G7: 32.43 | H7: 1212.55 | I7: 0
A8: KTADev2_intra_jvet10_SEIDecodedPictureHash=1_SEIDecodedPictureHash=1_SEIDecodedPictureHash=1_dummy_ClassA1_S02_q0_37_F300_T8 | B8: 7701.8579 | C8: 36.5349 | D8: 40.7669 | E8: 39.2584 | F8: 50180.46 | G8: 28.71 | H8: 1192.31 | I8: 0
A9: KTADev2_intra_jvet10_SEIDecodedPictureHash=1_SEIDecodedPictureHash=1_SEIDecodedPictureHash=1_dummy_ClassA1_S03_q0_22_F300_T8 | B9: 22323.6158 | C9: 42.7563 | D9: 45.5555 | E9: 44.6341 | F9: 220798.69 | G9: 48.33 | H9: 1229.06 | I9: 0
A10: KTADev2_intra_jvet10_SEIDecodedPictureHash=1_SEIDecodedPictureHash=1_SEIDecodedPictureHash=1_dummy_ClassA1_S03_q0_27_F300_T8 | B10: 7424.5034 | C10: 39.0753 | D10: 42.1465 | E10: 42.6128 | F10: 122269 | G10: 34.69 | H10: 1212.91 | I10: 0
A11: KTADev2_intra_jvet10_SEIDecodedPictureHash=1_SEIDecodedPictureHash=1_SEIDecodedPictureHash=1_dummy_ClassA1_S03_q0_32_F300_T8 | B11: 3137.0763 | C11: 37.4279 | D11: 39.6048 | E11: 41.1447 | F11: 63562.42 | G11: 28.52 | H11: 1210.98 | I11: 0
A12: KTADev2_intra_jvet10_SEIDecodedPictureHash=1_SEIDecodedPictureHash=1_SEIDecodedPictureHash=1_dummy_ClassA1_S03_q0_37_F300_T8 | B12: 1704.6584 | C12: 36.0598 | D12: 37.736 | E12: 39.7303 | F12: 35211.26 | G12: 24.82 | H12: 1213.29 | I12: 0
A13: KTADev2_intra_jvet10_SEIDecodedPictureHash=1_SEIDecodedPictureHash=1_SEIDecodedPictureHash=1_dummy_ClassA1_S04_q0_22_F300_T8 | B13: 49576.05 | C13: 43.8574 | D13: 47.8473 | E13: 44.2127 | F13: 262557.67 | G13: 53.68 | H13: 1319.21 | I13: 0
A14: KTADev2_intra_jvet10_SEIDecodedPictureHash=1_SEIDecodedPictureHash=1_SEIDecodedPictureHash=1_dummy_ClassA1_S04_q0_27_F300_T8 | B14: 27624.7484 | C14: 40.5384 | D14: 45.7676 | E14: 41.7544 | F14: 194162.24 | G14: 43.57 | H14: 1296.97 | I14: 0
A15: KTADev2_intra_jvet10_SEIDecodedPictureHash=1_SEIDecodedPictureHash=1_SEIDecodedPictureHash=1_dummy_ClassA1_S04_q0_32_F300_T8 | B15: 15361.4747 | C15: 37.3826 | D15: 44.7013 | E15: 40.4115 | F15: 135643.33 | G15: 36.24 | H15: 1288.5 | I15: 0
A16: KTADev2_intra_jvet10_SEIDecodedPictureHash=1_SEIDecodedPictureHash=1_SEIDecodedPictureHash=1_dummy_ClassA1_S04_q0_37_F300_T8 | B16: 8103.3284 | C16: 34.3276 | D16: 44.0216 | E16: 39.6772 | F16: 87338.56 | G16: 32.93 | H16: 1328.47 | I16: 0
A17: KTADev2_intra_jvet10_SEIDecodedPictureHash=1_SEIDecodedPictureHash=1_SEIDecodedPictureHash=1_dummy_ClassA2_S01_q0_22_F300_T8 | B17: 33947.0305 | C17: 42.4154 | D17: 42.5302 | E17: 44.1456 | F17: 203980.79 | G17: 45.5 | H17: 1247.41 | I17: 0
A18: KTADev2_intra_jvet10_SEIDecodedPictureHash=1_SEIDecodedPictureHash=1_SEIDecodedPictureHash=1_dummy_ClassA2_S01_q0_27_F300_T8 | B18: 11681.2042 | C18: 39.9549 | D18: 41.5072 | E18: 42.5577 | F18: 105157.5 | G18: 33.3 | H18: 1212.04 | I18: 0
A19: KTADev2_intra_jvet10_SEIDecodedPictureHash=1_SEIDecodedPictureHash=1_SEIDecodedPictureHash=1_dummy_ClassA2_S01_q0_32_F300_T8 | B19: 6764.1837 | C19: 38.6256 | D19: 40.7508 | E19: 41.1699 | F19: 64294.96 | G19: 29.83 | H19: 1230.9 | I19: 0
A20: KTADev2_intra_jvet10_SEIDecodedPictureHash=1_SEIDecodedPictureHash=1_SEIDecodedPictureHash=1_dummy_ClassA2_S01_q0_37_F300_T8 | B20: 4055.4916 | C20: 36.8166 | D20: 40.0692 | E20: 39.9727 | F20: 41411.1 | G20: 27.47 | H20: 1228.24 | I20: 0
A21: KTADev2_intra_jvet10_SEIDecodedPictureHash=1_SEIDecodedPictureHash=1_SEIDecodedPictureHash=1_dummy_ClassA2_S02_q0_22_F300_T8 | B21: 13421.955 | C21: 40.8755 | D21: 47.5195 | E21: 47.0881 | F21: 214164.37 | G21: 45.01 | H21: 1213.03 | I21: 0
A22: KTADev2_intra_jvet10_SEIDecodedPictureHash=1_SEIDecodedPictureHash=1_SEIDecodedPictureHash=1_dummy_ClassA2_S02_q0_27_F300_T8 | B22: 5179.5403 | C22: 39.2972 | D22: 45.7897 | E22: 45.5694 | F22: 106428.12 | G22: 32.63 | H22: 1215.85 | I22: 0
A23: KTADev2_intra_jvet10_SEIDecodedPictureHash=1_SEIDecodedPictureHash=1_SEIDecodedPictureHash=1_dummy_ClassA2_S02_q0_32_F300_T8 | B23: 2616.3458 | C23: 37.9951 | D23: 44.3691 | E23: 44.2043 | F23: 59147.59 | G23: 29.22 | H23: 1181.44 | I23: 0
A24: KTADev2_intra_jvet10_SEIDecodedPictureHash=1_SEIDecodedPictureHash=1_SEIDecodedPictureHash=1_dummy_ClassA2_S02_q0_37_F300_T8 | B24: 1378.9413 | C24: 36.437 | D24: 43.3129 | E24: 43.1266 | F24: 34018.36 | G24: 26.27 | H24: 1222.78 | I24: 0
A25: KTADev2_intra_jvet10_SEIDecodedPictureHash=1_SEIDecodedPictureHash=1_SEIDecodedPictureHash=1_dummy_ClassA2_S03_q0_22_F300_T8 | B25: 54111.7421 | C25: 41.2483 | D25: 46.6175 | E25: 44.7085 | F25: 305126.25 | G25: 56.67 | H25: 1221.44 | I25: 0
A26: KTADev2_intra_jvet10_SEIDecodedPictureHash=1_SEIDecodedPictureHash=1_SEIDecodedPictureHash=1_dummy_ClassA2_S03_q0_27_F300_T8 | B26: 12025.0532 | C26: 37.8682 | D26: 45.2836 | E26: 43.0637 | F26: 124254.92 | G26: 34.86 | H26: 1215.27 | I26: 0
A27: KTADev2_intra_jvet10_SEIDecodedPictureHash=1_SEIDecodedPictureHash=1_SEIDecodedPictureHash=1_dummy_ClassA2_S03_q0_32_F300_T8 | B27: 6494.2232 | C27: 36.8582 | D27: 44.1238 | E27: 41.6989 | F27: 68608.4 | G27: 31.83 | H27: 1211.02 | I27: 0
A28: KTADev2_intra_jvet10_SEIDecodedPictureHash=1_SEIDecodedPictureHash=1_SEIDecodedPictureHash=1_dummy_ClassA2_S03_q0_37_F300_T8 | B28: 3652.83 | C28: 35.4561 | D28: 43.1892 | E28: 40.6864 | F28: 42223.76 | G28: 28.04 | H28: 1213.82 | I28: 0
A29: KTADev2_intra_jvet10_SEIDecodedPictureHash=1_SEIDecodedPictureHash=1_SEIDecodedPictureHash=1_dummy_ClassA2_S04_q0_22_F300_T8 | B29: 12382.6895 | C29: 47.2733 | D29: 48.8682 | E29: 47.551 | F29: 103297.83 | G29: 35.16 | H29: 1286.26 | I29: 0
A30: KTADev2_intra_jvet10_SEIDecodedPictureHash=1_SEIDecodedPictureHash=1_SEIDecodedPictureHash=1_dummy_ClassA2_S04_q0_27_F300_T8 | B30: 6562.5 | C30: 45.2282 | D30: 46.763 | E30: 45.5127 | F30: 65104.73 | G30: 34.18 | H30: 1301.82 | I30: 0
A31: KTADev2_intra_jvet10_SEIDecodedPictureHash=1_SEIDecodedPictureHash=1_SEIDecodedPictureHash=1_dummy_ClassA2_S04_q0_32_F300_T8 | B31: 3835.4479 | C31: 43.023 | D31: 45.0184 | E31: 44.1669 | F31: 42510.6 | G31: 28.82 | H31: 1299.22 | I31: 0
A32: KTADev2_intra_jvet10_SEIDecodedPictureHash=1_SEIDecodedPictureHash=1_SEIDecodedPictureHash=1_dummy_ClassA2_S04_q0_37_F300_T8 | B32: 2270.8453 | C32: 40.5114 | D32: 43.5653 | E32: 43.1339 | F32: 27484.51 | G32: 27.98 | H32: 1285.69 | I32: 0
A33: KTADev2_intra_jvet10_SEIDecodedPictureHash=1_SEIDecodedPictureHash=1_SEIDecodedPictureHash=1_dummy_ClassB_S01_q0_22_F240_T8 | B33: 2455.1008 | C33: 43.0119 | D33: 44.5293 | E33: 46.0084 | F33: 33286.04 | G33: 8.08 | H33: 431.2 | I33: 0
A34: KTADev2_intra_jvet10_SEIDecodedPictureHash=1_SEIDecodedPictureHash=1_SEIDecodedPictureHash=1_dummy_ClassB_S01_q0_27_F240_T8 | B34: 1347.3744 | C34: 41.4261 | D34: 42.9034 | E34: 43.7487 | F34: 21344.66 | G34: 6.9 | H34: 392.72 | I34: 0
A35: KTADev2_intra_jvet10_SEIDecodedPictureHash=1_SEIDecodedPictureHash=1_SEIDecodedPictureHash=1_dummy_ClassB_S01_q0_32_F240_T8 | B35: 771.4136 | C35: 39.4246 | D35: 41.6422 | E35: 42.2907 | F35: 14557.93 | G35: 6.31 | H35: 431.22 | I35: 0
A36: KTADev2_intra_jvet10_SEIDecodedPictureHash=1_SEIDecodedPictureHash=1_SEIDecodedPictureHash=1_dummy_ClassB_S01_q0_37_F240_T8 | B36: 438.5576 | C36: 37.0042 | D36: 40.6969 | E36: 41.4212 | F36: 9667.87 | G36: 6.11 | H36: 394.79 | I36: 0
A37: KTADev2_intra_jvet10_SEIDecodedPictureHash=1_SEIDecodedPictureHash=1_SEIDecodedPictureHash=1_dummy_ClassB_S02_q0_22_F240_T8 | B37: 6078.1128 | C37: 42.2217 | D37: 43.3876 | E37: 43.9375 | F37: 56319.13 | G37: 11.32 | H37: 401.07 | I37: 0
A38: KTADev2_intra_jvet10_SEIDecodedPictureHash=1_SEIDecodedPictureHash=1_SEIDecodedPictureHash=1_dummy_ClassB_S02_q0_27_F240_T8 | B38: 3312.3224 | C38: 39.197 | D38: 41.1454 | E38: 41.2865 | F38: 39291.36 | G38: 9.44 | H38: 409.96 | I38: 0
A39: KTADev2_intra_jvet10_SEIDecodedPictureHash=1_SEIDecodedPictureHash=1_SEIDecodedPictureHash=1_dummy_ClassB_S02_q0_32_F240_T8 | B39: 1740.08 | C39: 36.1645 | D39: 39.4432 | E39: 39.8196 | F39: 27414.48 | G39: 7.68 | H39: 393.89 | I39: 0
A40: KTADev2_intra_jvet10_SEIDecodedPictureHash=1_SEIDecodedPictureHash=1_SEIDecodedPictureHash=1_dummy_ClassB_S02_q0_37_F240_T8 | B40: 868.3376 | C40: 33.285 | D40: 38.2606 | E40: 39.1082 | F40: 16808.35 | G40: 6.59 | H40: 415.89 | I40: 0
A41: KTADev2_intra_jvet10_SEIDecodedPictureHash=1_SEIDecodedPictureHash=1_SEIDecodedPictureHash=1_dummy_ClassB_S03_q0_22_F500_T8 | B41: 12725.5111 | C41: 41.19 | D41: 41.4719 | E41: 44.3177 | F41: 123607.01 | G41: 24.35 | H41: 423.51 | I41: 0
A42: KTADev2_intra_jvet10_SEIDecodedPictureHash=1_SEIDecodedPictureHash=1_SEIDecodedPictureHash=1_dummy_ClassB_S03_q0_27_F500_T8 | B42: 5552.2254 | C42: 38.3392 | D42: 39.6155 | E42: 42.4108 | F42: 73162.61 | G42: 17.81 | H42: 400.49 | I42: 0
A43: KTADev2_intra_jvet10_SEIDecodedPictureHash=1_SEIDecodedPictureHash=1_SEIDecodedPictureHash=1_dummy_ClassB_S03_q0_32_F500_T8 | B43: 3007.1968 | C43: 36.2184 | D43: 38.6785 | E43: 40.8248 | F43: 48242.18 | G43: 15.55 | H43: 408.57 | I43: 0
A44: KTADev2_intra_jvet10_SEIDecodedPictureHash=1_SEIDecodedPictureHash=1_SEIDecodedPictureHash=1_dummy_ClassB_S03_q0_37_F500_T8 | B44: 1642.5992 | C44: 33.8907 | D44: 37.9372 | E44: 39.6566 | F44: 30634.18 | G44: 13.7 | H44: 393.67 | I44: 0
A45: KTADev2_intra_jvet10_SEIDecodedPictureHash=1_SEIDecodedPictureHash=1_SEIDecodedPictureHash=1_dummy_ClassB_S04_q0_22_F500_T8 | B45: 8203.9087 | C45: 41.5504 | D45: 44.7145 | E45: 46.598 | F45: 103318.52 | G45: 20.18 | H45: 400.6 | I45: 0
A46: KTADev2_intra_jvet10_SEIDecodedPictureHash=1_SEIDecodedPictureHash=1_SEIDecodedPictureHash=1_dummy_ClassB_S04_q0_27_F500_T8 | B46: 3306.5246 | C46: 39.0999 | D46: 43.4923 | E46: 44.696 | F46: 58827.54 | G46: 15.92 | H46: 392.72 | I46: 0
A47: KTADev2_intra_jvet10_SEIDecodedPictureHash=1_SEIDecodedPictureHash=1_SEIDecodedPictureHash=1_dummy_ClassB_S04_q0_32_F500_T8 | B47: 1707.3905 | C47: 37.4403 | D47: 42.2893 | E47: 42.9215 | F47: 32937.02 | G47: 13.62 | H47: 401.54 | I47: 0
A48: KTADev2_intra_jvet10_SEIDecodedPictureHash=1_SEIDecodedPictureHash=1_SEIDecodedPictureHash=1_dummy_ClassB_S04_q0_37_F500_T8 | B48: 961.1024 | C48: 35.6272 | D48: 41.3081 | E48: 41.5158 | F48: 20117.98 | G48: 12.17 | H48: 393.64 | I48: 0
A49: KTADev2_intra_jvet10_SEIDecodedPictureHash=1_SEIDecodedPictureHash=1_SEIDecodedPictureHash=1_dummy_ClassB_S05_q0_22_F600_T8 | B49: 21107.18 | C49: 42.6893 | D49: 42.7633 | E49: 44.7514 | F49: 140144.61 | G49: 28.39 | H49: 403.24 | I49: 0
A50: KTADev2_intra_jvet10_SEIDecodedPictureHash=1_SEIDecodedPictureHash=1_SEIDecodedPictureHash=1_dummy_ClassB_S05_q0_27_F600_T8 | B50: 9193.4376 | C50: 37.4994 | D50: 41.1053 | E50: 43.5039 | F50: 103649.57 | G50: 23.93 | H50: 390.96 | I50: 0
A51: KTADev2_intra_jvet10_SEIDecodedPictureHash=1_SEIDecodedPictureHash=1_SEIDecodedPictureHash=1_dummy_ClassB_S05_q0_32_F600_T8 | B51: 4529.8464 | C51: 34.9979 | D51: 39.8027 | E51: 42.4923 | F51: 65414.36 | G51: 18.88 | H51: 401.15 | I51: 0
A52: KTADev2_intra_jvet10_SEIDecodedPictureHash=1_SEIDecodedPictureHash=1_SEIDecodedPictureHash=1_dummy_ClassB_S05_q0_37_F600_T8 | B52: 2421.2952 | C52: 32.7196 | D52: 38.8857 | E52: 41.7579 | F52: 41325.82 | G52: 16.7 | H52: 392.55 | I52: 0
A53: KTADev2_intra_jvet10_SEIDecodedPictureHash=1_SEIDecodedPictureHash=1_SEIDecodedPictureHash=1_dummy_ClassC_S01_q0_22_F500_T8 | B53: 2228.6667 | C53: 42.5609 | D53: 44.2051 | E53: 45.0257 | F53: 22630.41 | G53: 7.42 | H53: 164.63 | I53: 0
A54: KTADev2_intra_jvet10_SEIDecodedPictureHash=1_SEIDecodedPictureHash=1_SEIDecodedPictureHash=1_dummy_ClassC_S01_q0_27_F500_T8 | B54: 1203.0008 | C54: 39.2515 | D54: 41.8557 | E54: 42.4025 | F54: 17178.53 | G54: 6.31 | H54: 189.72 | I54: 0
A55: KTADev2_intra_jvet10_SEIDecodedPictureHash=1_SEIDecodedPictureHash=1_SEIDecodedPictureHash=1_dummy_ClassC_S01_q0_32_F500_T8 | B55: 648.2857 | C55: 36.2773 | D55: 40.0058 | E55: 40.3546 | F55: 12100.19 | G55: 5.23 | H55: 184.38 | I55: 0
A56: KTADev2_intra_jvet10_SEIDecodedPictureHash=1_SEIDecodedPictureHash=1_SEIDecodedPictureHash=1_dummy_ClassC_S01_q0_37_F500_T8 | B56: 366.2492 | C56: 33.6615 | D56: 38.5335 | E56: 38.7099 | F56: 7655.81 | G56: 4.94 | H56: 183.99 | I56: 0
A57: KTADev2_intra_jvet10_SEIDecodedPictureHash=1_SEIDecodedPictureHash=1_SEIDecodedPictureHash=1_dummy_ClassC_S02_q0_22_F600_T8 | B57: 2669.9248 | C57: 42.4362 | D57: 44.4553 | E57: 46.1866 | F57: 30942.81 | G57: 8.55 | H57: 190.93 | I57: 0
A58: KTADev2_intra_jvet10_SEIDecodedPictureHash=1_SEIDecodedPictureHash=1_SEIDecodedPictureHash=1_dummy_ClassC_S02_q0_27_F600_T8 | B58: 1605.5744 | C58: 39.705 | D58: 42.3909 | E58: 43.8391 | F58: 23261.14 | G58: 6.87 | H58: 184.77 | I58: 0
A59: KTADev2_intra_jvet10_SEIDecodedPictureHash=1_SEIDecodedPictureHash=1_SEIDecodedPictureHash=1_dummy_ClassC_S02_q0_32_F600_T8 | B59: 952.7016 | C59: 36.7321 | D59: 40.6566 | E59: 41.8883 | F59: 17069.57 | G59: 6.2 | H59: 162.04 | I59: 0
A60: KTADev2_intra_jvet10_SEIDecodedPictureHash=1_SEIDecodedPictureHash=1_SEIDecodedPictureHash=1_dummy_ClassC_S02_q0_37_F600_T8 | B60: 551.1352 | C60: 33.6799 | D60: 39.3645 | E60: 40.3866 | F60: 11548.13 | G60: 5.83 | H60: 162.91 | I60: 0
A61: KTADev2_intra_jvet10_SEIDecodedPictureHash=1_SEIDecodedPictureHash=1_SEIDecodedPictureHash=1_dummy_ClassC_S03_q0_22_F500_T8 | B61: 5192.4921 | C61: 41.7717 | D61: 42.8017 | E61: 43.94 | F61: 36094.92 | G61: 9.17 | H61: 179.3 | I61: 0
A62: KTADev2_intra_jvet10_SEIDecodedPictureHash=1_SEIDecodedPictureHash=1_SEIDecodedPictureHash=1_dummy_ClassC_S03_q0_27_F500_T8 | B62: 3225.6365 | C62: 37.5412 | D62: 39.9623 | E62: 40.8851 | F62: 29769.51 | G62: 7.61 | H62: 185.62 | I62: 0
A63: KTADev2_intra_jvet10_SEIDecodedPictureHash=1_SEIDecodedPictureHash=1_SEIDecodedPictureHash=1_dummy_ClassC_S03_q0_32_F500_T8 | B63: 1934.069 | C63: 33.7667 | D63: 37.9177 | E63: 38.6437 | F63: 23653.84 | G63: 6.58 | H63: 184.09 | I63: 0
A64: KTADev2_intra_jvet10_SEIDecodedPictureHash=1_SEIDecodedPictureHash=1_SEIDecodedPictureHash=1_dummy_ClassC_S03_q0_37_F500_T8 | B64: 1061.6254 | C64: 30.0903 | D64: 36.4837 | E64: 37.1075 | F64: 17391.51 | G64: 5.59 | H64: 187.2 | I64: 0
A65: KTADev2_intra_jvet10_SEIDecodedPictureHash=1_SEIDecodedPictureHash=1_SEIDecodedPictureHash=1_dummy_ClassC_S04_q0_22_F300_T8 | B65: 1756.1542 | C65: 42.92 | D65: 43.4595 | E65: 44.3989 | F65: 17177.17 | G65: 4.2 | H65: 168.77 | I65: 0
A66: KTADev2_intra_jvet10_SEIDecodedPictureHash=1_SEIDecodedPictureHash=1_SEIDecodedPictureHash=1_dummy_ClassC_S04_q0_27_F300_T8 | B66: 1055.5737 | C66: 39.5862 | D66: 40.3441 | E66: 41.9807 | F66: 12629.31 | G66: 3.68 | H66: 183.03 | I66: 0
A67: KTADev2_intra_jvet10_SEIDecodedPictureHash=1_SEIDecodedPictureHash=1_SEIDecodedPictureHash=1_dummy_ClassC_S04_q0_32_F300_T8 | B67: 609.2234 | C67: 36.2314 | D67: 38.1939 | E67: 40.2594 | F67: 9712.75 | G67: 3.35 | H67: 176.3 | I67: 0
A68: KTADev2_intra_jvet10_SEIDecodedPictureHash=1_SEIDecodedPictureHash=1_SEIDecodedPictureHash=1_dummy_ClassC_S04_q0_37_F300_T8 | B68: 314.28 | C68: 32.823 | D68: 36.9255 | E68: 38.9862 | F68: 6388.04 | G68: 2.98 | H68: 178.15 | I68: 0
A69: KTADev2_intra_jvet10_SEIDecodedPictureHash=1_SEIDecodedPictureHash=1_SEIDecodedPictureHash=1_dummy_ClassD_S01_q0_22_F500_T8 | B69: 610.331 | C69: 43.741 | D69: 45.806 | E69: 45.5275 | F69: 6447.26 | G69: 2.88 | H69: 128.88 | I69: 0
A70: KTADev2_intra_jvet10_SEIDecodedPictureHash=1_SEIDecodedPictureHash=1_SEIDecodedPictureHash=1_dummy_ClassD_S01_q0_27_F500_T8 | B70: 369.3262 | C70: 40.2101 | D70: 43.0451 | E70: 42.4594 | F70: 4957.31 | G70: 2.64 | H70: 135.3 | I70: 0
A71: KTADev2_intra_jvet10_SEIDecodedPictureHash=1_SEIDecodedPictureHash=1_SEIDecodedPictureHash=1_dummy_ClassD_S01_q0_32_F500_T8 | B71: 216.3786 | C71: 36.7968 | D71: 40.7593 | E71: 39.939 | F71: 3413.57 | G71: 2.37 | H71: 125.02 | I71: 0
A72: KTADev2_intra_jvet10_SEIDecodedPictureHash=1_SEIDecodedPictureHash=1_SEIDecodedPictureHash=1_dummy_ClassD_S01_q0_37_F500_T8 | B72: 124.1921 | C72: 33.5756 | D72: 39.0555 | E72: 38.0649 | F72: 2305.2 | G72: 2.26 | H72: 115.24 | I72: 0
A73: KTADev2_intra_jvet10_SEIDecodedPictureHash=1_SEIDecodedPictureHash=1_SEIDecodedPictureHash=1_dummy_ClassD_S02_q0_22_F600_T8 | B73: 1570.928 | C73: 42.0312 | D73: 43.5931 | E73: 44.7976 | F73: 10380.23 | G73: 3.92 | H73: 133.11 | I73: 0
A74: KTADev2_intra_jvet10_SEIDecodedPictureHash=1_SEIDecodedPictureHash=1_SEIDecodedPictureHash=1_dummy_ClassD_S02_q0_27_F600_T8 | B74: 1002.7144 | C74: 37.6125 | D74: 40.9631 | E74: 42.2791 | F74: 8471.14 | G74: 3.55 | H74: 138.18 | I74: 0
A75: KTADev2_intra_jvet10_SEIDecodedPictureHash=1_SEIDecodedPictureHash=1_SEIDecodedPictureHash=1_dummy_ClassD_S02_q0_32_F600_T8 | B75: 618.3288 | C75: 33.7976 | D75: 39.4041 | E75: 40.563 | F75: 6340.76 | G75: 3.13 | H75: 114.29 | I75: 0
A76: KTADev2_intra_jvet10_SEIDecodedPictureHash=1_SEIDecodedPictureHash=1_SEIDecodedPictureHash=1_dummy_ClassD_S02_q0_37_F600_T8 | B76: 372.8312 | C76: 30.3369 | D76: 38.4741 | E76: 39.3685 | F76: 4816.87 | G76: 2.99 | H76: 115.89 | I76: 0
A77: KTADev2_intra_jvet10_SEIDecodedPictureHash=1_SEIDecodedPictureHash=1_SEIDecodedPictureHash=1_dummy_ClassD_S03_q0_22_F500_T8 | B77: 1355.1341 | C77: 41.7399 | D77: 42.395 | E77: 43.2943 | F77: 9461.57 | G77: 3.57 | H77: 133.3 | I77: 0
A78: KTADev2_intra_jvet10_SEIDecodedPictureHash=1_SEIDecodedPictureHash=1_SEIDecodedPictureHash=1_dummy_ClassD_S03_q0_27_F500_T8 | B78: 840.2071 | C78: 37.4703 | D78: 39.5554 | E78: 40.1795 | F78: 8012.42 | G78: 3.13 | H78: 112.83 | I78: 0
A79: KTADev2_intra_jvet10_SEIDecodedPictureHash=1_SEIDecodedPictureHash=1_SEIDecodedPictureHash=1_dummy_ClassD_S03_q0_32_F500_T8 | B79: 485.0429 | C79: 33.5121 | D79: 37.3801 | E79: 37.8575 | F79: 6300.72 | G79: 2.81 | H79: 139.17 | I79: 0
A80: KTADev2_intra_jvet10_SEIDecodedPictureHash=1_SEIDecodedPictureHash=1_SEIDecodedPictureHash=1_dummy_ClassD_S03_q0_37_F500_T8 | B80: 254.0143 | C80: 29.8897 | D80: 35.8628 | E80: 36.2864 | F80: 4435.79 | G80: 2.51 | H80: 113.79 | I80: 0
A81: KTADev2_intra_jvet10_SEIDecodedPictureHash=1_SEIDecodedPictureHash=1_SEIDecodedPictureHash=1_dummy_ClassD_S04_q0_22_F300_T8 | B81: 519.0703 | C81: 43.3448 | D81: 43.1696 | E81: 44.2262 | F81: 4505.64 | G81: 1.85 | H81: 133.11 | I81: 0
A82: KTADev2_intra_jvet10_SEIDecodedPictureHash=1_SEIDecodedPictureHash=1_SEIDecodedPictureHash=1_dummy_ClassD_S04_q0_27_F300_T8 | B82: 316.7621 | C82: 39.34 | D82: 40.1051 | E82: 41.5378 | F82: 3667.91 | G82: 1.73 | H82: 136.86 | I82: 0
A83: KTADev2_intra_jvet10_SEIDecodedPictureHash=1_SEIDecodedPictureHash=1_SEIDecodedPictureHash=1_dummy_ClassD_S04_q0_32_F300_T8 | B83: 178.2821 | C83: 35.437 | D83: 38.0965 | E83: 39.3912 | F83: 2874.66 | G83: 1.57 | H83: 136.42 | I83: 0
A84: KTADev2_intra_jvet10_SEIDecodedPictureHash=1_SEIDecodedPictureHash=1_SEIDecodedPictureHash=1_dummy_ClassD_S04_q0_37_F300_T8 | B84: 92.16 | C84: 31.996 | D84: 36.5685 | E84: 37.6328 | F84: 1761.18 | G84: 1.54 | H84: 112.39 | I84: 0
A85: KTADev2_intra_jvet10_SEIDecodedPictureHash=1_SEIDecodedPictureHash=1_SEIDecodedPictureHash=1_dummy_ClassE_S01_q0_22_F600_T8 | B85: 3364.7008 | C85: 44.4408 | D85: 47.4087 | E85: 48.6737 | F85: 48107.86 | G85: 14.1 | H85: 239.83 | I85: 0
A86: KTADev2_intra_jvet10_SEIDecodedPictureHash=1_SEIDecodedPictureHash=1_SEIDecodedPictureHash=1_dummy_ClassE_S01_q0_27_F600_T8 | B86: 2076.276 | C86: 42.0755 | D86: 45.3879 | E86: 46.7082 | F86: 35022.51 | G86: 11.5 | H86: 263.12 | I86: 0
A87: KTADev2_intra_jvet10_SEIDecodedPictureHash=1_SEIDecodedPictureHash=1_SEIDecodedPictureHash=1_dummy_ClassE_S01_q0_32_F600_T8 | B87: 1293.6184 | C87: 39.3062 | D87: 43.6469 | E87: 44.9036 | F87: 25620.36 | G87: 11.07 | H87: 267.04 | I87: 0
A88: KTADev2_intra_jvet10_SEIDecodedPictureHash=1_SEIDecodedPictureHash=1_SEIDecodedPictureHash=1_dummy_ClassE_S01_q0_37_F600_T8 | B88: 799.0096 | C88: 36.2313 | D88: 42.3686 | E88: 43.559 | F88: 17601.91 | G88: 9.83 | H88: 268.7 | I88: 0
A89: KTADev2_intra_jvet10_SEIDecodedPictureHash=1_SEIDecodedPictureHash=1_SEIDecodedPictureHash=1_dummy_ClassE_S02_q0_22_F600_T8 | B89: 2259.0064 | C89: 44.5218 | D89: 48.6436 | E89: 49.3827 | F89: 33147.3 | G89: 10.94 | H89: 234.94 | I89: 0
A90: KTADev2_intra_jvet10_SEIDecodedPictureHash=1_SEIDecodedPictureHash=1_SEIDecodedPictureHash=1_dummy_ClassE_S02_q0_27_F600_T8 | B90: 1258.752 | C90: 42.4804 | D90: 46.9469 | E90: 47.7393 | F90: 22684.58 | G90: 9.91 | H90: 265.18 | I90: 0
A91: KTADev2_intra_jvet10_SEIDecodedPictureHash=1_SEIDecodedPictureHash=1_SEIDecodedPictureHash=1_dummy_ClassE_S02_q0_32_F600_T8 | B91: 724.0552 | C91: 40.2495 | D91: 45.3171 | E91: 46.0963 | F91: 15226.01 | G91: 9.06 | H91: 265.16 | I91: 0
A92: KTADev2_intra_jvet10_SEIDecodedPictureHash=1_SEIDecodedPictureHash=1_SEIDecodedPictureHash=1_dummy_ClassE_S02_q0_37_F600_T8 | B92: 426.3056 | C92: 37.7676 | D92: 43.9377 | E92: 44.759 | F92: 9678.4 | G92: 8.39 | H92: 254.87 | I92: 0
A93: KTADev2_intra_jvet10_SEIDecodedPictureHash=1_SEIDecodedPictureHash=1_SEIDecodedPictureHash=1_dummy_ClassE_S03_q0_22_F600_T8 | B93: 2463.8312 | C93: 44.9604 | D93: 48.0562 | E93: 48.9738 | F93: 36758.26 | G93: 12.04 | H93: 268.88 | I93: 0
A94: KTADev2_intra_jvet10_SEIDecodedPictureHash=1_SEIDecodedPictureHash=1_SEIDecodedPictureHash=1_dummy_ClassE_S03_q0_27_F600_T8 | B94: 1481.7464 | C94: 42.8362 | D94: 46.1511 | E94: 47.2019 | F94: 25757.65 | G94: 10.76 | H94: 258.84 | I94: 0
A95: KTADev2_intra_jvet10_SEIDecodedPictureHash=1_SEIDecodedPictureHash=1_SEIDecodedPictureHash=1_dummy_ClassE_S03_q0_32_F600_T8 | B95: 903.0136 | C95: 40.3342 | D95: 44.4336 | E95: 45.5442 | F95: 18168.3 | G95: 9.63 | H95: 268.22 | I95: 0
A96: KTADev2_intra_jvet10_SEIDecodedPictureHash=1_SEIDecodedPictureHash=1_SEIDecodedPictureHash=1_dummy_ClassE_S03_q0_37_F600_T8 | B96: 557.512 | C96: 37.5565 | D96: 43.1787 | E96: 44.3227 | F96: 12406.99 | G96: 8.83 | H96: 234.59 | I96: 0
A97: KTADev2_intra_jvet10_SEIDecodedPictureHash=1_SEIDecodedPictureHash=1_SEIDecodedPictureHash=1_dummy_ClassF_S01_q0_22_F500_T8 | B97: 2432.069 | C97: 42.7778 | D97: 44.2116 | E97: 44.9622 | F97: 22532.26 | G97: 7.52 | H97: 183.7 | I97: 0
A98: KTADev2_intra_jvet10_SEIDecodedPictureHash=1_SEIDecodedPictureHash=1_SEIDecodedPictureHash=1_dummy_ClassF_S01_q0_27_F500_T8 | B98: 1392.7492 | C98: 39.3862 | D98: 41.603 | E98: 42.1184 | F98: 18001.13 | G98: 6.26 | H98: 186.62 | I98: 0
A99: KTADev2_intra_jvet10_SEIDecodedPictureHash=1_SEIDecodedPictureHash=1_SEIDecodedPictureHash=1_dummy_ClassF_S01_q0_32_F500_T8 | B99: 805.4778 | C99: 36.319 | D99: 39.4662 | E99: 39.8111 | F99: 12672.68 | G99: 5.43 | H99: 165.3 | I99: 0
A100: KTADev2_intra_jvet10_SEIDecodedPictureHash=1_SEIDecodedPictureHash=1_SEIDecodedPictureHash=1_dummy_ClassF_S01_q0_37_F500_T8 | B100: 481.9754 | C100: 33.5017 | D100: 37.8058 | E100: 37.9773 | F100: 8809.03 | G100: 5 | H100: 189.44 | I100: 0
A101: KTADev2_intra_jvet10_SEIDecodedPictureHash=1_SEIDecodedPictureHash=1_SEIDecodedPictureHash=1_dummy_ClassF_S02_q0_22_F500_T8 | B101: 2637.761 | C101: 45.5668 | D101: 47.2927 | E101: 47.379 | F101: 39628.47 | G101: 10.75 | H101: 217.42 | I101: 0
A102: KTADev2_intra_jvet10_SEIDecodedPictureHash=1_SEIDecodedPictureHash=1_SEIDecodedPictureHash=1_dummy_ClassF_S02_q0_27_F500_T8 | B102: 1762.0338 | C102: 41.5822 | D102: 44.5376 | E102: 44.2139 | F102: 32268.63 | G102: 9.41 | H102: 243.44 | I102: 0
A103: KTADev2_intra_jvet10_SEIDecodedPictureHash=1_SEIDecodedPictureHash=1_SEIDecodedPictureHash=1_dummy_ClassF_S02_q0_32_F500_T8 | B103: 1136.72 | C103: 37.7471 | D103: 42.3572 | E103: 41.3848 | F103: 25213.63 | G103: 8.4 | H103: 234.75 | I103: 0
A104: KTADev2_intra_jvet10_SEIDecodedPictureHash=1_SEIDecodedPictureHash=1_SEIDecodedPictureHash=1_dummy_ClassF_S02_q0_37_F500_T8 | B104: 730.0895 | C104: 34.1419 | D104: 40.6893 | E104: 39.1791 | F104: 19046.36 | G104: 7.84 | H104: 244.9 | I104: 0
A105: KTADev2_intra_jvet10_SEIDecodedPictureHash=1_SEIDecodedPictureHash=1_SEIDecodedPictureHash=1_dummy_ClassF_S03_q0_22_F300_T8 | B105: 3787.0042 | C105: 47.5203 | D105: 45.5663 | E105: 45.8314 | F105: 26136.08 | G105: 7.74 | H105: 249.54 | I105: 0
A106: KTADev2_intra_jvet10_SEIDecodedPictureHash=1_SEIDecodedPictureHash=1_SEIDecodedPictureHash=1_dummy_ClassF_S03_q0_27_F300_T8 | B106: 2871.525 | C106: 43.2516 | D106: 41.4675 | E106: 42.4611 | F106: 23294.38 | G106: 7.03 | H106: 263.43 | I106: 0
A107: KTADev2_intra_jvet10_SEIDecodedPictureHash=1_SEIDecodedPictureHash=1_SEIDecodedPictureHash=1_dummy_ClassF_S03_q0_32_F300_T8 | B107: 2187.9766 | C107: 38.7474 | D107: 39.2845 | E107: 40.5674 | F107: 20970.34 | G107: 6.76 | H107: 265.17 | I107: 0
A108: KTADev2_intra_jvet10_SEIDecodedPictureHash=1_SEIDecodedPictureHash=1_SEIDecodedPictureHash=1_dummy_ClassF_S03_q0_37_F300_T8 | B108: 1651.3461 | C108: 34.0569 | D108: 38.3516 | E108: 39.548 | F108: 18100.87 | G108: 5.95 | H108: 230.55 | I108: 0
A109: KTADev2_intra_jvet10_SEIDecodedPictureHash=1_SEIDecodedPictureHash=1_SEIDecodedPictureHash=1_dummy_ClassF_S04_q0_22_F500_T8 | B109: 601.5968 | C109: 51.3657 | D109: 53.9243 | E109: 54.7741 | F109: 17914.61 | G109: 7.73 | H109: 266.3 | I109: 0
A110: KTADev2_intra_jvet10_SEIDecodedPictureHash=1_SEIDecodedPictureHash=1_SEIDecodedPictureHash=1_dummy_ClassF_S04_q0_27_F500_T8 | B110: 407.8514 | C110: 47.8203 | D110: 50.809 | E110: 51.9047 | F110: 14151.31 | G110: 7.35 | H110: 239.45 | I110: 0
A111: KTADev2_intra_jvet10_SEIDecodedPictureHash=1_SEIDecodedPictureHash=1_SEIDecodedPictureHash=1_dummy_ClassF_S04_q0_32_F500_T8 | B111: 278.82 | C111: 44.2322 | D111: 48.3638 | E111: 49.9029 | F111: 11282.63 | G111: 6.92 | H111: 248.92 | I111: 0
A112: KTADev2_intra_jvet10_SEIDecodedPictureHash=1_SEIDecodedPictureHash=1_SEIDecodedPictureHash=1_dummy_ClassF_S04_q0_37_F500_T8 | B112: 188.0025 | C112: 40.4252 | D112: 46.6233 | E112: 48.4974 | F112: 9100.85 | G112: 6.73 | H112: 243.52 | I112: 0
A113: KTADev2_randomaccess_jvet10_SEIDecodedPictureHash=1_SEIDecodedPictureHash=1_SEIDecodedPictureHash=1_dummy_ClassA1_S01_q0_22_F294_T1 | B113: 29629.058 | C113: 40.3571 | D113: 49.0163 | E113: 47.2393 | F113: 1044308.42 | G113: 750.32 | H113: 6540.37 | I113: 0
A114: KTADev2_randomaccess_jvet10_SEIDecodedPictureHash=1_SEIDecodedPictureHash=1_SEIDecodedPictureHash=1_dummy_ClassA1_S01_q0_27_F294_T1 | B114: 7693.0873 | C114: 39.6332 | D114: 48.3336 | E114: 46.1137 | F114: 601164.77 | G114: 845.78 | H114: 6530.69 | I114: 0
A115: KTADev2_randomaccess_jvet10_SEIDecodedPictureHash=1_SEIDecodedPictureHash=1_SEIDecodedPictureHash=1_dummy_ClassA1_S01_q0_32_F294_T1 | B115: 3750.6531 | C115: 38.7328 | D115: 47.5207 | E115: 44.8997 | F115: 460844.43 | G115: 882.79 | H115: 6510.64 | I115: 0
A116: KTADev2_randomaccess_jvet10_SEIDecodedPictureHash=1_SEIDecodedPictureHash=1_SEIDecodedPictureHash=1_dummy_ClassA1_S01_q0_37_F294_T1 | B116: 2043.3845 | C116: 37.3642 | D116: 46.7886 | E116: 43.7239 | F116: 357633.18 | G116: 931.78 | H116: 6521.16 | I116: 0
A117: KTADev2_randomaccess_jvet10_SEIDecodedPictureHash=1_SEIDecodedPictureHash=1_SEIDecodedPictureHash=1_dummy_ClassA1_S02_q0_22_F300_T1 | B117: 93022.328 | C117: 41.7826 | D117: 43.9871 | E117: 42.1108 | F117: 857125.31 | G117: 845.99 | H117: 6171.72 | I117: 0
A118: KTADev2_randomaccess_jvet10_SEIDecodedPictureHash=1_SEIDecodedPictureHash=1_SEIDecodedPictureHash=1_dummy_ClassA1_S02_q0_27_F300_T1 | B118: 22511.5787 | C118: 39.4579 | D118: 42.8658 | E118: 41.0912 | F118: 486002.81 | G118: 660.79 | H118: 6148.05 | I118: 0
A119: KTADev2_randomaccess_jvet10_SEIDecodedPictureHash=1_SEIDecodedPictureHash=1_SEIDecodedPictureHash=1_dummy_ClassA1_S02_q0_32_F300_T1 | B119: 9220.2907 | C119: 37.6406 | D119: 41.8358 | E119: 40.1839 | F119: 373172.65 | G119: 680.85 | H119: 6178.94 | I119: 0
A120: KTADev2_randomaccess_jvet10_SEIDecodedPictureHash=1_SEIDecodedPictureHash=1_SEIDecodedPictureHash=1_dummy_ClassA1_S02_q0_37_F300_T1 | B120: 4557.504 | C120: 35.6001 | D120: 40.8871 | E120: 39.3567 | F120: 289725.19 | G120: 701.37 | H120: 6142.53 | I120: 0
A121: KTADev2_randomaccess_jvet10_SEIDecodedPictureHash=1_SEIDecodedPictureHash=1_SEIDecodedPictureHash=1_dummy_ClassA1_S03_q0_22_F300_T1 | B121: 50888.0144 | C121: 39.1448 | D121: 42.1038 | E121: 43.1612 | F121: 1452757.75 | G121: 587.15 | H121: 6180.31 | I121: 0
A122: KTADev2_randomaccess_jvet10_SEIDecodedPictureHash=1_SEIDecodedPictureHash=1_SEIDecodedPictureHash=1_dummy_ClassA1_S03_q0_27_F300_T1 | B122: 15853.4512 | C122: 37.6005 | D122: 39.1997 | E122: 41.5829 | F122: 884501.65 | G122: 466.16 | H122: 6163.33 | I122: 0
A123: KTADev2_randomaccess_jvet10_SEIDecodedPictureHash=1_SEIDecodedPictureHash=1_SEIDecodedPictureHash=1_dummy_ClassA1_S03_q0_32_F300_T1 | B123: 7925.7672 | C123: 36.4715 | D123: 37.3754 | E123: 40.3712 | F123: 686068.16 | G123: 483.02 | H123: 6146.57 | I123: 0
A124: KTADev2_randomaccess_jvet10_SEIDecodedPictureHash=1_SEIDecodedPictureHash=1_SEIDecodedPictureHash=1_dummy_ClassA1_S03_q0_37_F300_T1 | B124: 4203.0672 | C124: 35.066 | D124: 35.2007 | E124: 38.9017 | F124: 535353.19 | G124: 517.27 | H124: 6167.89 | I124: 0
A125: KTADev2_randomaccess_jvet10_SEIDecodedPictureHash=1_SEIDecodedPictureHash=1_SEIDecodedPictureHash=1_dummy_ClassA1_S04_q0_22_F300_T1 | B125: 204746.432 | C125: 40.3005 | D125: 45.5323 | E125: 41.6974 | F125: 2062648.99 | G125: 757.93 | H125: 6539.38 | I125: 0
A126: KTADev2_randomaccess_jvet10_SEIDecodedPictureHash=1_SEIDecodedPictureHash=1_SEIDecodedPictureHash=1_dummy_ClassA1_S04_q0_27_F300_T1 | B126: 89963.6752 | C126: 36.2331 | D126: 44.3524 | E126: 40.2243 | F126: 1749768.51 | G126: 852.26 | H126: 6543.29 | I126: 0
A127: KTADev2_randomaccess_jvet10_SEIDecodedPictureHash=1_SEIDecodedPictureHash=1_SEIDecodedPictureHash=1_dummy_ClassA1_S04_q0_32_F300_T1 | B127: 41308.112 | C127: 33.0812 | D127: 43.7464 | E127: 39.5807 | F127: 1282853.53 | G127: 931.14 | H127: 6541.32 | I127: 0
A128: KTADev2_randomaccess_jvet10_SEIDecodedPictureHash=1_SEIDecodedPictureHash=1_SEIDecodedPictureHash=1_dummy_ClassA1_S04_q0_37_F300_T1 | B128: 17690.16 | C128: 30.3884 | D128: 43.1828 | E128: 39.0666 | F128: 967912.44 | G128: 995.64 | H128: 6541.62 | I128: 0
A129: KTADev2_randomaccess_jvet10_SEIDecodedPictureHash=1_SEIDecodedPictureHash=1_SEIDecodedPictureHash=1_dummy_ClassA2_S01_q0_22_F300_T1 | B129: 32677.9472 | C129: 40.3909 | D129: 41.7719 | E129: 43.3386 | F129: 673449.69 | G129: 951.71 | H129: 6135.95 | I129: 0
A130: KTADev2_randomaccess_jvet10_SEIDecodedPictureHash=1_SEIDecodedPictureHash=1_SEIDecodedPictureHash=1_dummy_ClassA2_S01_q0_27_F300_T1 | B130: 8718.1136 | C130: 39.3987 | D130: 41.2818 | E130: 42.2295 | F130: 439208.01 | G130: 1002.72 | H130: 6158.72 | I130: 0
A131: KTADev2_randomaccess_jvet10_SEIDecodedPictureHash=1_SEIDecodedPictureHash=1_SEIDecodedPictureHash=1_dummy_ClassA2_S01_q0_32_F300_T1 | B131: 4211.6656 | C131: 38.1354 | D131: 40.7118 | E131: 41.0642 | F131: 336790.06 | G131: 1008.52 | H131: 6149.06 | I131: 0
A132: KTADev2_randomaccess_jvet10_SEIDecodedPictureHash=1_SEIDecodedPictureHash=1_SEIDecodedPictureHash=1_dummy_ClassA2_S01_q0_37_F300_T1 | B132: 2232.3728 | C132: 36.4042 | D132: 40.1202 | E132: 39.9396 | F132: 266280.64 | G132: 1001.53 | H132: 6165.59 | I132: 0
A133: KTADev2_randomaccess_jvet10_SEIDecodedPictureHash=1_SEIDecodedPictureHash=1_SEIDecodedPictureHash=1_dummy_ClassA2_S02_q0_22_F300_T1 | B133: 14467.696 | C133: 40.0715 | D133: 47.7017 | E133: 47.2111 | F133: 487275.27 | G133: 676.47 | H133: 6165.27 | I133: 0
A134: KTADev2_randomaccess_jvet10_SEIDecodedPictureHash=1_SEIDecodedPictureHash=1_SEIDecodedPictureHash=1_dummy_ClassA2_S02_q0_27_F300_T1 | B134: 3371.0832 | C134: 39.2198 | D134: 46.5673 | E134: 46.2968 | F134: 266411.69 | G134: 644.16 | H134: 6146.89 | I134: 0
A135: KTADev2_randomaccess_jvet10_SEIDecodedPictureHash=1_SEIDecodedPictureHash=1_SEIDecodedPictureHash=1_dummy_ClassA2_S02_q0_32_F300_T1 | B135: 1480.3928 | C135: 38.1921 | D135: 45.374 | E135: 45.2101 | F135: 186028.09 | G135: 642.4 | H135: 6162.1 | I135: 0
A136: KTADev2_randomaccess_jvet10_SEIDecodedPictureHash=1_SEIDecodedPictureHash=1_SEIDecodedPictureHash=1_dummy_ClassA2_S02_q0_37_F300_T1 | B136: 729.9096 | C136: 36.9076 | D136: 44.0895 | E136: 43.9679 | F136: 146248.51 | G136: 672.41 | H136: 6174.5 | I136: 0
A137: KTADev2_randomaccess_jvet10_SEIDecodedPictureHash=1_SEIDecodedPictureHash=1_SEIDecodedPictureHash=1_dummy_ClassA2_S03_q0_22_F300_T1 | B137: 55297.4704 | C137: 38.1713 | D137: 45.9052 | E137: 43.802 | F137: 965208.75 | G137: 741.84 | H137: 6164.2 | I137: 0
A138: KTADev2_randomaccess_jvet10_SEIDecodedPictureHash=1_SEIDecodedPictureHash=1_SEIDecodedPictureHash=1_dummy_ClassA2_S03_q0_27_F300_T1 | B138: 10403.9408 | C138: 37.287 | D138: 45.1175 | E138: 42.884 | F138: 529153.39 | G138: 766.46 | H138: 6173.28 | I138: 0
A139: KTADev2_randomaccess_jvet10_SEIDecodedPictureHash=1_SEIDecodedPictureHash=1_SEIDecodedPictureHash=1_dummy_ClassA2_S03_q0_32_F300_T1 | B139: 4263.1024 | C139: 36.3673 | D139: 44.2273 | E139: 41.8886 | F139: 378032.34 | G139: 725.46 | H139: 6178.75 | I139: 0
A140: KTADev2_randomaccess_jvet10_SEIDecodedPictureHash=1_SEIDecodedPictureHash=1_SEIDecodedPictureHash=1_dummy_ClassA2_S03_q0_37_F300_T1 | B140: 2133.4752 | C140: 35.0117 | D140: 43.3313 | E140: 40.8888 | F140: 293337.37 | G140: 717.84 | H140: 6146.89 | I140: 0
A141: KTADev2_randomaccess_jvet10_SEIDecodedPictureHash=1_SEIDecodedPictureHash=1_SEIDecodedPictureHash=1_dummy_ClassA2_S04_q0_22_F300_T1 | B141: 20663.3808 | C141: 45.5033 | D141: 47.2407 | E141: 45.9542 | F141: 860413.87 | G141: 693.56 | H141: 6518.55 | I141: 0
A142: KTADev2_randomaccess_jvet10_SEIDecodedPictureHash=1_SEIDecodedPictureHash=1_SEIDecodedPictureHash=1_dummy_ClassA2_S04_q0_27_F300_T1 | B142: 7708.9696 | C142: 43.5202 | D142: 45.8069 | E142: 44.8381 | F142: 616933.76 | G142: 654.38 | H142: 6509.67 | I142: 0
A143: KTADev2_randomaccess_jvet10_SEIDecodedPictureHash=1_SEIDecodedPictureHash=1_SEIDecodedPictureHash=1_dummy_ClassA2_S04_q0_32_F300_T1 | B143: 3766.592 | C143: 41.4331 | D143: 44.4661 | E143: 43.9104 | F143: 473682.27 | G143: 591.53 | H143: 6512.79 | I143: 0
A144: KTADev2_randomaccess_jvet10_SEIDecodedPictureHash=1_SEIDecodedPictureHash=1_SEIDecodedPictureHash=1_dummy_ClassA2_S04_q0_37_F300_T1 | B144: 1974.5376 | C144: 39.1104 | D144: 43.1759 | E144: 43.0609 | F144: 366337.98 | G144: 534.51 | H144: 6497.09 | I144: 0
A145: KTADev2_randomaccess_jvet10_SEIDecodedPictureHash=1_SEIDecodedPictureHash=1_SEIDecodedPictureHash=1_dummy_ClassB_S01_q0_22_F240_T1 | B145: 4097.3336 | C145: 41.9649 | D145: 43.6018 | E145: 45.4352 | F145: 154145.35 | G145: 184.72 | H145: 1827.84 | I145: 0
A146: KTADev2_randomaccess_jvet10_SEIDecodedPictureHash=1_SEIDecodedPictureHash=1_SEIDecodedPictureHash=1_dummy_ClassB_S01_q0_27_F240_T1 | B146: 1743.888 | C146: 40.0832 | D146: 42.4622 | E146: 43.725 | F146: 113934.02 | G146: 186.69 | H146: 1839.63 | I146: 0
A147: KTADev2_randomaccess_jvet10_SEIDecodedPictureHash=1_SEIDecodedPictureHash=1_SEIDecodedPictureHash=1_dummy_ClassB_S01_q0_32_F240_T1 | B147: 852.3128 | C147: 37.8386 | D147: 41.4861 | E147: 42.4722 | F147: 87277.66 | G147: 192.38 | H147: 1832.4 | I147: 0
A148: KTADev2_randomaccess_jvet10_SEIDecodedPictureHash=1_SEIDecodedPictureHash=1_SEIDecodedPictureHash=1_dummy_ClassB_S01_q0_37_F240_T1 | B148: 415.0528 | C148: 35.3797 | D148: 40.5988 | E148: 41.5644 | F148: 69498.83 | G148: 202.49 | H148: 1832.93 | I148: 0
A149: KTADev2_randomaccess_jvet10_SEIDecodedPictureHash=1_SEIDecodedPictureHash=1_SEIDecodedPictureHash=1_dummy_ClassB_S02_q0_22_F240_T1 | B149: 6355.352 | C149: 40.4726 | D149: 42.6155 | E149: 44.1942 | F149: 126171.69 | G149: 172.21 | H149: 1832.6 | I149: 0
A150: KTADev2_randomaccess_jvet10_SEIDecodedPictureHash=1_SEIDecodedPictureHash=1_SEIDecodedPictureHash=1_dummy_ClassB_S02_q0_27_F240_T1 | B150: 2663.3184 | C150: 38.0375 | D150: 41.1668 | E150: 42.0774 | F150: 93679.23 | G150: 166.09 | H150: 1840.42 | I150: 0
A151: KTADev2_randomaccess_jvet10_SEIDecodedPictureHash=1_SEIDecodedPictureHash=1_SEIDecodedPictureHash=1_dummy_ClassB_S02_q0_32_F240_T1 | B151: 1238.172 | C151: 35.5597 | D151: 39.8183 | E151: 40.48 | F151: 71867.18 | G151: 165.33 | H151: 1840.69 | I151: 0
A152: KTADev2_randomaccess_jvet10_SEIDecodedPictureHash=1_SEIDecodedPictureHash=1_SEIDecodedPictureHash=1_dummy_ClassB_S02_q0_37_F240_T1 | B152: 573.1432 | C152: 33.097 | D152: 38.5518 | E152: 39.417 | F152: 54560.55 | G152: 171.51 | H152: 1818.11 | I152: 0
A153: KTADev2_randomaccess_jvet10_SEIDecodedPictureHash=1_SEIDecodedPictureHash=1_SEIDecodedPictureHash=1_dummy_ClassB_S03_q0_22_F500_T1 | B153: 14522.0184 | C153: 38.6864 | D153: 40.0222 | E153: 43.7863 | F153: 327103.68 | G153: 414.59 | H153: 1843.83 | I153: 0
A154: KTADev2_randomaccess_jvet10_SEIDecodedPictureHash=1_SEIDecodedPictureHash=1_SEIDecodedPictureHash=1_dummy_ClassB_S03_q0_27_F500_T1 | B154: 4346.4976 | C154: 37.1843 | D154: 39.3478 | E154: 42.3913 | F154: 213988.59 | G154: 395.24 | H154: 1842.38 | I154: 0
A155: KTADev2_randomaccess_jvet10_SEIDecodedPictureHash=1_SEIDecodedPictureHash=1_SEIDecodedPictureHash=1_dummy_ClassB_S03_q0_32_F500_T1 | B155: 2016.4552 | C155: 35.5116 | D155: 38.7277 | E155: 41.0754 | F155: 167571.96 | G155: 397.36 | H155: 1821.13 | I155: 0
A156: KTADev2_randomaccess_jvet10_SEIDecodedPictureHash=1_SEIDecodedPictureHash=1_SEIDecodedPictureHash=1_dummy_ClassB_S03_q0_37_F500_T1 | B156: 997.8912 | C156: 33.4394 | D156: 38.0071 | E156: 39.8371 | F156: 132499.25 | G156: 381.88 | H156: 1818.82 | I156: 0
A157: KTADev2_randomaccess_jvet10_SEIDecodedPictureHash=1_SEIDecodedPictureHash=1_SEIDecodedPictureHash=1_dummy_ClassB_S04_q0_22_F500_T1 | B157: 14463.2336 | C157: 39.4331 | D157: 44.0521 | E157: 45.433 | F157: 437373.86 | G157: 331.33 | H157: 1822.95 | I157: 0
A158: KTADev2_randomaccess_jvet10_SEIDecodedPictureHash=1_SEIDecodedPictureHash=1_SEIDecodedPictureHash=1_dummy_ClassB_S04_q0_27_F500_T1 | B158: 4703.9304 | C158: 37.81 | D158: 43.0593 | E158: 43.7988 | F158: 287464.66 | G158: 300.33 | H158: 1820.88 | I158: 0
A159: KTADev2_randomaccess_jvet10_SEIDecodedPictureHash=1_SEIDecodedPictureHash=1_SEIDecodedPictureHash=1_dummy_ClassB_S04_q0_32_F500_T1 | B159: 2204.4184 | C159: 36.1148 | D159: 42.0798 | E159: 42.3255 | F159: 221503.34 | G159: 309.91 | H159: 1842.97 | I159: 0
A160: KTADev2_randomaccess_jvet10_SEIDecodedPictureHash=1_SEIDecodedPictureHash=1_SEIDecodedPictureHash=1_dummy_ClassB_S04_q0_37_F500_T1 | B160: 1106.028 | C160: 34.1378 | D160: 41.1395 | E160: 40.8668 | F160: 176137.81 | G160: 332.12 | H160: 1839.18 | I160: 0
A161: KTADev2_randomaccess_jvet10_SEIDecodedPictureHash=1_SEIDecodedPictureHash=1_SEIDecodedPictureHash=1_dummy_ClassB_S05_q0_22_F600_T1 | B161: 33161.912 | C161: 37.4948 | D161: 42.3526 | E161: 44.7037 | F161: 421666.54 | G161: 603.97 | H161: 1844.18 | I161: 0
A162: KTADev2_randomaccess_jvet10_SEIDecodedPictureHash=1_SEIDecodedPictureHash=1_SEIDecodedPictureHash=1_dummy_ClassB_S05_q0_27_F600_T1 | B162: 5742.0384 | C162: 35.5041 | D162: 41.3834 | E162: 43.88 | F162: 199801.12 | G162: 314.37 | H162: 1838.53 | I162: 0
A163: KTADev2_randomaccess_jvet10_SEIDecodedPictureHash=1_SEIDecodedPictureHash=1_SEIDecodedPictureHash=1_dummy_ClassB_S05_q0_32_F600_T1 | B163: 1788.3368 | C163: 34.2408 | D163: 40.3623 | E163: 43.0456 | F163: 131266.9 | G163: 271.65 | H163: 1838.06 | I163: 0
A164: KTADev2_randomaccess_jvet10_SEIDecodedPictureHash=1_SEIDecodedPictureHash=1_SEIDecodedPictureHash=1_dummy_ClassB_S05_q0_37_F600_T1 | B164: 798.3272 | C164: 32.7338 | D164: 39.3449 | E164: 42.1775 | F164: 96041.35 | G164: 270.82 | H164: 1822.13 | I164: 0
A165: KTADev2_randomaccess_jvet10_SEIDecodedPictureHash=1_SEIDecodedPictureHash=1_SEIDecodedPictureHash=1_dummy_ClassC_S01_q0_22_F500_T1 | B165: 2809.228 | C165: 41.4966 | D165: 43.59 | E165: 44.3316 | F165: 86873.52 | G165: 83.47 | H165: 567.7 | I165: 0
A166: KTADev2_randomaccess_jvet10_SEIDecodedPictureHash=1_SEIDecodedPictureHash=1_SEIDecodedPictureHash=1_dummy_ClassC_S01_q0_27_F500_T1 | B166: 1304.8056 | C166: 38.3115 | D166: 41.5701 | E166: 41.923 | F166: 73440.27 | G166: 87.37 | H166: 569.47 | I166: 0
A167: KTADev2_randomaccess_jvet10_SEIDecodedPictureHash=1_SEIDecodedPictureHash=1_SEIDecodedPictureHash=1_dummy_ClassC_S01_q0_32_F500_T1 | B167: 651.8096 | C167: 35.3702 | D167: 39.8741 | E167: 40.0399 | F167: 60339.65 | G167: 99.01 | H167: 569.03 | I167: 0
A168: KTADev2_randomaccess_jvet10_SEIDecodedPictureHash=1_SEIDecodedPictureHash=1_SEIDecodedPictureHash=1_dummy_ClassC_S01_q0_37_F500_T1 | B168: 329.5024 | C168: 32.7364 | D168: 38.3174 | E168: 38.2851 | F168: 48909.42 | G168: 108.74 | H168: 569.96 | I168: 0
A169: KTADev2_randomaccess_jvet10_SEIDecodedPictureHash=1_SEIDecodedPictureHash=1_SEIDecodedPictureHash=1_dummy_ClassC_S02_q0_22_F600_T1 | B169: 2867.2312 | C169: 40.5955 | D169: 43.8822 | E169: 45.6173 | F169: 89549.66 | G169: 140.48 | H169: 571.16 | I169: 0
A170: KTADev2_randomaccess_jvet10_SEIDecodedPictureHash=1_SEIDecodedPictureHash=1_SEIDecodedPictureHash=1_dummy_ClassC_S02_q0_27_F600_T1 | B170: 1282.4664 | C170: 38.1239 | D170: 42.2363 | E170: 43.5843 | F170: 70252.84 | G170: 142.74 | H170: 570.08 | I170: 0
A171: KTADev2_randomaccess_jvet10_SEIDecodedPictureHash=1_SEIDecodedPictureHash=1_SEIDecodedPictureHash=1_dummy_ClassC_S02_q0_32_F600_T1 | B171: 642.4816 | C171: 35.4863 | D171: 40.7368 | E171: 41.8244 | F171: 57520.13 | G171: 145.38 | H171: 569.7 | I171: 0
A172: KTADev2_randomaccess_jvet10_SEIDecodedPictureHash=1_SEIDecodedPictureHash=1_SEIDecodedPictureHash=1_dummy_ClassC_S02_q0_37_F600_T1 | B172: 329.9544 | C172: 32.7353 | D172: 39.5108 | E172: 40.4284 | F172: 47428.61 | G172: 147.73 | H172: 570.34 | I172: 0
A173: KTADev2_randomaccess_jvet10_SEIDecodedPictureHash=1_SEIDecodedPictureHash=1_SEIDecodedPictureHash=1_dummy_ClassC_S03_q0_22_F500_T1 | B173: 5599.1264 | C173: 38.936 | D173: 41.9398 | E173: 43.2417 | F173: 89267.39 | G173: 118.68 | H173: 571.12 | I173: 0
A174: KTADev2_randomaccess_jvet10_SEIDecodedPictureHash=1_SEIDecodedPictureHash=1_SEIDecodedPictureHash=1_dummy_ClassC_S03_q0_27_F500_T1 | B174: 2488.9472 | C174: 35.5122 | D174: 39.7135 | E174: 40.8726 | F174: 68719.02 | G174: 121.06 | H174: 569.72 | I174: 0
A175: KTADev2_randomaccess_jvet10_SEIDecodedPictureHash=1_SEIDecodedPictureHash=1_SEIDecodedPictureHash=1_dummy_ClassC_S03_q0_32_F500_T1 | B175: 1195.4272 | C175: 32.4621 | D175: 38.0011 | E175: 38.9862 | F175: 57918.04 | G175: 149.04 | H175: 570.43 | I175: 0
A176: KTADev2_randomaccess_jvet10_SEIDecodedPictureHash=1_SEIDecodedPictureHash=1_SEIDecodedPictureHash=1_dummy_ClassC_S03_q0_37_F500_T1 | B176: 563.0016 | C176: 29.5937 | D176: 36.5433 | E176: 37.3253 | F176: 45979.32 | G176: 150.7 | H176: 570.64 | I176: 0
A177: KTADev2_randomaccess_jvet10_SEIDecodedPictureHash=1_SEIDecodedPictureHash=1_SEIDecodedPictureHash=1_dummy_ClassC_S04_q0_22_F300_T1 | B177: 4178.4688 | C177: 39.4741 | D177: 41.282 | E177: 42.9182 | F177: 87231.86 | G177: 79.75 | H177: 567.14 | I177: 0
A178: KTADev2_randomaccess_jvet10_SEIDecodedPictureHash=1_SEIDecodedPictureHash=1_SEIDecodedPictureHash=1_dummy_ClassC_S04_q0_27_F300_T1 | B178: 1626.9376 | C178: 36.1095 | D178: 39.3426 | E178: 41.0574 | F178: 66468.79 | G178: 69.32 | H178: 569 | I178: 0
A179: KTADev2_randomaccess_jvet10_SEIDecodedPictureHash=1_SEIDecodedPictureHash=1_SEIDecodedPictureHash=1_dummy_ClassC_S04_q0_32_F300_T1 | B179: 774.384 | C179: 33.414 | D179: 37.7857 | E179: 39.6488 | F179: 54836.66 | G179: 65.49 | H179: 568.49 | I179: 0
A180: KTADev2_randomaccess_jvet10_SEIDecodedPictureHash=1_SEIDecodedPictureHash=1_SEIDecodedPictureHash=1_dummy_ClassC_S04_q0_37_F300_T1 | B180: 371.7552 | C180: 30.7448 | D180: 36.4163 | E180: 38.3351 | F180: 42774.37 | G180: 64.43 | H180: 569.21 | I180: 0
A181: KTADev2_randomaccess_jvet10_SEIDecodedPictureHash=1_SEIDecodedPictureHash=1_SEIDecodedPictureHash=1_dummy_ClassD_S01_q0_22_F500_T1 | B181: 1246.7896 | C181: 41.4795 | D181: 44.4054 | E181: 43.3694 | F181: 27820.66 | G181: 41.16 | H181: 307.7 | I181: 0
A182: KTADev2_randomaccess_jvet10_SEIDecodedPictureHash=1_SEIDecodedPictureHash=1_SEIDecodedPictureHash=1_dummy_ClassD_S01_q0_27_F500_T1 | B182: 591.7984 | C182: 37.3959 | D182: 42.0909 | E182: 40.7053 | F182: 22930.46 | G182: 43.11 | H182: 287.87 | I182: 0
A183: KTADev2_randomaccess_jvet10_SEIDecodedPictureHash=1_SEIDecodedPictureHash=1_SEIDecodedPictureHash=1_dummy_ClassD_S01_q0_32_F500_T1 | B183: 296.428 | C183: 34.0625 | D183: 40.2819 | E183: 38.6601 | F183: 18968.62 | G183: 45.56 | H183: 308.37 | I183: 0
A184: KTADev2_randomaccess_jvet10_SEIDecodedPictureHash=1_SEIDecodedPictureHash=1_SEIDecodedPictureHash=1_dummy_ClassD_S01_q0_37_F500_T1 | B184: 148.336 | C184: 31.1151 | D184: 38.6929 | E184: 36.8447 | F184: 15128.61 | G184: 46.17 | H184: 301.78 | I184: 0
A185: KTADev2_randomaccess_jvet10_SEIDecodedPictureHash=1_SEIDecodedPictureHash=1_SEIDecodedPictureHash=1_dummy_ClassD_S02_q0_22_F600_T1 | B185: 1280.6264 | C185: 38.6587 | D185: 43.9592 | E185: 45.3625 | F185: 20045.42 | G185: 45.62 | H185: 288.19 | I185: 0
A186: KTADev2_randomaccess_jvet10_SEIDecodedPictureHash=1_SEIDecodedPictureHash=1_SEIDecodedPictureHash=1_dummy_ClassD_S02_q0_27_F600_T1 | B186: 467.0824 | C186: 35.4576 | D186: 41.9125 | E186: 43.1582 | F186: 13410.1 | G186: 40.47 | H186: 287.97 | I186: 0
A187: KTADev2_randomaccess_jvet10_SEIDecodedPictureHash=1_SEIDecodedPictureHash=1_SEIDecodedPictureHash=1_dummy_ClassD_S02_q0_32_F600_T1 | B187: 212.0448 | C187: 32.7592 | D187: 40.2555 | E187: 41.5266 | F187: 9405.01 | G187: 39.27 | H187: 287.87 | I187: 0
A188: KTADev2_randomaccess_jvet10_SEIDecodedPictureHash=1_SEIDecodedPictureHash=1_SEIDecodedPictureHash=1_dummy_ClassD_S02_q0_37_F600_T1 | B188: 110.468 | C188: 30.2277 | D188: 39.0911 | E188: 40.1713 | F188: 7229.33 | G188: 41.97 | H188: 287.92 | I188: 0
A189: KTADev2_randomaccess_jvet10_SEIDecodedPictureHash=1_SEIDecodedPictureHash=1_SEIDecodedPictureHash=1_dummy_ClassD_S03_q0_22_F500_T1 | B189: 1337.4712 | C189: 38.7312 | D189: 41.6297 | E189: 42.8717 | F189: 20883.34 | G189: 41.67 | H189: 302.35 | I189: 0
A190: KTADev2_randomaccess_jvet10_SEIDecodedPictureHash=1_SEIDecodedPictureHash=1_SEIDecodedPictureHash=1_dummy_ClassD_S03_q0_27_F500_T1 | B190: 596.6248 | C190: 35.4185 | D190: 39.3942 | E190: 40.4202 | F190: 16488.83 | G190: 45.96 | H190: 287.96 | I190: 0
A191: KTADev2_randomaccess_jvet10_SEIDecodedPictureHash=1_SEIDecodedPictureHash=1_SEIDecodedPictureHash=1_dummy_ClassD_S03_q0_32_F500_T1 | B191: 286.6432 | C191: 32.3952 | D191: 37.5609 | E191: 38.3888 | F191: 13141.2 | G191: 52.19 | H191: 287.82 | I191: 0
A192: KTADev2_randomaccess_jvet10_SEIDecodedPictureHash=1_SEIDecodedPictureHash=1_SEIDecodedPictureHash=1_dummy_ClassD_S03_q0_37_F500_T1 | B192: 134.1064 | C192: 29.515 | D192: 35.9723 | E192: 36.6279 | F192: 10212.52 | G192: 53.94 | H192: 287.8 | I192: 0
A193: KTADev2_randomaccess_jvet10_SEIDecodedPictureHash=1_SEIDecodedPictureHash=1_SEIDecodedPictureHash=1_dummy_ClassD_S04_q0_22_F300_T1 | B193: 1002.9312 | C193: 40.1387 | D193: 41.6189 | E193: 42.7501 | F193: 20731.75 | G193: 28.28 | H193: 306.12 | I193: 0
A194: KTADev2_randomaccess_jvet10_SEIDecodedPictureHash=1_SEIDecodedPictureHash=1_SEIDecodedPictureHash=1_dummy_ClassD_S04_q0_27_F300_T1 | B194: 476.2008 | C194: 36.2214 | D194: 39.2789 | E194: 40.509 | F194: 16372.06 | G194: 27.73 | H194: 287.84 | I194: 0
A195: KTADev2_randomaccess_jvet10_SEIDecodedPictureHash=1_SEIDecodedPictureHash=1_SEIDecodedPictureHash=1_dummy_ClassD_S04_q0_32_F300_T1 | B195: 236.3952 | C195: 32.8874 | D195: 37.4846 | E195: 38.8068 | F195: 13574.64 | G195: 28.43 | H195: 287.48 | I195: 0
A196: KTADev2_randomaccess_jvet10_SEIDecodedPictureHash=1_SEIDecodedPictureHash=1_SEIDecodedPictureHash=1_dummy_ClassD_S04_q0_37_F300_T1 | B196: 114.16 | C196: 29.9372 | D196: 35.9943 | E196: 37.1851 | F196: 10675.11 | G196: 28.64 | H196: 305.05 | I196: 0
A197: KTADev2_randomaccess_jvet10_SEIDecodedPictureHash=1_SEIDecodedPictureHash=1_SEIDecodedPictureHash=1_dummy_ClassE_S01_q0_22_F600_T1 | B197: 0 | C197: 0 | D197: 0 | E197: 0 | F197: 0 | G197: 0 | H197: 0 | I197: 0
A198: KTADev2_randomaccess_jvet10_SEIDecodedPictureHash=1_SEIDecodedPictureHash=1_SEIDecodedPictureHash=1_dummy_ClassE_S01_q0_27_F600_T1 | B198: 0 | C198: 0 | D198: 0 | E198: 0 | F198: 0 | G198: 0 | H198: 0 | I198: 0
A199: KTADev2_randomaccess_jvet10_SEIDecodedPictureHash=1_SEIDecodedPictureHash=1_SEIDecodedPictureHash=1_dummy_ClassE_S01_q0_32_F600_T1 | B199: 0 | C199: 0 | D199: 0 | E199: 0 | F199: 0 | G199: 0 | H199: 0 | I199: 0
A200: KTADev2_randomaccess_jvet10_SEIDecodedPictureHash=1_SEIDecodedPictureHash=1_SEIDecodedPictureHash=1_dummy_ClassE_S01_q0_37_F600_T1 | B200: 0 | C200: 0 | D200: 0 | E200: 0 | F200: 0 | G200: 0 | H200: 0 | I200: 0
... 251 more rows

Sheet Ref-2
A1: HM1613_intra_main10_hm1613_SEIDecodedPictureHash=1_SEIDecodedPictureHash=1_SEIDecodedPictureHash=1_dummy_ClassA1_S01_q0_22_F294_T8 | B1: 19815.6941 | C1: 41.4805 | D1: 49.365 | E1: 47.8624 | F1: 2209.78 | G1: 19.72 | H1: 494.6 | I1: 0
A2: HM1613_intra_main10_hm1613_SEIDecodedPictureHash=1_SEIDecodedPictureHash=1_SEIDecodedPictureHash=1_dummy_ClassA1_S01_q0_27_F294_T8 | B2: 6992.3643 | C2: 40.1552 | D2: 47.9902 | E2: 46.0412 | F2: 1762.32 | G2: 14.99 | H2: 482.71 | I2: 0
A3: HM1613_intra_main10_hm1613_SEIDecodedPictureHash=1_SEIDecodedPictureHash=1_SEIDecodedPictureHash=1_dummy_ClassA1_S01_q0_32_F294_T8 | B3: 3965.5265 | C3: 39.2894 | D3: 46.6321 | E3: 44.4143 | F3: 1631.13 | G3: 13.8 | H3: 482.45 | I3: 0
A4: HM1613_intra_main10_hm1613_SEIDecodedPictureHash=1_SEIDecodedPictureHash=1_SEIDecodedPictureHash=1_dummy_ClassA1_S01_q0_37_F294_T8 | B4: 2368.7724 | C4: 38.062 | D4: 45.4894 | E4: 43.1044 | F4: 1588.86 | G4: 13.37 | H4: 481.73 | I4: 0
A5: HM1613_intra_main10_hm1613_SEIDecodedPictureHash=1_SEIDecodedPictureHash=1_SEIDecodedPictureHash=1_dummy_ClassA1_S02_q0_22_F300_T8 | B5: 61259.3263 | C5: 45.3138 | D5: 45.0793 | E5: 43.4315 | F5: 2267.98 | G5: 20.67 | H5: 457.54 | I5: 0
A6: HM1613_intra_main10_hm1613_SEIDecodedPictureHash=1_SEIDecodedPictureHash=1_SEIDecodedPictureHash=1_dummy_ClassA1_S02_q0_27_F300_T8 | B6: 29702.2737 | C6: 41.3649 | D6: 42.988 | E6: 41.231 | F6: 1925.73 | G6: 17.58 | H6: 455.07 | I6: 0
A7: HM1613_intra_main10_hm1613_SEIDecodedPictureHash=1_SEIDecodedPictureHash=1_SEIDecodedPictureHash=1_dummy_ClassA1_S02_q0_32_F300_T8 | B7: 15510.5105 | C7: 38.573 | D7: 41.3873 | E7: 39.7791 | F7: 1717.86 | G7: 18.24 | H7: 453.9 | I7: 0
A8: HM1613_intra_main10_hm1613_SEIDecodedPictureHash=1_SEIDecodedPictureHash=1_SEIDecodedPictureHash=1_dummy_ClassA1_S02_q0_37_F300_T8 | B8: 8345.2658 | C8: 35.9777 | D8: 40.1657 | E8: 38.7577 | F8: 1589.97 | G8: 14.11 | H8: 453.98 | I8: 0
A9: HM1613_intra_main10_hm1613_SEIDecodedPictureHash=1_SEIDecodedPictureHash=1_SEIDecodedPictureHash=1_dummy_ClassA1_S03_q0_22_F300_T8 | B9: 25318.2521 | C9: 42.2778 | D9: 44.6072 | E9: 44.2681 | F9: 2391.42 | G9: 26.57 | H9: 466.83 | I9: 0
A10: HM1613_intra_main10_hm1613_SEIDecodedPictureHash=1_SEIDecodedPictureHash=1_SEIDecodedPictureHash=1_dummy_ClassA1_S03_q0_27_F300_T8 | B10: 8635.3784 | C10: 38.6719 | D10: 41.105 | E10: 41.8183 | F10: 1867.02 | G10: 17.75 | H10: 455.4 | I10: 0
A11: HM1613_intra_main10_hm1613_SEIDecodedPictureHash=1_SEIDecodedPictureHash=1_SEIDecodedPictureHash=1_dummy_ClassA1_S03_q0_32_F300_T8 | B11: 4015.9468 | C11: 37.1423 | D11: 38.7011 | E11: 40.0685 | F11: 1647.85 | G11: 16.85 | H11: 462.92 | I11: 0
A12: HM1613_intra_main10_hm1613_SEIDecodedPictureHash=1_SEIDecodedPictureHash=1_SEIDecodedPictureHash=1_dummy_ClassA1_S03_q0_37_F300_T8 | B12: 2198.0289 | C12: 35.722 | D12: 36.9918 | E12: 38.7835 | F12: 1515.76 | G12: 12.99 | H12: 462.66 | I12: 0
A13: HM1613_intra_main10_hm1613_SEIDecodedPictureHash=1_SEIDecodedPictureHash=1_SEIDecodedPictureHash=1_dummy_ClassA1_S04_q0_22_F300_T8 | B13: 53190.4011 | C13: 43.2842 | D13: 47.7858 | E13: 44.2644 | F13: 2622.97 | G13: 26.28 | H13: 488.37 | I13: 0
A14: HM1613_intra_main10_hm1613_SEIDecodedPictureHash=1_SEIDecodedPictureHash=1_SEIDecodedPictureHash=1_dummy_ClassA1_S04_q0_27_F300_T8 | B14: 29578.6879 | C14: 39.9662 | D14: 45.4868 | E14: 41.6318 | F14: 2204.19 | G14: 21.73 | H14: 487.29 | I14: 0
A15: HM1613_intra_main10_hm1613_SEIDecodedPictureHash=1_SEIDecodedPictureHash=1_SEIDecodedPictureHash=1_dummy_ClassA1_S04_q0_32_F300_T8 | B15: 16282.1337 | C15: 36.8263 | D15: 44.1035 | E15: 40.244 | F15: 1955.47 | G15: 19.04 | H15: 484.88 | I15: 0
A16: HM1613_intra_main10_hm1613_SEIDecodedPictureHash=1_SEIDecodedPictureHash=1_SEIDecodedPictureHash=1_dummy_ClassA1_S04_q0_37_F300_T8 | B16: 8447.5168 | C16: 33.8062 | D16: 43.2106 | E16: 39.4657 | F16: 1761.98 | G16: 16.22 | H16: 482.84 | I16: 0
A17: HM1613_intra_main10_hm1613_SEIDecodedPictureHash=1_SEIDecodedPictureHash=1_SEIDecodedPictureHash=1_dummy_ClassA2_S01_q0_22_F300_T8 | B17: 34969.2426 | C17: 41.8721 | D17: 42.6227 | E17: 44.1137 | F17: 2332.54 | G17: 24.38 | H17: 459.74 | I17: 0
A18: HM1613_intra_main10_hm1613_SEIDecodedPictureHash=1_SEIDecodedPictureHash=1_SEIDecodedPictureHash=1_dummy_ClassA2_S01_q0_27_F300_T8 | B18: 13536.6095 | C18: 39.7195 | D18: 41.2326 | E18: 42.1848 | F18: 1832.13 | G18: 17.62 | H18: 454.21 | I18: 0
A19: HM1613_intra_main10_hm1613_SEIDecodedPictureHash=1_SEIDecodedPictureHash=1_SEIDecodedPictureHash=1_dummy_ClassA2_S01_q0_32_F300_T8 | B19: 7812.0363 | C19: 38.2501 | D19: 40.219 | E19: 40.5633 | F19: 1642.46 | G19: 17.43 | H19: 464.45 | I19: 0
A20: HM1613_intra_main10_hm1613_SEIDecodedPictureHash=1_SEIDecodedPictureHash=1_SEIDecodedPictureHash=1_dummy_ClassA2_S01_q0_37_F300_T8 | B20: 4641.5353 | C20: 36.3014 | D20: 39.3709 | E20: 39.2868 | F20: 1555.83 | G20: 14.12 | H20: 453.15 | I20: 0
A21: HM1613_intra_main10_hm1613_SEIDecodedPictureHash=1_SEIDecodedPictureHash=1_SEIDecodedPictureHash=1_dummy_ClassA2_S02_q0_22_F300_T8 | B21: 13682.9874 | C21: 40.5665 | D21: 47.1559 | E21: 46.9429 | F21: 2299.39 | G21: 22.52 | H21: 456.87 | I21: 0
A22: HM1613_intra_main10_hm1613_SEIDecodedPictureHash=1_SEIDecodedPictureHash=1_SEIDecodedPictureHash=1_dummy_ClassA2_S02_q0_27_F300_T8 | B22: 5948.0882 | C22: 39.0412 | D22: 45.1373 | E22: 45.1871 | F22: 1842.34 | G22: 18.75 | H22: 454.65 | I22: 0
A23: HM1613_intra_main10_hm1613_SEIDecodedPictureHash=1_SEIDecodedPictureHash=1_SEIDecodedPictureHash=1_dummy_ClassA2_S02_q0_32_F300_T8 | B23: 3080.5003 | C23: 37.6127 | D23: 43.5929 | E23: 43.6337 | F23: 1613.06 | G23: 16.04 | H23: 464.65 | I23: 0
A24: HM1613_intra_main10_hm1613_SEIDecodedPictureHash=1_SEIDecodedPictureHash=1_SEIDecodedPictureHash=1_dummy_ClassA2_S02_q0_37_F300_T8 | B24: 1651.1574 | C24: 35.9017 | D24: 42.4922 | E24: 42.3992 | F24: 1532.3 | G24: 13.67 | H24: 453.13 | I24: 0
A25: HM1613_intra_main10_hm1613_SEIDecodedPictureHash=1_SEIDecodedPictureHash=1_SEIDecodedPictureHash=1_dummy_ClassA2_S03_q0_22_F300_T8 | B25: 52650.9111 | C25: 40.5276 | D25: 46.3854 | E25: 44.7065 | F25: 2671.59 | G25: 29.07 | H25: 459.99 | I25: 0
A26: HM1613_intra_main10_hm1613_SEIDecodedPictureHash=1_SEIDecodedPictureHash=1_SEIDecodedPictureHash=1_dummy_ClassA2_S03_q0_27_F300_T8 | B26: 13395.8826 | C26: 37.6759 | D26: 44.7071 | E26: 42.841 | F26: 1905.19 | G26: 18.18 | H26: 454.46 | I26: 0
A27: HM1613_intra_main10_hm1613_SEIDecodedPictureHash=1_SEIDecodedPictureHash=1_SEIDecodedPictureHash=1_dummy_ClassA2_S03_q0_32_F300_T8 | B27: 7248.2811 | C27: 36.542 | D27: 43.2193 | E27: 41.3098 | F27: 1620.53 | G27: 15.58 | H27: 462.86 | I27: 0
A28: HM1613_intra_main10_hm1613_SEIDecodedPictureHash=1_SEIDecodedPictureHash=1_SEIDecodedPictureHash=1_dummy_ClassA2_S03_q0_37_F300_T8 | B28: 4021.0374 | C28: 35.0059 | D28: 42.1282 | E28: 40.2056 | F28: 1537.23 | G28: 14.26 | H28: 453.42 | I28: 0
A29: HM1613_intra_main10_hm1613_SEIDecodedPictureHash=1_SEIDecodedPictureHash=1_SEIDecodedPictureHash=1_dummy_ClassA2_S04_q0_22_F300_T8 | B29: 14417.6811 | C29: 46.9033 | D29: 48.6562 | E29: 47.4161 | F29: 1928.19 | G29: 19.26 | H29: 483.99 | I29: 0
A30: HM1613_intra_main10_hm1613_SEIDecodedPictureHash=1_SEIDecodedPictureHash=1_SEIDecodedPictureHash=1_dummy_ClassA2_S04_q0_27_F300_T8 | B30: 7655.8279 | C30: 44.7245 | D30: 46.2134 | E30: 45.0857 | F30: 1759.89 | G30: 16.96 | H30: 484.1 | I30: 0
A31: HM1613_intra_main10_hm1613_SEIDecodedPictureHash=1_SEIDecodedPictureHash=1_SEIDecodedPictureHash=1_dummy_ClassA2_S04_q0_32_F300_T8 | B31: 4418.8658 | C31: 42.3785 | D31: 44.2868 | E31: 43.6441 | F31: 1673.17 | G31: 15.29 | H31: 482.3 | I31: 0
A32: HM1613_intra_main10_hm1613_SEIDecodedPictureHash=1_SEIDecodedPictureHash=1_SEIDecodedPictureHash=1_dummy_ClassA2_S04_q0_37_F300_T8 | B32: 2595.0047 | C32: 39.8334 | D32: 42.761 | E32: 42.563 | F32: 1582.13 | G32: 14.24 | H32: 482.41 | I32: 0
A33: HM1613_intra_main10_hm1613_SEIDecodedPictureHash=1_SEIDecodedPictureHash=1_SEIDecodedPictureHash=1_dummy_ClassB_S01_q0_22_F240_T8 | B33: 2722.6144 | C33: 42.8103 | D33: 44.5543 | E33: 46.1086 | F33: 424.2 | G33: 3.8 | H33: 125.71 | I33: 0
A34: HM1613_intra_main10_hm1613_SEIDecodedPictureHash=1_SEIDecodedPictureHash=1_SEIDecodedPictureHash=1_dummy_ClassB_S01_q0_27_F240_T8 | B34: 1499.6064 | C34: 41.113 | D34: 42.6525 | E34: 43.6872 | F34: 361.72 | G34: 3.61 | H34: 131.54 | I34: 0
A35: HM1613_intra_main10_hm1613_SEIDecodedPictureHash=1_SEIDecodedPictureHash=1_SEIDecodedPictureHash=1_dummy_ClassB_S01_q0_32_F240_T8 | B35: 849.1264 | C35: 39.0302 | D35: 41.1746 | E35: 42.12 | F35: 327.66 | G35: 2.97 | H35: 124.68 | I35: 0
A36: HM1613_intra_main10_hm1613_SEIDecodedPictureHash=1_SEIDecodedPictureHash=1_SEIDecodedPictureHash=1_dummy_ClassB_S01_q0_37_F240_T8 | B36: 475.3912 | C36: 36.572 | D36: 40.1053 | E36: 41.1912 | F36: 303.7 | G36: 2.56 | H36: 126.38 | I36: 0
A37: HM1613_intra_main10_hm1613_SEIDecodedPictureHash=1_SEIDecodedPictureHash=1_SEIDecodedPictureHash=1_dummy_ClassB_S02_q0_22_F240_T8 | B37: 6542.1808 | C37: 41.73 | D37: 43.2723 | E37: 44.147 | F37: 518.37 | G37: 5.78 | H37: 131.8 | I37: 0
A38: HM1613_intra_main10_hm1613_SEIDecodedPictureHash=1_SEIDecodedPictureHash=1_SEIDecodedPictureHash=1_dummy_ClassB_S02_q0_27_F240_T8 | B38: 3551.8256 | C38: 38.6229 | D38: 40.5869 | E38: 41.3243 | F38: 432.7 | G38: 4.74 | H38: 127.63 | I38: 0
A39: HM1613_intra_main10_hm1613_SEIDecodedPictureHash=1_SEIDecodedPictureHash=1_SEIDecodedPictureHash=1_dummy_ClassB_S02_q0_32_F240_T8 | B39: 1845.7896 | C39: 35.6066 | D39: 38.6453 | E39: 39.706 | F39: 377.07 | G39: 4.4 | H39: 124.95 | I39: 0
A40: HM1613_intra_main10_hm1613_SEIDecodedPictureHash=1_SEIDecodedPictureHash=1_SEIDecodedPictureHash=1_dummy_ClassB_S02_q0_37_F240_T8 | B40: 907.9272 | C40: 32.7753 | D40: 37.3739 | E40: 38.8469 | F40: 330.03 | G40: 3.28 | H40: 127.03 | I40: 0
A41: HM1613_intra_main10_hm1613_SEIDecodedPictureHash=1_SEIDecodedPictureHash=1_SEIDecodedPictureHash=1_dummy_ClassB_S03_q0_22_F500_T8 | B41: 13031.8913 | C41: 40.6015 | D41: 41.6962 | E41: 44.2212 | F41: 1102.72 | G41: 12.14 | H41: 131.88 | I41: 0
A42: HM1613_intra_main10_hm1613_SEIDecodedPictureHash=1_SEIDecodedPictureHash=1_SEIDecodedPictureHash=1_dummy_ClassB_S03_q0_27_F500_T8 | B42: 6042.6778 | C42: 37.9545 | D42: 39.4176 | E42: 42.0055 | F42: 881.42 | G42: 9.33 | H42: 125.73 | I42: 0
A43: HM1613_intra_main10_hm1613_SEIDecodedPictureHash=1_SEIDecodedPictureHash=1_SEIDecodedPictureHash=1_dummy_ClassB_S03_q0_32_F500_T8 | B43: 3275.5452 | C43: 35.6879 | D43: 38.3086 | E43: 40.2486 | F43: 753.73 | G43: 7.81 | H43: 125.08 | I43: 0
A44: HM1613_intra_main10_hm1613_SEIDecodedPictureHash=1_SEIDecodedPictureHash=1_SEIDecodedPictureHash=1_dummy_ClassB_S03_q0_37_F500_T8 | B44: 1772.4714 | C44: 33.2367 | D44: 37.4606 | E44: 38.9313 | F44: 690.93 | G44: 6.6 | H44: 124.7 | I44: 0
A45: HM1613_intra_main10_hm1613_SEIDecodedPictureHash=1_SEIDecodedPictureHash=1_SEIDecodedPictureHash=1_dummy_ClassB_S04_q0_22_F500_T8 | B45: 8730.681 | C45: 41.3092 | D45: 44.4726 | E45: 46.0916 | F45: 1008.25 | G45: 10.95 | H45: 132 | I45: 0
A46: HM1613_intra_main10_hm1613_SEIDecodedPictureHash=1_SEIDecodedPictureHash=1_SEIDecodedPictureHash=1_dummy_ClassB_S04_q0_27_F500_T8 | B46: 3594.4214 | C46: 38.7516 | D46: 42.9039 | E46: 43.8015 | F46: 799.93 | G46: 7.88 | H46: 131.62 | I46: 0
A47: HM1613_intra_main10_hm1613_SEIDecodedPictureHash=1_SEIDecodedPictureHash=1_SEIDecodedPictureHash=1_dummy_ClassB_S04_q0_32_F500_T8 | B47: 1878.2429 | C47: 36.9702 | D47: 41.4783 | E47: 41.8321 | F47: 724.2 | G47: 6.9 | H47: 126.38 | I47: 0
A48: HM1613_intra_main10_hm1613_SEIDecodedPictureHash=1_SEIDecodedPictureHash=1_SEIDecodedPictureHash=1_dummy_ClassB_S04_q0_37_F500_T8 | B48: 1048.4056 | C48: 34.979 | D48: 40.3412 | E48: 40.3726 | F48: 654.54 | G48: 6.05 | H48: 129.51 | I48: 0
A49: HM1613_intra_main10_hm1613_SEIDecodedPictureHash=1_SEIDecodedPictureHash=1_SEIDecodedPictureHash=1_dummy_ClassB_S05_q0_22_F600_T8 | B49: 22411.1336 | C49: 42.489 | D49: 42.7195 | E49: 44.5105 | F49: 1408.45 | G49: 16.75 | H49: 129.98 | I49: 0
A50: HM1613_intra_main10_hm1613_SEIDecodedPictureHash=1_SEIDecodedPictureHash=1_SEIDecodedPictureHash=1_dummy_ClassB_S05_q0_27_F600_T8 | B50: 9860.968 | C50: 37.1052 | D50: 40.7418 | E50: 42.9439 | F50: 1128.47 | G50: 12.1 | H50: 125.56 | I50: 0
A51: HM1613_intra_main10_hm1613_SEIDecodedPictureHash=1_SEIDecodedPictureHash=1_SEIDecodedPictureHash=1_dummy_ClassB_S05_q0_32_F600_T8 | B51: 5016.9632 | C51: 34.4666 | D51: 39.2529 | E51: 41.6701 | F51: 961.43 | G51: 10.15 | H51: 127.53 | I51: 0
A52: HM1613_intra_main10_hm1613_SEIDecodedPictureHash=1_SEIDecodedPictureHash=1_SEIDecodedPictureHash=1_dummy_ClassB_S05_q0_37_F600_T8 | B52: 2703.7432 | C52: 31.9851 | D52: 38.2279 | E52: 40.7119 | F52: 838.15 | G52: 8.52 | H52: 124.1 | I52: 0
A53: HM1613_intra_main10_hm1613_SEIDecodedPictureHash=1_SEIDecodedPictureHash=1_SEIDecodedPictureHash=1_dummy_ClassC_S01_q0_22_F500_T8 | B53: 2590.6071 | C53: 41.8148 | D53: 43.8498 | E53: 44.4807 | F53: 262.9 | G53: 3.2 | H53: 33.65 | I53: 0
A54: HM1613_intra_main10_hm1613_SEIDecodedPictureHash=1_SEIDecodedPictureHash=1_SEIDecodedPictureHash=1_dummy_ClassC_S01_q0_27_F500_T8 | B54: 1408.723 | C54: 38.3802 | D54: 40.9761 | E54: 41.1966 | F54: 219.76 | G54: 2.57 | H54: 32.81 | I54: 0
A55: HM1613_intra_main10_hm1613_SEIDecodedPictureHash=1_SEIDecodedPictureHash=1_SEIDecodedPictureHash=1_dummy_ClassC_S01_q0_32_F500_T8 | B55: 753.9413 | C55: 35.3838 | D55: 38.6699 | E55: 38.6472 | F55: 190.57 | G55: 2.14 | H55: 33.3 | I55: 0
A56: HM1613_intra_main10_hm1613_SEIDecodedPictureHash=1_SEIDecodedPictureHash=1_SEIDecodedPictureHash=1_dummy_ClassC_S01_q0_37_F500_T8 | B56: 413.8405 | C56: 32.6952 | D56: 37.045 | E56: 36.8275 | F56: 169.61 | G56: 1.81 | H56: 33.3 | I56: 0
A57: HM1613_intra_main10_hm1613_SEIDecodedPictureHash=1_SEIDecodedPictureHash=1_SEIDecodedPictureHash=1_dummy_ClassC_S02_q0_22_F600_T8 | B57: 2899.632 | C57: 41.9936 | D57: 44.0727 | E57: 45.4978 | F57: 303.73 | G57: 3.48 | H57: 34.04 | I57: 0
A58: HM1613_intra_main10_hm1613_SEIDecodedPictureHash=1_SEIDecodedPictureHash=1_SEIDecodedPictureHash=1_dummy_ClassC_S02_q0_27_F600_T8 | B58: 1734.7528 | C58: 39.0523 | D58: 41.5948 | E58: 42.7404 | F58: 266.08 | G58: 2.92 | H58: 34.06 | I58: 0
A59: HM1613_intra_main10_hm1613_SEIDecodedPictureHash=1_SEIDecodedPictureHash=1_SEIDecodedPictureHash=1_dummy_ClassC_S02_q0_32_F600_T8 | B59: 1021.712 | C59: 35.9646 | D59: 39.6489 | E59: 40.6184 | F59: 233.81 | G59: 2.54 | H59: 32.94 | I59: 0
A60: HM1613_intra_main10_hm1613_SEIDecodedPictureHash=1_SEIDecodedPictureHash=1_SEIDecodedPictureHash=1_dummy_ClassC_S02_q0_37_F600_T8 | B60: 582.4304 | C60: 32.8517 | D60: 38.2162 | E60: 39.1112 | F60: 206.8 | G60: 2.11 | H60: 32.89 | I60: 0
A61: HM1613_intra_main10_hm1613_SEIDecodedPictureHash=1_SEIDecodedPictureHash=1_SEIDecodedPictureHash=1_dummy_ClassC_S03_q0_22_F500_T8 | B61: 5474.0548 | C61: 41.1203 | D61: 42.5179 | E61: 43.3752 | F61: 318.46 | G61: 4.09 | H61: 33.68 | I61: 0
A62: HM1613_intra_main10_hm1613_SEIDecodedPictureHash=1_SEIDecodedPictureHash=1_SEIDecodedPictureHash=1_dummy_ClassC_S03_q0_27_F500_T8 | B62: 3397.2905 | C62: 36.8787 | D62: 39.2195 | E62: 39.992 | F62: 277.78 | G62: 3.42 | H62: 33.31 | I62: 0
A63: HM1613_intra_main10_hm1613_SEIDecodedPictureHash=1_SEIDecodedPictureHash=1_SEIDecodedPictureHash=1_dummy_ClassC_S03_q0_32_F500_T8 | B63: 2025.2397 | C63: 33.0525 | D63: 37.0043 | E63: 37.6591 | F63: 242.14 | G63: 2.93 | H63: 33.02 | I63: 0
A64: HM1613_intra_main10_hm1613_SEIDecodedPictureHash=1_SEIDecodedPictureHash=1_SEIDecodedPictureHash=1_dummy_ClassC_S03_q0_37_F500_T8 | B64: 1097.3198 | C64: 29.3525 | D64: 35.4887 | E64: 36.1129 | F64: 208.44 | G64: 2.4 | H64: 33.27 | I64: 0
A65: HM1613_intra_main10_hm1613_SEIDecodedPictureHash=1_SEIDecodedPictureHash=1_SEIDecodedPictureHash=1_dummy_ClassC_S04_q0_22_F300_T8 | B65: 1870.6674 | C65: 42.3705 | D65: 43.5245 | E65: 44.3893 | F65: 159.93 | G65: 1.85 | H65: 34.53 | I65: 0
A66: HM1613_intra_main10_hm1613_SEIDecodedPictureHash=1_SEIDecodedPictureHash=1_SEIDecodedPictureHash=1_dummy_ClassC_S04_q0_27_F300_T8 | B66: 1125.1445 | C66: 38.937 | D66: 40.1631 | E66: 41.5835 | F66: 138.5 | G66: 1.53 | H66: 33.97 | I66: 0
A67: HM1613_intra_main10_hm1613_SEIDecodedPictureHash=1_SEIDecodedPictureHash=1_SEIDecodedPictureHash=1_dummy_ClassC_S04_q0_32_F300_T8 | B67: 638.9826 | C67: 35.4843 | D67: 37.7763 | E67: 39.5923 | F67: 119.67 | G67: 1.28 | H67: 33.6 | I67: 0
A68: HM1613_intra_main10_hm1613_SEIDecodedPictureHash=1_SEIDecodedPictureHash=1_SEIDecodedPictureHash=1_dummy_ClassC_S04_q0_37_F300_T8 | B68: 322.3595 | C68: 32.0849 | D68: 36.3405 | E68: 38.1321 | F68: 106.7 | G68: 1.1 | H68: 32.75 | I68: 0
A69: HM1613_intra_main10_hm1613_SEIDecodedPictureHash=1_SEIDecodedPictureHash=1_SEIDecodedPictureHash=1_dummy_ClassD_S01_q0_22_F500_T8 | B69: 661.3603 | C69: 43.0674 | D69: 45.135 | E69: 44.9307 | F69: 62.21 | G69: 0.74 | H69: 14.3 | I69: 0
A70: HM1613_intra_main10_hm1613_SEIDecodedPictureHash=1_SEIDecodedPictureHash=1_SEIDecodedPictureHash=1_dummy_ClassD_S01_q0_27_F500_T8 | B70: 394.4556 | C70: 39.4295 | D70: 41.9607 | E70: 41.5025 | F70: 54.01 | G70: 0.63 | H70: 15.01 | I70: 0
A71: HM1613_intra_main10_hm1613_SEIDecodedPictureHash=1_SEIDecodedPictureHash=1_SEIDecodedPictureHash=1_dummy_ClassD_S01_q0_32_F500_T8 | B71: 225.6556 | C71: 35.989 | D71: 39.5782 | E71: 38.9136 | F71: 47.63 | G71: 0.54 | H71: 15.5 | I71: 0
A72: HM1613_intra_main10_hm1613_SEIDecodedPictureHash=1_SEIDecodedPictureHash=1_SEIDecodedPictureHash=1_dummy_ClassD_S01_q0_37_F500_T8 | B72: 125.7103 | C72: 32.7976 | D72: 37.9183 | E72: 37.0743 | F72: 42.76 | G72: 0.45 | H72: 15.48 | I72: 0
A73: HM1613_intra_main10_hm1613_SEIDecodedPictureHash=1_SEIDecodedPictureHash=1_SEIDecodedPictureHash=1_dummy_ClassD_S02_q0_22_F600_T8 | B73: 1622.8624 | C73: 41.2587 | D73: 43.2712 | E73: 44.2546 | F73: 89.3 | G73: 1.17 | H73: 15.66 | I73: 0
A74: HM1613_intra_main10_hm1613_SEIDecodedPictureHash=1_SEIDecodedPictureHash=1_SEIDecodedPictureHash=1_dummy_ClassD_S02_q0_27_F600_T8 | B74: 1030.6048 | C74: 36.816 | D74: 40.596 | E74: 41.6031 | F74: 78.89 | G74: 0.98 | H74: 15.05 | I74: 0
A75: HM1613_intra_main10_hm1613_SEIDecodedPictureHash=1_SEIDecodedPictureHash=1_SEIDecodedPictureHash=1_dummy_ClassD_S02_q0_32_F600_T8 | B75: 634.2576 | C75: 32.9853 | D75: 38.9626 | E75: 39.8035 | F75: 67.84 | G75: 0.83 | H75: 14.47 | I75: 0
A76: HM1613_intra_main10_hm1613_SEIDecodedPictureHash=1_SEIDecodedPictureHash=1_SEIDecodedPictureHash=1_dummy_ClassD_S02_q0_37_F600_T8 | B76: 375.8744 | C76: 29.4062 | D76: 37.8765 | E76: 38.5301 | F76: 59.5 | G76: 0.72 | H76: 14.63 | I76: 0
A77: HM1613_intra_main10_hm1613_SEIDecodedPictureHash=1_SEIDecodedPictureHash=1_SEIDecodedPictureHash=1_dummy_ClassD_S03_q0_22_F500_T8 | B77: 1427.1913 | C77: 41.0744 | D77: 42.1705 | E77: 42.8818 | F77: 77.96 | G77: 1.08 | H77: 15.26 | I77: 0
A78: HM1613_intra_main10_hm1613_SEIDecodedPictureHash=1_SEIDecodedPictureHash=1_SEIDecodedPictureHash=1_dummy_ClassD_S03_q0_27_F500_T8 | B78: 880.0317 | C78: 36.7248 | D78: 38.9373 | E78: 39.4455 | F78: 69.88 | G78: 0.89 | H78: 15.04 | I78: 0
A79: HM1613_intra_main10_hm1613_SEIDecodedPictureHash=1_SEIDecodedPictureHash=1_SEIDecodedPictureHash=1_dummy_ClassD_S03_q0_32_F500_T8 | B79: 500.6071 | C79: 32.7337 | D79: 36.6162 | E79: 37.0713 | F79: 56.72 | G79: 0.69 | H79: 15.13 | I79: 0
A80: HM1613_intra_main10_hm1613_SEIDecodedPictureHash=1_SEIDecodedPictureHash=1_SEIDecodedPictureHash=1_dummy_ClassD_S03_q0_37_F500_T8 | B80: 257.6865 | C80: 29.1845 | D80: 35.0812 | E80: 35.5025 | F80: 49.62 | G80: 0.61 | H80: 15.06 | I80: 0
A81: HM1613_intra_main10_hm1613_SEIDecodedPictureHash=1_SEIDecodedPictureHash=1_SEIDecodedPictureHash=1_dummy_ClassD_S04_q0_22_F300_T8 | B81: 556.4084 | C81: 42.5177 | D81: 43.0862 | E81: 43.976 | F81: 41.15 | G81: 0.51 | H81: 15.21 | I81: 0
A82: HM1613_intra_main10_hm1613_SEIDecodedPictureHash=1_SEIDecodedPictureHash=1_SEIDecodedPictureHash=1_dummy_ClassD_S04_q0_27_F300_T8 | B82: 335.3258 | C82: 38.4241 | D82: 39.6056 | E82: 40.8865 | F82: 34.86 | G82: 0.42 | H82: 15.53 | I82: 0
A83: HM1613_intra_main10_hm1613_SEIDecodedPictureHash=1_SEIDecodedPictureHash=1_SEIDecodedPictureHash=1_dummy_ClassD_S04_q0_32_F300_T8 | B83: 184.3358 | C83: 34.568 | D83: 37.3286 | E83: 38.5719 | F83: 30.65 | G83: 0.37 | H83: 15.1 | I83: 0
A84: HM1613_intra_main10_hm1613_SEIDecodedPictureHash=1_SEIDecodedPictureHash=1_SEIDecodedPictureHash=1_dummy_ClassD_S04_q0_37_F300_T8 | B84: 92.8784 | C84: 31.2528 | D84: 35.7467 | E84: 36.8348 | F84: 27.24 | G84: 0.31 | H84: 15.32 | I84: 0
A85: HM1613_intra_main10_hm1613_SEIDecodedPictureHash=1_SEIDecodedPictureHash=1_SEIDecodedPictureHash=1_dummy_ClassE_S01_q0_22_F600_T8 | B85: 3736.5152 | C85: 43.9265 | D85: 46.9569 | E85: 48.0958 | F85: 584.38 | G85: 6.37 | H85: 63.07 | I85: 0
A86: HM1613_intra_main10_hm1613_SEIDecodedPictureHash=1_SEIDecodedPictureHash=1_SEIDecodedPictureHash=1_dummy_ClassE_S01_q0_27_F600_T8 | B86: 2301.24 | C86: 41.3019 | D86: 44.5156 | E86: 45.7443 | F86: 522.34 | G86: 5.8 | H86: 63.37 | I86: 0
A87: HM1613_intra_main10_hm1613_SEIDecodedPictureHash=1_SEIDecodedPictureHash=1_SEIDecodedPictureHash=1_dummy_ClassE_S01_q0_32_F600_T8 | B87: 1417.2544 | C87: 38.3694 | D87: 42.4812 | E87: 43.6871 | F87: 488.69 | G87: 5.43 | H87: 63.81 | I87: 0
A88: HM1613_intra_main10_hm1613_SEIDecodedPictureHash=1_SEIDecodedPictureHash=1_SEIDecodedPictureHash=1_dummy_ClassE_S01_q0_37_F600_T8 | B88: 861.1608 | C88: 35.2301 | D88: 41.101 | E88: 42.2199 | F88: 448.35 | G88: 4.51 | H88: 65.76 | I88: 0
A89: HM1613_intra_main10_hm1613_SEIDecodedPictureHash=1_SEIDecodedPictureHash=1_SEIDecodedPictureHash=1_dummy_ClassE_S02_q0_22_F600_T8 | B89: 2474.1968 | C89: 44.1642 | D89: 48.324 | E89: 48.9494 | F89: 533.09 | G89: 5.13 | H89: 63.29 | I89: 0
A90: HM1613_intra_main10_hm1613_SEIDecodedPictureHash=1_SEIDecodedPictureHash=1_SEIDecodedPictureHash=1_dummy_ClassE_S02_q0_27_F600_T8 | B90: 1388.4944 | C90: 41.9253 | D90: 46.2294 | E90: 46.8226 | F90: 479.63 | G90: 4.54 | H90: 63.39 | I90: 0
A91: HM1613_intra_main10_hm1613_SEIDecodedPictureHash=1_SEIDecodedPictureHash=1_SEIDecodedPictureHash=1_dummy_ClassE_S02_q0_32_F600_T8 | B91: 795.516 | C91: 39.5233 | D91: 44.3053 | E91: 44.889 | F91: 442.04 | G91: 4.05 | H91: 62.56 | I91: 0
A92: HM1613_intra_main10_hm1613_SEIDecodedPictureHash=1_SEIDecodedPictureHash=1_SEIDecodedPictureHash=1_dummy_ClassE_S02_q0_37_F600_T8 | B92: 458.3312 | C92: 36.8847 | D92: 42.7935 | E92: 43.2656 | F92: 421.15 | G92: 3.66 | H92: 62.71 | I92: 0
A93: HM1613_intra_main10_hm1613_SEIDecodedPictureHash=1_SEIDecodedPictureHash=1_SEIDecodedPictureHash=1_dummy_ClassE_S03_q0_22_F600_T8 | B93: 2729.6952 | C93: 44.557 | D93: 47.7033 | E93: 48.5743 | F93: 541.97 | G93: 5.45 | H93: 64.31 | I93: 0
A94: HM1613_intra_main10_hm1613_SEIDecodedPictureHash=1_SEIDecodedPictureHash=1_SEIDecodedPictureHash=1_dummy_ClassE_S03_q0_27_F600_T8 | B94: 1641.4464 | C94: 42.1891 | D94: 45.4659 | E94: 46.3702 | F94: 489.62 | G94: 5.47 | H94: 63.42 | I94: 0
A95: HM1613_intra_main10_hm1613_SEIDecodedPictureHash=1_SEIDecodedPictureHash=1_SEIDecodedPictureHash=1_dummy_ClassE_S03_q0_32_F600_T8 | B95: 995.0032 | C95: 39.4905 | D95: 43.4724 | E95: 44.4199 | F95: 451.42 | G95: 4.16 | H95: 63.71 | I95: 0
A96: HM1613_intra_main10_hm1613_SEIDecodedPictureHash=1_SEIDecodedPictureHash=1_SEIDecodedPictureHash=1_dummy_ClassE_S03_q0_37_F600_T8 | B96: 602.5056 | C96: 36.5515 | D96: 42.0195 | E96: 42.8996 | F96: 432.23 | G96: 4.2 | H96: 63.31 | I96: 0
A97: HM1613_intra_main10_hm1613_SEIDecodedPictureHash=1_SEIDecodedPictureHash=1_SEIDecodedPictureHash=1_dummy_ClassF_S01_q0_22_F500_T8 | B97: 2830.9024 | C97: 42.0391 | D97: 43.8226 | E97: 44.4192 | F97: 265.37 | G97: 3.29 | H97: 33.66 | I97: 0
A98: HM1613_intra_main10_hm1613_SEIDecodedPictureHash=1_SEIDecodedPictureHash=1_SEIDecodedPictureHash=1_dummy_ClassF_S01_q0_27_F500_T8 | B98: 1638.5381 | C98: 38.5349 | D98: 40.6809 | E98: 40.9497 | F98: 227.92 | G98: 2.8 | H98: 33.57 | I98: 0
A99: HM1613_intra_main10_hm1613_SEIDecodedPictureHash=1_SEIDecodedPictureHash=1_SEIDecodedPictureHash=1_dummy_ClassF_S01_q0_32_F500_T8 | B99: 944.296 | C99: 35.3994 | D99: 38.1033 | E99: 38.1588 | F99: 198.25 | G99: 2.23 | H99: 32.81 | I99: 0
A100: HM1613_intra_main10_hm1613_SEIDecodedPictureHash=1_SEIDecodedPictureHash=1_SEIDecodedPictureHash=1_dummy_ClassF_S01_q0_37_F500_T8 | B100: 551.6421 | C100: 32.4509 | D100: 36.1892 | E100: 36.1296 | F100: 178.6 | G100: 1.86 | H100: 33.31 | I100: 0
A101: HM1613_intra_main10_hm1613_SEIDecodedPictureHash=1_SEIDecodedPictureHash=1_SEIDecodedPictureHash=1_dummy_ClassF_S02_q0_22_F500_T8 | B101: 2831.3133 | C101: 45.0383 | D101: 46.7185 | E101: 47.1168 | F101: 474.96 | G101: 5.27 | H101: 56.17 | I101: 0
A102: HM1613_intra_main10_hm1613_SEIDecodedPictureHash=1_SEIDecodedPictureHash=1_SEIDecodedPictureHash=1_dummy_ClassF_S02_q0_27_F500_T8 | B102: 1888.3062 | C102: 41.0181 | D102: 43.2448 | E102: 43.5155 | F102: 427.06 | G102: 4.55 | H102: 55.59 | I102: 0
A103: HM1613_intra_main10_hm1613_SEIDecodedPictureHash=1_SEIDecodedPictureHash=1_SEIDecodedPictureHash=1_dummy_ClassF_S02_q0_32_F500_T8 | B103: 1229.9457 | C103: 37.2031 | D103: 40.6381 | E103: 40.6443 | F103: 388.78 | G103: 4.09 | H103: 56.23 | I103: 0
A104: HM1613_intra_main10_hm1613_SEIDecodedPictureHash=1_SEIDecodedPictureHash=1_SEIDecodedPictureHash=1_dummy_ClassF_S02_q0_37_F500_T8 | B104: 800.0848 | C104: 33.5601 | D104: 38.9001 | E104: 38.7079 | F104: 354.29 | G104: 3.89 | H104: 55.09 | I104: 0
A105: HM1613_intra_main10_hm1613_SEIDecodedPictureHash=1_SEIDecodedPictureHash=1_SEIDecodedPictureHash=1_dummy_ClassF_S03_q0_22_F300_T8 | B105: 4167.6142 | C105: 46.7216 | D105: 45.5795 | E105: 45.6495 | F105: 349.76 | G105: 3.83 | H105: 64.67 | I105: 0
A106: HM1613_intra_main10_hm1613_SEIDecodedPictureHash=1_SEIDecodedPictureHash=1_SEIDecodedPictureHash=1_dummy_ClassF_S03_q0_27_F300_T8 | B106: 3113.2863 | C106: 42.2695 | D106: 41.0539 | E106: 41.2843 | F106: 334.09 | G106: 3.57 | H106: 64.05 | I106: 0
A107: HM1613_intra_main10_hm1613_SEIDecodedPictureHash=1_SEIDecodedPictureHash=1_SEIDecodedPictureHash=1_dummy_ClassF_S03_q0_32_F300_T8 | B107: 2371.8703 | C107: 37.7052 | D107: 38.7833 | E107: 38.9126 | F107: 312.65 | G107: 3.5 | H107: 63.35 | I107: 0
A108: HM1613_intra_main10_hm1613_SEIDecodedPictureHash=1_SEIDecodedPictureHash=1_SEIDecodedPictureHash=1_dummy_ClassF_S03_q0_37_F300_T8 | B108: 1772.7876 | C108: 32.8508 | D108: 37.6667 | E108: 37.1956 | F108: 322.25 | G108: 3.8 | H108: 65.02 | I108: 0
A109: HM1613_intra_main10_hm1613_SEIDecodedPictureHash=1_SEIDecodedPictureHash=1_SEIDecodedPictureHash=1_dummy_ClassF_S04_q0_22_F500_T8 | B109: 657.3622 | C109: 50.6418 | D109: 52.879 | E109: 53.9371 | F109: 389.71 | G109: 3.5 | H109: 65.57 | I109: 0
A110: HM1613_intra_main10_hm1613_SEIDecodedPictureHash=1_SEIDecodedPictureHash=1_SEIDecodedPictureHash=1_dummy_ClassF_S04_q0_27_F500_T8 | B110: 447.0225 | C110: 46.9043 | D110: 49.421 | E110: 50.4028 | F110: 372.29 | G110: 3.26 | H110: 63.56 | I110: 0
A111: HM1613_intra_main10_hm1613_SEIDecodedPictureHash=1_SEIDecodedPictureHash=1_SEIDecodedPictureHash=1_dummy_ClassF_S04_q0_32_F500_T8 | B111: 306.7232 | C111: 43.173 | D111: 46.5289 | E111: 47.7536 | F111: 365.82 | G111: 3.23 | H111: 62.94 | I111: 0
A112: HM1613_intra_main10_hm1613_SEIDecodedPictureHash=1_SEIDecodedPictureHash=1_SEIDecodedPictureHash=1_dummy_ClassF_S04_q0_37_F500_T8 | B112: 205.9273 | C112: 39.0858 | D112: 44.5107 | E112: 45.6747 | F112: 395.47 | G112: 3.35 | H112: 62.78 | I112: 0
A113: HM1613_randomaccess_main10_hm1613_SEIDecodedPictureHash=1_SEIDecodedPictureHash=1_SEIDecodedPictureHash=1_dummy_ClassA1_S01_q0_22_F294_T1 | B113: 31069.8367 | C113: 40.2089 | D113: 48.8109 | E113: 46.9457 | F113: 66136.29 | G113: 105.35 | H113: 2059.16 | I113: 0
A114: HM1613_randomaccess_main10_hm1613_SEIDecodedPictureHash=1_SEIDecodedPictureHash=1_SEIDecodedPictureHash=1_dummy_ClassA1_S01_q0_27_F294_T1 | B114: 9381.7959 | C114: 39.459 | D114: 47.8117 | E114: 45.5348 | F114: 52019.5 | G114: 82.97 | H114: 2044.16 | I114: 0
A115: HM1613_randomaccess_main10_hm1613_SEIDecodedPictureHash=1_SEIDecodedPictureHash=1_SEIDecodedPictureHash=1_dummy_ClassA1_S01_q0_32_F294_T1 | B115: 4829.1363 | C115: 38.4498 | D115: 46.6988 | E115: 44.1322 | F115: 46185.9 | G115: 90.19 | H115: 2062.11 | I115: 0
A116: HM1613_randomaccess_main10_hm1613_SEIDecodedPictureHash=1_SEIDecodedPictureHash=1_SEIDecodedPictureHash=1_dummy_ClassA1_S01_q0_37_F294_T1 | B116: 2701.1951 | C116: 36.9286 | D116: 45.5828 | E116: 42.7804 | F116: 41251.09 | G116: 74.54 | H116: 2079.18 | I116: 0
A117: HM1613_randomaccess_main10_hm1613_SEIDecodedPictureHash=1_SEIDecodedPictureHash=1_SEIDecodedPictureHash=1_dummy_ClassA1_S02_q0_22_F300_T1 | B117: 100034.7067 | C117: 41.3301 | D117: 44.0115 | E117: 42.1017 | F117: 62701.48 | G117: 143.04 | H117: 1911.52 | I117: 0
A118: HM1613_randomaccess_main10_hm1613_SEIDecodedPictureHash=1_SEIDecodedPictureHash=1_SEIDecodedPictureHash=1_dummy_ClassA1_S02_q0_27_F300_T1 | B118: 25847.9947 | C118: 39.1015 | D118: 42.757 | E118: 40.9365 | F118: 42834.1 | G118: 80.37 | H118: 1915.11 | I118: 0
A119: HM1613_randomaccess_main10_hm1613_SEIDecodedPictureHash=1_SEIDecodedPictureHash=1_SEIDecodedPictureHash=1_dummy_ClassA1_S02_q0_32_F300_T1 | B119: 11170.0587 | C119: 37.2256 | D119: 41.4959 | E119: 39.827 | F119: 38296.45 | G119: 76.28 | H119: 1924.82 | I119: 0
A120: HM1613_randomaccess_main10_hm1613_SEIDecodedPictureHash=1_SEIDecodedPictureHash=1_SEIDecodedPictureHash=1_dummy_ClassA1_S02_q0_37_F300_T1 | B120: 5693.2933 | C120: 35.0877 | D120: 40.2657 | E120: 38.81 | F120: 34757.63 | G120: 66.32 | H120: 1926.09 | I120: 0
A121: HM1613_randomaccess_main10_hm1613_SEIDecodedPictureHash=1_SEIDecodedPictureHash=1_SEIDecodedPictureHash=1_dummy_ClassA1_S03_q0_22_F300_T1 | B121: 58161.02 | C121: 38.9001 | D121: 41.7828 | E121: 42.508 | F121: 82498.68 | G121: 133.15 | H121: 1925.38 | I121: 0
A122: HM1613_randomaccess_main10_hm1613_SEIDecodedPictureHash=1_SEIDecodedPictureHash=1_SEIDecodedPictureHash=1_dummy_ClassA1_S03_q0_27_F300_T1 | B122: 19193.6224 | C122: 37.333 | D122: 38.5827 | E122: 40.7233 | F122: 62957.66 | G122: 100.7 | H122: 1930.21 | I122: 0
A123: HM1613_randomaccess_main10_hm1613_SEIDecodedPictureHash=1_SEIDecodedPictureHash=1_SEIDecodedPictureHash=1_dummy_ClassA1_S03_q0_32_F300_T1 | B123: 9970.1688 | C123: 36.1318 | D123: 36.79 | E123: 39.3514 | F123: 52442.9 | G123: 83.55 | H123: 1903.91 | I123: 0
A124: HM1613_randomaccess_main10_hm1613_SEIDecodedPictureHash=1_SEIDecodedPictureHash=1_SEIDecodedPictureHash=1_dummy_ClassA1_S03_q0_37_F300_T1 | B124: 5432.3944 | C124: 34.6518 | D124: 34.7612 | E124: 37.8516 | F124: 45599.07 | G124: 75.1 | H124: 1936.92 | I124: 0
A125: HM1613_randomaccess_main10_hm1613_SEIDecodedPictureHash=1_SEIDecodedPictureHash=1_SEIDecodedPictureHash=1_dummy_ClassA1_S04_q0_22_F300_T1 | B125: 217518.6576 | C125: 39.8353 | D125: 45.6589 | E125: 41.7508 | F125: 125604.64 | G125: 177.6 | H125: 2040.35 | I125: 0
A126: HM1613_randomaccess_main10_hm1613_SEIDecodedPictureHash=1_SEIDecodedPictureHash=1_SEIDecodedPictureHash=1_dummy_ClassA1_S04_q0_27_F300_T1 | B126: 95730.8256 | C126: 35.8235 | D126: 44.3047 | E126: 40.1975 | F126: 100005.14 | G126: 144.04 | H126: 2045.15 | I126: 0
A127: HM1613_randomaccess_main10_hm1613_SEIDecodedPictureHash=1_SEIDecodedPictureHash=1_SEIDecodedPictureHash=1_dummy_ClassA1_S04_q0_32_F300_T1 | B127: 44198.8192 | C127: 32.7232 | D127: 43.5887 | E127: 39.5457 | F127: 83420.3 | G127: 121.88 | H127: 2062.51 | I127: 0
A128: HM1613_randomaccess_main10_hm1613_SEIDecodedPictureHash=1_SEIDecodedPictureHash=1_SEIDecodedPictureHash=1_dummy_ClassA1_S04_q0_37_F300_T1 | B128: 19104.4048 | C128: 30.0816 | D128: 42.8583 | E128: 38.9658 | F128: 68251.61 | G128: 96.83 | H128: 2054.29 | I128: 0
A129: HM1613_randomaccess_main10_hm1613_SEIDecodedPictureHash=1_SEIDecodedPictureHash=1_SEIDecodedPictureHash=1_dummy_ClassA2_S01_q0_22_F300_T1 | B129: 36972.3888 | C129: 40.1603 | D129: 41.7001 | E129: 43.2904 | F129: 49735.92 | G129: 98.41 | H129: 1919.09 | I129: 0
A130: HM1613_randomaccess_main10_hm1613_SEIDecodedPictureHash=1_SEIDecodedPictureHash=1_SEIDecodedPictureHash=1_dummy_ClassA2_S01_q0_27_F300_T1 | B130: 11089.0064 | C130: 39.1123 | D130: 41.0803 | E130: 42.0072 | F130: 38585.74 | G130: 80.54 | H130: 1922.47 | I130: 0
A131: HM1613_randomaccess_main10_hm1613_SEIDecodedPictureHash=1_SEIDecodedPictureHash=1_SEIDecodedPictureHash=1_dummy_ClassA2_S01_q0_32_F300_T1 | B131: 5606.3472 | C131: 37.7008 | D131: 40.2882 | E131: 40.5689 | F131: 34524.5 | G131: 69.92 | H131: 1931.59 | I131: 0
A132: HM1613_randomaccess_main10_hm1613_SEIDecodedPictureHash=1_SEIDecodedPictureHash=1_SEIDecodedPictureHash=1_dummy_ClassA2_S01_q0_37_F300_T1 | B132: 3039.5648 | C132: 35.8032 | D132: 39.4396 | E132: 39.2207 | F132: 31289.56 | G132: 68.88 | H132: 1962.21 | I132: 0
A133: HM1613_randomaccess_main10_hm1613_SEIDecodedPictureHash=1_SEIDecodedPictureHash=1_SEIDecodedPictureHash=1_dummy_ClassA2_S02_q0_22_F300_T1 | B133: 14840.2384 | C133: 39.9094 | D133: 47.513 | E133: 47.1146 | F133: 35352.37 | G133: 85.94 | H133: 1943.34 | I133: 0
A134: HM1613_randomaccess_main10_hm1613_SEIDecodedPictureHash=1_SEIDecodedPictureHash=1_SEIDecodedPictureHash=1_dummy_ClassA2_S02_q0_27_F300_T1 | B134: 3783.8088 | C134: 39.049 | D134: 46.14 | E134: 46.085 | F134: 27439.05 | G134: 71.53 | H134: 1942.83 | I134: 0
A135: HM1613_randomaccess_main10_hm1613_SEIDecodedPictureHash=1_SEIDecodedPictureHash=1_SEIDecodedPictureHash=1_dummy_ClassA2_S02_q0_32_F300_T1 | B135: 1744.3888 | C135: 37.9364 | D135: 44.4486 | E135: 44.5254 | F135: 25724.4 | G135: 70.15 | H135: 1959.18 | I135: 0
A136: HM1613_randomaccess_main10_hm1613_SEIDecodedPictureHash=1_SEIDecodedPictureHash=1_SEIDecodedPictureHash=1_dummy_ClassA2_S02_q0_37_F300_T1 | B136: 896.9712 | C136: 36.5268 | D136: 43.0271 | E136: 43.0358 | F136: 24192.49 | G136: 66.28 | H136: 1925.79 | I136: 0
A137: HM1613_randomaccess_main10_hm1613_SEIDecodedPictureHash=1_SEIDecodedPictureHash=1_SEIDecodedPictureHash=1_dummy_ClassA2_S03_q0_22_F300_T1 | B137: 57110.4976 | C137: 37.971 | D137: 45.9167 | E137: 43.8704 | F137: 61470.69 | G137: 113.91 | H137: 1909.45 | I137: 0
A138: HM1613_randomaccess_main10_hm1613_SEIDecodedPictureHash=1_SEIDecodedPictureHash=1_SEIDecodedPictureHash=1_dummy_ClassA2_S03_q0_27_F300_T1 | B138: 12144.7488 | C138: 37.0712 | D138: 44.8825 | E138: 42.8172 | F138: 42011.27 | G138: 79.21 | H138: 1921.44 | I138: 0
A139: HM1613_randomaccess_main10_hm1613_SEIDecodedPictureHash=1_SEIDecodedPictureHash=1_SEIDecodedPictureHash=1_dummy_ClassA2_S03_q0_32_F300_T1 | B139: 5533.1968 | C139: 36.024 | D139: 43.5908 | E139: 41.5459 | F139: 36759.22 | G139: 81.47 | H139: 1959.39 | I139: 0
A140: HM1613_randomaccess_main10_hm1613_SEIDecodedPictureHash=1_SEIDecodedPictureHash=1_SEIDecodedPictureHash=1_dummy_ClassA2_S03_q0_37_F300_T1 | B140: 2843.752 | C140: 34.501 | D140: 42.3491 | E140: 40.3166 | F140: 33281.56 | G140: 73.45 | H140: 1939.27 | I140: 0
A141: HM1613_randomaccess_main10_hm1613_SEIDecodedPictureHash=1_SEIDecodedPictureHash=1_SEIDecodedPictureHash=1_dummy_ClassA2_S04_q0_22_F300_T1 | B141: 24804.6416 | C141: 45.0915 | D141: 46.9956 | E141: 45.8395 | F141: 65897.8 | G141: 105.91 | H141: 2039.2 | I141: 0
A142: HM1613_randomaccess_main10_hm1613_SEIDecodedPictureHash=1_SEIDecodedPictureHash=1_SEIDecodedPictureHash=1_dummy_ClassA2_S04_q0_27_F300_T1 | B142: 9612.088 | C142: 42.9272 | D142: 45.3161 | E142: 44.4896 | F142: 53233.29 | G142: 95.97 | H142: 2077.65 | I142: 0
A143: HM1613_randomaccess_main10_hm1613_SEIDecodedPictureHash=1_SEIDecodedPictureHash=1_SEIDecodedPictureHash=1_dummy_ClassA2_S04_q0_32_F300_T1 | B143: 4827.248 | C143: 40.6594 | D143: 43.8108 | E143: 43.4191 | F143: 47133.97 | G143: 85.43 | H143: 2077.99 | I143: 0
A144: HM1613_randomaccess_main10_hm1613_SEIDecodedPictureHash=1_SEIDecodedPictureHash=1_SEIDecodedPictureHash=1_dummy_ClassA2_S04_q0_37_F300_T1 | B144: 2630.4736 | C144: 38.1946 | D144: 42.2663 | E144: 42.3715 | F144: 40995.34 | G144: 68.31 | H144: 2075.98 | I144: 0
A145: HM1613_randomaccess_main10_hm1613_SEIDecodedPictureHash=1_SEIDecodedPictureHash=1_SEIDecodedPictureHash=1_dummy_ClassB_S01_q0_22_F240_T1 | B145: 4532.2608 | C145: 41.7205 | D145: 43.5559 | E145: 45.5386 | F145: 10554.61 | G145: 20.4 | H145: 530.48 | I145: 0
A146: HM1613_randomaccess_main10_hm1613_SEIDecodedPictureHash=1_SEIDecodedPictureHash=1_SEIDecodedPictureHash=1_dummy_ClassB_S01_q0_27_F240_T1 | B146: 1985.7176 | C146: 39.7737 | D146: 42.2814 | E146: 43.7316 | F146: 8466.42 | G146: 16.63 | H146: 535.38 | I146: 0
A147: HM1613_randomaccess_main10_hm1613_SEIDecodedPictureHash=1_SEIDecodedPictureHash=1_SEIDecodedPictureHash=1_dummy_ClassB_S01_q0_32_F240_T1 | B147: 974.2664 | C147: 37.454 | D147: 41.0565 | E147: 42.2321 | F147: 7650.96 | G147: 17.62 | H147: 540.18 | I147: 0
A148: HM1613_randomaccess_main10_hm1613_SEIDecodedPictureHash=1_SEIDecodedPictureHash=1_SEIDecodedPictureHash=1_dummy_ClassB_S01_q0_37_F240_T1 | B148: 477.1216 | C148: 34.935 | D148: 39.9667 | E148: 41.2144 | F148: 6835.31 | G148: 14.72 | H148: 527.3 | I148: 0
A149: HM1613_randomaccess_main10_hm1613_SEIDecodedPictureHash=1_SEIDecodedPictureHash=1_SEIDecodedPictureHash=1_dummy_ClassB_S02_q0_22_F240_T1 | B149: 7016.7248 | C149: 40.147 | D149: 42.5961 | E149: 44.2799 | F149: 8783.64 | G149: 22.34 | H149: 529.86 | I149: 0
A150: HM1613_randomaccess_main10_hm1613_SEIDecodedPictureHash=1_SEIDecodedPictureHash=1_SEIDecodedPictureHash=1_dummy_ClassB_S02_q0_27_F240_T1 | B150: 2972.1672 | C150: 37.6607 | D150: 40.9269 | E150: 42.1618 | F150: 6912.83 | G150: 17.46 | H150: 540.91 | I150: 0
A151: HM1613_randomaccess_main10_hm1613_SEIDecodedPictureHash=1_SEIDecodedPictureHash=1_SEIDecodedPictureHash=1_dummy_ClassB_S02_q0_32_F240_T1 | B151: 1370.9656 | C151: 35.1351 | D151: 39.099 | E151: 40.2112 | F151: 6173.91 | G151: 15.4 | H151: 529.65 | I151: 0
A152: HM1613_randomaccess_main10_hm1613_SEIDecodedPictureHash=1_SEIDecodedPictureHash=1_SEIDecodedPictureHash=1_dummy_ClassB_S02_q0_37_F240_T1 | B152: 631.5144 | C152: 32.645 | D152: 37.5973 | E152: 39.0465 | F152: 5562.43 | G152: 16.42 | H152: 541.99 | I152: 0
A153: HM1613_randomaccess_main10_hm1613_SEIDecodedPictureHash=1_SEIDecodedPictureHash=1_SEIDecodedPictureHash=1_dummy_ClassB_S03_q0_22_F500_T1 | B153: 16252.8848 | C153: 38.4265 | D153: 39.959 | E153: 43.8056 | F153: 22281.72 | G153: 48.31 | H153: 530.01 | I153: 0
A154: HM1613_randomaccess_main10_hm1613_SEIDecodedPictureHash=1_SEIDecodedPictureHash=1_SEIDecodedPictureHash=1_dummy_ClassB_S03_q0_27_F500_T1 | B154: 5216.1464 | C154: 36.8586 | D154: 39.172 | E154: 42.1669 | F154: 16938.62 | G154: 34.79 | H154: 527.5 | I154: 0
A155: HM1613_randomaccess_main10_hm1613_SEIDecodedPictureHash=1_SEIDecodedPictureHash=1_SEIDecodedPictureHash=1_dummy_ClassB_S03_q0_32_F500_T1 | B155: 2502.1336 | C155: 35.051 | D155: 38.3594 | E155: 40.5439 | F155: 14856.44 | G155: 30.89 | H155: 530.51 | I155: 0
A156: HM1613_randomaccess_main10_hm1613_SEIDecodedPictureHash=1_SEIDecodedPictureHash=1_SEIDecodedPictureHash=1_dummy_ClassB_S03_q0_37_F500_T1 | B156: 1259.7656 | C156: 32.8198 | D156: 37.4901 | E156: 39.0907 | F156: 13263.72 | G156: 28.68 | H156: 541.15 | I156: 0
A157: HM1613_randomaccess_main10_hm1613_SEIDecodedPictureHash=1_SEIDecodedPictureHash=1_SEIDecodedPictureHash=1_dummy_ClassB_S04_q0_22_F500_T1 | B157: 16072.624 | C157: 39.1651 | D157: 43.8479 | E157: 45.0699 | F157: 27224.08 | G157: 56.79 | H157: 536.06 | I157: 0
A158: HM1613_randomaccess_main10_hm1613_SEIDecodedPictureHash=1_SEIDecodedPictureHash=1_SEIDecodedPictureHash=1_dummy_ClassB_S04_q0_27_F500_T1 | B158: 5410.972 | C158: 37.4206 | D158: 42.6273 | E158: 43.1344 | F158: 21609.59 | G158: 42.1 | H158: 532.49 | I158: 0
A159: HM1613_randomaccess_main10_hm1613_SEIDecodedPictureHash=1_SEIDecodedPictureHash=1_SEIDecodedPictureHash=1_dummy_ClassB_S04_q0_32_F500_T1 | B159: 2596.8936 | C159: 35.6046 | D159: 41.4181 | E159: 41.4521 | F159: 18780.86 | G159: 35.89 | H159: 534.02 | I159: 0
A160: HM1613_randomaccess_main10_hm1613_SEIDecodedPictureHash=1_SEIDecodedPictureHash=1_SEIDecodedPictureHash=1_dummy_ClassB_S04_q0_37_F500_T1 | B160: 1323.7952 | C160: 33.5125 | D160: 40.2412 | E160: 39.8726 | F160: 16839.26 | G160: 32.09 | H160: 539.87 | I160: 0
A161: HM1613_randomaccess_main10_hm1613_SEIDecodedPictureHash=1_SEIDecodedPictureHash=1_SEIDecodedPictureHash=1_dummy_ClassB_S05_q0_22_F600_T1 | B161: 34917.9328 | C161: 37.2416 | D161: 42.2343 | E161: 44.5523 | F161: 29773.3 | G161: 76.88 | H161: 533.78 | I161: 0
A162: HM1613_randomaccess_main10_hm1613_SEIDecodedPictureHash=1_SEIDecodedPictureHash=1_SEIDecodedPictureHash=1_dummy_ClassB_S05_q0_27_F600_T1 | B162: 6251.5728 | C162: 35.2166 | D162: 41.089 | E162: 43.5252 | F162: 16030.74 | G162: 40.94 | H162: 541.92 | I162: 0
A163: HM1613_randomaccess_main10_hm1613_SEIDecodedPictureHash=1_SEIDecodedPictureHash=1_SEIDecodedPictureHash=1_dummy_ClassB_S05_q0_32_F600_T1 | B163: 1999.268 | C163: 33.8683 | D163: 39.7621 | E163: 42.293 | F163: 13805.74 | G163: 35.69 | H163: 530.08 | I163: 0
A164: HM1613_randomaccess_main10_hm1613_SEIDecodedPictureHash=1_SEIDecodedPictureHash=1_SEIDecodedPictureHash=1_dummy_ClassB_S05_q0_37_F600_T1 | B164: 905.3864 | C164: 32.2003 | D164: 38.5996 | E164: 41.1716 | F164: 13014.88 | G164: 32.85 | H164: 539.02 | I164: 0
A165: HM1613_randomaccess_main10_hm1613_SEIDecodedPictureHash=1_SEIDecodedPictureHash=1_SEIDecodedPictureHash=1_dummy_ClassC_S01_q0_22_F500_T1 | B165: 3277.408 | C165: 40.8778 | D165: 43.3399 | E165: 43.9656 | F165: 6118.4 | G165: 12.12 | H165: 133.61 | I165: 0
A166: HM1613_randomaccess_main10_hm1613_SEIDecodedPictureHash=1_SEIDecodedPictureHash=1_SEIDecodedPictureHash=1_dummy_ClassC_S01_q0_27_F500_T1 | B166: 1529.5416 | C166: 37.635 | D166: 41.0417 | E166: 41.2169 | F166: 4853.69 | G166: 9.5 | H166: 132.78 | I166: 0
A167: HM1613_randomaccess_main10_hm1613_SEIDecodedPictureHash=1_SEIDecodedPictureHash=1_SEIDecodedPictureHash=1_dummy_ClassC_S01_q0_32_F500_T1 | B167: 776.2088 | C167: 34.6968 | D167: 38.8795 | E167: 38.7987 | F167: 4252.31 | G167: 8.17 | H167: 134.09 | I167: 0
A168: HM1613_randomaccess_main10_hm1613_SEIDecodedPictureHash=1_SEIDecodedPictureHash=1_SEIDecodedPictureHash=1_dummy_ClassC_S01_q0_37_F500_T1 | B168: 398.5328 | C168: 32.0493 | D168: 37.002 | E168: 36.7056 | F168: 3926.51 | G168: 6.99 | H168: 134.94 | I168: 0
A169: HM1613_randomaccess_main10_hm1613_SEIDecodedPictureHash=1_SEIDecodedPictureHash=1_SEIDecodedPictureHash=1_dummy_ClassC_S02_q0_22_F600_T1 | B169: 3358.2016 | C169: 40.1868 | D169: 43.7059 | E169: 45.3181 | F169: 6139.35 | G169: 13.03 | H169: 132.46 | I169: 0
A170: HM1613_randomaccess_main10_hm1613_SEIDecodedPictureHash=1_SEIDecodedPictureHash=1_SEIDecodedPictureHash=1_dummy_ClassC_S02_q0_27_F600_T1 | B170: 1522.1072 | C170: 37.5957 | D170: 41.8546 | E170: 43.0495 | F170: 5006.9 | G170: 10.56 | H170: 134.02 | I170: 0
A171: HM1613_randomaccess_main10_hm1613_SEIDecodedPictureHash=1_SEIDecodedPictureHash=1_SEIDecodedPictureHash=1_dummy_ClassC_S02_q0_32_F600_T1 | B171: 769.7048 | C171: 34.8979 | D171: 40.0033 | E171: 40.9398 | F171: 4248.24 | G171: 9.12 | H171: 132.94 | I171: 0
A172: HM1613_randomaccess_main10_hm1613_SEIDecodedPictureHash=1_SEIDecodedPictureHash=1_SEIDecodedPictureHash=1_dummy_ClassC_S02_q0_37_F600_T1 | B172: 398.5048 | C172: 32.1136 | D172: 38.4542 | E172: 39.2853 | F172: 3912.47 | G172: 9 | H172: 132.63 | I172: 0
A173: HM1613_randomaccess_main10_hm1613_SEIDecodedPictureHash=1_SEIDecodedPictureHash=1_SEIDecodedPictureHash=1_dummy_ClassC_S03_q0_22_F500_T1 | B173: 6331.184 | C173: 38.3117 | D173: 41.6696 | E173: 42.8255 | F173: 6193.89 | G173: 14 | H173: 134.74 | I173: 0
A174: HM1613_randomaccess_main10_hm1613_SEIDecodedPictureHash=1_SEIDecodedPictureHash=1_SEIDecodedPictureHash=1_dummy_ClassC_S03_q0_27_F500_T1 | B174: 2795.9632 | C174: 34.7994 | D174: 39.2752 | E174: 40.2923 | F174: 4628 | G174: 10.77 | H174: 133.03 | I174: 0
A175: HM1613_randomaccess_main10_hm1613_SEIDecodedPictureHash=1_SEIDecodedPictureHash=1_SEIDecodedPictureHash=1_dummy_ClassC_S03_q0_32_F500_T1 | B175: 1352.9304 | C175: 31.8126 | D175: 37.2406 | E175: 38.0816 | F175: 3874.79 | G175: 9.18 | H175: 132.4 | I175: 0
A176: HM1613_randomaccess_main10_hm1613_SEIDecodedPictureHash=1_SEIDecodedPictureHash=1_SEIDecodedPictureHash=1_dummy_ClassC_S03_q0_37_F500_T1 | B176: 636.1648 | C176: 28.9902 | D176: 35.6351 | E176: 36.3664 | F176: 3300.11 | G176: 7.5 | H176: 133.43 | I176: 0
A177: HM1613_randomaccess_main10_hm1613_SEIDecodedPictureHash=1_SEIDecodedPictureHash=1_SEIDecodedPictureHash=1_dummy_ClassC_S04_q0_22_F300_T1 | B177: 4606.48 | C177: 39.0441 | D177: 41.3705 | E177: 42.9059 | F177: 5272.97 | G177: 9.96 | H177: 132.97 | I177: 0
A178: HM1613_randomaccess_main10_hm1613_SEIDecodedPictureHash=1_SEIDecodedPictureHash=1_SEIDecodedPictureHash=1_dummy_ClassC_S04_q0_27_F300_T1 | B178: 1837.6064 | C178: 35.6523 | D178: 39.1564 | E178: 40.7717 | F178: 3945.64 | G178: 6.98 | H178: 132.6 | I178: 0
A179: HM1613_randomaccess_main10_hm1613_SEIDecodedPictureHash=1_SEIDecodedPictureHash=1_SEIDecodedPictureHash=1_dummy_ClassC_S04_q0_32_F300_T1 | B179: 879.5656 | C179: 32.9035 | D179: 37.3668 | E179: 39.1277 | F179: 3474.06 | G179: 6.2 | H179: 133.58 | I179: 0
A180: HM1613_randomaccess_main10_hm1613_SEIDecodedPictureHash=1_SEIDecodedPictureHash=1_SEIDecodedPictureHash=1_dummy_ClassC_S04_q0_37_F300_T1 | B180: 423.4792 | C180: 30.2261 | D180: 35.8696 | E180: 37.6546 | F180: 2955.33 | G180: 4.97 | H180: 133.47 | I180: 0
A181: HM1613_randomaccess_main10_hm1613_SEIDecodedPictureHash=1_SEIDecodedPictureHash=1_SEIDecodedPictureHash=1_dummy_ClassD_S01_q0_22_F500_T1 | B181: 1440.8432 | C181: 40.832 | D181: 43.9378 | E181: 43.0396 | F181: 1574.78 | G181: 3.73 | H181: 51.89 | I181: 0
A182: HM1613_randomaccess_main10_hm1613_SEIDecodedPictureHash=1_SEIDecodedPictureHash=1_SEIDecodedPictureHash=1_dummy_ClassD_S01_q0_27_F500_T1 | B182: 685.9064 | C182: 36.7928 | D182: 41.3419 | E182: 40.0246 | F182: 1312.89 | G182: 3.46 | H182: 52.3 | I182: 0
A183: HM1613_randomaccess_main10_hm1613_SEIDecodedPictureHash=1_SEIDecodedPictureHash=1_SEIDecodedPictureHash=1_dummy_ClassD_S01_q0_32_F500_T1 | B183: 346.6872 | C183: 33.5043 | D183: 39.2986 | E183: 37.8708 | F183: 1105.22 | G183: 2.58 | H183: 51.68 | I183: 0
A184: HM1613_randomaccess_main10_hm1613_SEIDecodedPictureHash=1_SEIDecodedPictureHash=1_SEIDecodedPictureHash=1_dummy_ClassD_S01_q0_37_F500_T1 | B184: 173.88 | C184: 30.5705 | D184: 37.6456 | E184: 36.0589 | F184: 955.73 | G184: 2.19 | H184: 52.23 | I184: 0
A185: HM1613_randomaccess_main10_hm1613_SEIDecodedPictureHash=1_SEIDecodedPictureHash=1_SEIDecodedPictureHash=1_dummy_ClassD_S02_q0_22_F600_T1 | B185: 1524.3944 | C185: 38.0417 | D185: 43.6239 | E185: 44.8009 | F185: 1567.56 | G185: 4.34 | H185: 52.38 | I185: 0
A186: HM1613_randomaccess_main10_hm1613_SEIDecodedPictureHash=1_SEIDecodedPictureHash=1_SEIDecodedPictureHash=1_dummy_ClassD_S02_q0_27_F600_T1 | B186: 545.3696 | C186: 34.5777 | D186: 41.6975 | E186: 42.7569 | F186: 1037.83 | G186: 3.36 | H186: 51.9 | I186: 0
A187: HM1613_randomaccess_main10_hm1613_SEIDecodedPictureHash=1_SEIDecodedPictureHash=1_SEIDecodedPictureHash=1_dummy_ClassD_S02_q0_32_F600_T1 | B187: 246.0432 | C187: 31.8506 | D187: 39.7279 | E187: 40.6921 | F187: 861.03 | G187: 2.68 | H187: 52.19 | I187: 0
A188: HM1613_randomaccess_main10_hm1613_SEIDecodedPictureHash=1_SEIDecodedPictureHash=1_SEIDecodedPictureHash=1_dummy_ClassD_S02_q0_37_F600_T1 | B188: 126.0904 | C188: 29.3409 | D188: 38.3157 | E188: 39.1889 | F188: 774.62 | G188: 2.46 | H188: 51.85 | I188: 0
A189: HM1613_randomaccess_main10_hm1613_SEIDecodedPictureHash=1_SEIDecodedPictureHash=1_SEIDecodedPictureHash=1_dummy_ClassD_S03_q0_22_F500_T1 | B189: 1507.72 | C189: 38.1575 | D189: 41.4847 | E189: 42.5756 | F189: 1306.54 | G189: 3.6 | H189: 51.91 | I189: 0
A190: HM1613_randomaccess_main10_hm1613_SEIDecodedPictureHash=1_SEIDecodedPictureHash=1_SEIDecodedPictureHash=1_dummy_ClassD_S03_q0_27_F500_T1 | B190: 671.08 | C190: 34.7914 | D190: 39.1095 | E190: 39.9893 | F190: 982.68 | G190: 2.77 | H190: 52.37 | I190: 0
A191: HM1613_randomaccess_main10_hm1613_SEIDecodedPictureHash=1_SEIDecodedPictureHash=1_SEIDecodedPictureHash=1_dummy_ClassD_S03_q0_32_F500_T1 | B191: 321.528 | C191: 31.8051 | D191: 36.9357 | E191: 37.6156 | F191: 804.78 | G191: 2.27 | H191: 51.32 | I191: 0
A192: HM1613_randomaccess_main10_hm1613_SEIDecodedPictureHash=1_SEIDecodedPictureHash=1_SEIDecodedPictureHash=1_dummy_ClassD_S03_q0_37_F500_T1 | B192: 148.6512 | C192: 28.9526 | D192: 35.2279 | E192: 35.8099 | F192: 703.82 | G192: 1.97 | H192: 51.3 | I192: 0
A193: HM1613_randomaccess_main10_hm1613_SEIDecodedPictureHash=1_SEIDecodedPictureHash=1_SEIDecodedPictureHash=1_dummy_ClassD_S04_q0_22_F300_T1 | B193: 1147.404 | C193: 39.5229 | D193: 41.6185 | E193: 42.7005 | F193: 1093.2 | G193: 2.82 | H193: 51.59 | I193: 0
A194: HM1613_randomaccess_main10_hm1613_SEIDecodedPictureHash=1_SEIDecodedPictureHash=1_SEIDecodedPictureHash=1_dummy_ClassD_S04_q0_27_F300_T1 | B194: 544.0664 | C194: 35.6206 | D194: 38.9642 | E194: 40.1457 | F194: 876.05 | G194: 2.06 | H194: 52.25 | I194: 0
A195: HM1613_randomaccess_main10_hm1613_SEIDecodedPictureHash=1_SEIDecodedPictureHash=1_SEIDecodedPictureHash=1_dummy_ClassD_S04_q0_32_F300_T1 | B195: 269.9288 | C195: 32.3318 | D195: 36.9158 | E195: 38.1636 | F195: 728.22 | G195: 1.71 | H195: 51.78 | I195: 0
A196: HM1613_randomaccess_main10_hm1613_SEIDecodedPictureHash=1_SEIDecodedPictureHash=1_SEIDecodedPictureHash=1_dummy_ClassD_S04_q0_37_F300_T1 | B196: 130.7664 | C196: 29.425 | D196: 35.3219 | E196: 36.4661 | F196: 615.74 | G196: 1.57 | H196: 51.9 | I196: 0
A197: HM1613_randomaccess_main10_hm1613_SEIDecodedPictureHash=1_SEIDecodedPictureHash=1_SEIDecodedPictureHash=1_dummy_ClassE_S01_q0_22_F600_T1 | B197: 0 | C197: 0 | D197: 0 | E197: 0 | F197: 0 | G197: 0 | H197: 0 | I197: 0
A198: HM1613_randomaccess_main10_hm1613_SEIDecodedPictureHash=1_SEIDecodedPictureHash=1_SEIDecodedPictureHash=1_dummy_ClassE_S01_q0_27_F600_T1 | B198: 0 | C198: 0 | D198: 0 | E198: 0 | F198: 0 | G198: 0 | H198: 0 | I198: 0
A199: HM1613_randomaccess_main10_hm1613_SEIDecodedPictureHash=1_SEIDecodedPictureHash=1_SEIDecodedPictureHash=1_dummy_ClassE_S01_q0_32_F600_T1 | B199: 0 | C199: 0 | D199: 0 | E199: 0 | F199: 0 | G199: 0 | H199: 0 | I199: 0
A200: HM1613_randomaccess_main10_hm1613_SEIDecodedPictureHash=1_SEIDecodedPictureHash=1_SEIDecodedPictureHash=1_dummy_ClassE_S01_q0_37_F600_T1 | B200: 0 | C200: 0 | D200: 0 | E200: 0 | F200: 0 | G200: 0 | H200: 0 | I200: 0
... 248 more rows
